BodyName,ServiceAreaCategorisation,ServiceDivisionCategorisation,ExpensesType,Date,TransactionNumber,Amount,CapitalorRevenue,SupplierName
Peterborough City Council,More than one Service Area Category,More than one Service Division,Balance Sheet,02/11/2011,413093,"-6,000.00",Balance Sheet,Redacted Personal Data
Peterborough City Council,More than one Service Area Category,More than one Service Division,Balance Sheet,01/11/2011,415004,"8,559.40",Balance Sheet,Redacted Personal Data
Peterborough City Council,"Highways, Roads & Transport Services","Transport planning, policy and strategy",Supplies and Services,02/11/2011,392031,545.16,REVENUE,Johnston Press Midlands Division
Peterborough City Council,Housing Services,Housing Benefits,Employees,02/11/2011,392477,"1,848.00",REVENUE,The Synergy Group
Peterborough City Council,Children's & Education Services - Education,Non-School Funding,Employees,02/11/2011,400025,"1,940.00",REVENUE,University of Leicester
Peterborough City Council,Cultural and Related Services,Recreation & Sport,Transport,02/11/2011,400245,"4,800.00",REVENUE,Atkins Limited
Peterborough City Council,More than one Service Area Category,More than one Service Division,More than one Expenses Type,02/11/2011,401776,"6,308.34",REVENUE,Elliott Group Limited
Peterborough City Council,Children's & Education Services - Children's Social Care,Other Children's & Families Services,Employees,02/11/2011,401959,"1,841.40",REVENUE,Sanctuary Personnel Ltd
Peterborough City Council,Children's & Education Services - Children's Social Care,Other Children's & Families Services,Employees,02/11/2011,401961,"1,629.00",REVENUE,Sanctuary Personnel Ltd
Peterborough City Council,Children's & Education Services - Children's Social Care,Other Children's & Families Services,Employees,02/11/2011,402014,"2,076.12",REVENUE,Sanctuary Personnel Ltd
Peterborough City Council,Children's & Education Services - Children's Social Care,Other Children's & Families Services,Employees,02/11/2011,402017,"1,904.04",REVENUE,Sanctuary Personnel Ltd
Peterborough City Council,Children's & Education Services - Children's Social Care,Other Children's & Families Services,Employees,02/11/2011,402755,"1,692.00",REVENUE,Sanctuary Personnel Ltd
Peterborough City Council,Children's & Education Services - Children's Social Care,Other Children's & Families Services,Employees,02/11/2011,402756,"1,931.16",REVENUE,Sanctuary Personnel Ltd
Peterborough City Council,More than one Service Area Category,More than one Service Division,More than one Expenses Type,02/11/2011,407143,510,"Mixture of Capital, Revenue and/or Balance Sheet",Northgate Information Solutions
Peterborough City Council,Children's & Education Services - Education,Secondary,Transport,02/11/2011,407445,"7,200.00",REVENUE,Atkins Limited
Peterborough City Council,Cultural and Related Services,Recreation & Sport,Transport,02/11/2011,407447,"4,800.00",REVENUE,Atkins Limited
Peterborough City Council,"Highways, Roads & Transport Services","Transport planning, policy and strategy",Transport,02/11/2011,407473,"1,596.00",REVENUE,Atkins Limited
Peterborough City Council,Deficit/(Surplus) on Trading Undertakings,Trading Account Surpluses & Deficits,Supplies and Services,02/11/2011,410024,"1,622.40",REVENUE,Barron Clark Castings Ltd
Peterborough City Council,"Highways, Roads & Transport Services",Public Transport,Supplies and Services,02/11/2011,410136,"3,272.00",REVENUE,Stagecoach Viscount
Peterborough City Council,Children's & Education Services - Children's Social Care,Children Looked After,Supplies and Services - Transfer Payments,02/11/2011,410614,"12,900.00",REVENUE,MJ Childrens Services
Peterborough City Council,Children's & Education Services - Children's Social Care,Children Looked After,Supplies and Services - Transfer Payments,02/11/2011,410619,"2,357.14",REVENUE,MJ Childrens Services
Peterborough City Council,Central Services to the Public,Local Tax,Supplies and Services,02/11/2011,410621,"1,497.60",REVENUE,The Synergy Group
Peterborough City Council,Capital,Capital,Capital Pending Update to BS,02/11/2011,410630,"23,690.39",CAPITAL,Anglian Water Services Ltd
Peterborough City Council,"Highways, Roads & Transport Services",Public Transport,Supplies and Services,02/11/2011,410633,"160,126.50",REVENUE,Stagecoach Viscount
Peterborough City Council,Children's & Education Services - Children's Social Care,Children Looked After,Supplies and Services - Transfer Payments,02/11/2011,410640,"12,900.00",REVENUE,MJ Childrens Services
Peterborough City Council,Children's & Education Services - Children's Social Care,Children Looked After,Supplies and Services - Transfer Payments,02/11/2011,410642,"11,700.00",REVENUE,MJ Childrens Services
Peterborough City Council,Planning Services,Economic Development,Employees,02/11/2011,410643,"1,211.23",REVENUE,The Synergy Group
Peterborough City Council,Children's & Education Services - Children's Social Care,Family Support Services,Supplies and Services,02/11/2011,410652,643.12,REVENUE,Sahara Community Care Services
Peterborough City Council,Children's & Education Services - Children's Social Care,Family Support Services,Supplies and Services,02/11/2011,410653,634.82,REVENUE,Sahara Community Care Services
Peterborough City Council,Planning Services,Economic Development,Employees,02/11/2011,410684,977.47,REVENUE,The Synergy Group
Peterborough City Council,Planning Services,Economic Development,Employees,02/11/2011,410685,"1,870.02",REVENUE,The Synergy Group
Peterborough City Council,"Highways, Roads & Transport Services","Transport planning, policy and strategy",Employees,02/11/2011,410686,"1,494.00",REVENUE,The Synergy Group
Peterborough City Council,Support Services,Support Services,Employees,02/11/2011,410687,"1,558.45",REVENUE,Venn Group Ltd
Peterborough City Council,Support Services,Support Services,Employees,02/11/2011,410688,"1,326.67",REVENUE,Venn Group Ltd
Peterborough City Council,Children's & Education Services - Education,Non-School Funding,Supplies and Services,02/11/2011,410718,"1,505.00",REVENUE,Cutting Edge Flooring
Peterborough City Council,Children's & Education Services - Children's Social Care,Other Children's & Families Services,Employees,02/11/2011,410720,"1,713.00",REVENUE,Care Recruitment UK Ltd
Peterborough City Council,Children's & Education Services - Children's Social Care,Children Looked After,Supplies and Services,02/11/2011,410728,"2,220.00",REVENUE,Terrence Higgins Trust Ltd
Peterborough City Council,Children's & Education Services - Children's Social Care,Children Looked After,Employees,02/11/2011,410731,"2,562.83",REVENUE,Advantage Healthcare Nursing & Care Ltd
Peterborough City Council,Planning Services,Economic Development,Employees,02/11/2011,410740,"1,781.86",REVENUE,The Synergy Group
Peterborough City Council,Children's & Education Services - Children's Social Care,Children Looked After,Employees,02/11/2011,410903,594.95,REVENUE,Randstad Care Ltd
Peterborough City Council,Children's & Education Services - Children's Social Care,Children Looked After,Employees,02/11/2011,410904,721.8,REVENUE,Randstad Care Ltd
Peterborough City Council,Capital,Capital,Capital Pending Update to BS,02/11/2011,410906,"169,788.02",CAPITAL,E N Suiter & Sons Ltd
Peterborough City Council,Deficit/(Surplus) on Trading Undertakings,Trading Account Surpluses & Deficits,Premises,02/11/2011,411521,"6,600.00",REVENUE,Anglia Support Partnership
Peterborough City Council,Support Services,Support Services,Employees,02/11/2011,411539,"1,538.06",REVENUE,Sacco Mann Ltd
Peterborough City Council,Adult Social Care,Other Adult Services,Supplies and Services,02/11/2011,411551,"14,142.48",REVENUE,Grey Laughton Associates
Peterborough City Council,Planning Services,Planning Policy,Supplies and Services,02/11/2011,411561,"4,924.80",REVENUE,Local Government Services
Peterborough City Council,Children's & Education Services - Children's Social Care,Children Looked After,Supplies and Services - Transfer Payments,02/11/2011,411570,"39,613.00",REVENUE,Chelfham Mill School Ltd
Peterborough City Council,Children's & Education Services - Children's Social Care,Support Services & Management Costs,Supplies and Services,02/11/2011,411577,"9,558.04",REVENUE,National Youth Advocacy Serv
Peterborough City Council,Environmental and Regulatory Services,Flood Defence & Land Drainage,Supplies and Services,02/11/2011,411582,"16,480.80",REVENUE,L A Jackson
Peterborough City Council,Capital,Capital,Capital Pending Update to BS,02/11/2011,412029,"1,267.20",CAPITAL,UK Power Networks (operations) Ltd
Peterborough City Council,Children's & Education Services - Education,Support Services & Management Costs,Employees,02/11/2011,412037,"3,157.92",REVENUE,Worklife Support Limited
Peterborough City Council,Planning Services,Economic Development,Employees,02/11/2011,412039,"4,039.20",REVENUE,Macdonald & Company
Peterborough City Council,Central Services to the Public,Local Tax,Supplies and Services,02/11/2011,412040,"2,548.04",REVENUE,Capita Business Services Ltd
Peterborough City Council,Children's & Education Services - Children's Social Care,Other Children's & Families Services,Third Party Payments,02/11/2011,412065,"15,000.00",REVENUE,DRINKSENSE
Peterborough City Council,"Highways, Roads & Transport Services","Environmental, Safety & Routine Maintenance",Supplies and Services,02/11/2011,412073,"3,840.00",REVENUE,Siemens Plc
Peterborough City Council,Children's & Education Services - Children's Social Care,Children Looked After,Supplies and Services - Transfer Payments,02/11/2011,412075,"1,680.77",REVENUE,Portsmouth City Council
Peterborough City Council,Children's & Education Services - Children's Social Care,Children Looked After,Supplies and Services - Transfer Payments,02/11/2011,412076,"8,228.64",REVENUE,Portsmouth City Council
Peterborough City Council,Children's & Education Services - Children's Social Care,Support Services & Management Costs,Employees,02/11/2011,412168,"1,498.78",REVENUE,Service Care Solutions Ltd
Peterborough City Council,"Highways, Roads & Transport Services",Street Lighting,Premises,02/11/2011,412208,"2,358.21",REVENUE,Southern Electric
Peterborough City Council,"Highways, Roads & Transport Services",Street Lighting,Premises,02/11/2011,412209,"2,302.84",REVENUE,Southern Electric
Peterborough City Council,Cultural and Related Services,Support Services & Management Costs,Supplies and Services,02/11/2011,412219,"17,732.17",REVENUE,Vivacity Culture and Leisure
Peterborough City Council,Children's & Education Services - Children's Social Care,Children Looked After,Supplies and Services,02/11/2011,412325,632.45,REVENUE,Excell Business Systems
Peterborough City Council,Planning Services,Economic Development,Third Party Payments,02/11/2011,412326,"30,000.00",REVENUE,Boro Counc of Kings Lynn & West Norfolk
Peterborough City Council,Children's & Education Services - Education,Non-School Funding,Supplies and Services,02/11/2011,412434,994.26,REVENUE,Connevans Ltd
Peterborough City Council,Children's & Education Services - Children's Social Care,Support Services & Management Costs,Supplies and Services,02/11/2011,412438,900,REVENUE,"Elliott, Ms Margot"
Peterborough City Council,Children's & Education Services - Children's Social Care,Support Services & Management Costs,Supplies and Services,02/11/2011,412481,660,REVENUE,"Elliott, Ms Margot"
Peterborough City Council,Deficit/(Surplus) on Trading Undertakings,Trading Account Surpluses & Deficits,Premises,02/11/2011,412482,"64,320.00",REVENUE,Tesam Distribution Ltd
Peterborough City Council,Cultural and Related Services,Tourism,Employees,02/11/2011,412547,527.52,REVENUE,Reed Personnel Services Plc
Peterborough City Council,"Highways, Roads & Transport Services","Transport planning, policy and strategy",Supplies and Services,02/11/2011,412553,661.5,REVENUE,Johnston Press Midlands Division
Peterborough City Council,More than one Service Area Category,More than one Service Division,Employees,02/11/2011,412570,"1,764.00",REVENUE,Sellick Partnership Group Limited
Peterborough City Council,More than one Service Area Category,More than one Service Division,Balance Sheet,02/11/2011,412582,893.74,Balance Sheet,Rossendales C B Ltd
Peterborough City Council,Capital,Capital,Capital Pending Update to BS,02/11/2011,412591,"326,880.00",CAPITAL,Murray & Willis Ltd
Peterborough City Council,More than one Service Area Category,More than one Service Division,Supplies and Services,02/11/2011,412704,"1,877.65",REVENUE,TNT Post Midlands Ltd
Peterborough City Council,More than one Service Area Category,More than one Service Division,Transport,02/11/2011,412925,939.6,REVENUE,R T Enterprises Ltd T/A Royal Taxis
Peterborough City Council,Deficit/(Surplus) on Trading Undertakings,Trading Account Surpluses & Deficits,Supplies and Services,02/11/2011,412932,"4,189.68",REVENUE,Godric Engineering Ltd
Peterborough City Council,Environmental and Regulatory Services,"Cemetery, Crematorium & Mortuary Services",Premises,02/11/2011,412993,608.6,REVENUE,"Inst.  Cemetries, Crem. Man."
Peterborough City Council,Support Services,Support Services,Premises,02/11/2011,413004,535.69,REVENUE,NB Real Estate
Peterborough City Council,Children's & Education Services - Education,Non-School Funding,Employees,02/11/2011,413005,666,REVENUE,Mana Resourcing Ltd
Peterborough City Council,Support Services,Support Services,Supplies and Services,02/11/2011,413198,"50,630.84",REVENUE,Danwood Group Limited
Peterborough City Council,More than one Service Area Category,More than one Service Division,Balance Sheet,02/11/2011,413203,"29,114.60",Balance Sheet,Peterborough Provider Services
Peterborough City Council,Adult Social Care,Adult Social Care,Supplies and Services,02/11/2011,413205,"239,732.20",REVENUE,Peterborough Provider Services
Peterborough City Council,Children's & Education Services - Education,Non-School Funding,Supplies and Services,02/11/2011,413354,"4,798.80",REVENUE,UNITE Integrated Solutions PLC
Peterborough City Council,Drainage and Flood Levies,Precepts & Levies,Premises,02/11/2011,413369,"129,739.00",REVENUE,North Level Dist.  Int. Drainage Board
Peterborough City Council,Children's & Education Services - Education,Secondary,Premises,02/11/2011,413427,"-5,827.50",REVENUE,Southern Electric
Peterborough City Council,Deficit/(Surplus) on Trading Undertakings,Trading Account Surpluses & Deficits,Supplies and Services,02/11/2011,413551,"11,400.00",REVENUE,Barron Clark Castings Ltd
Peterborough City Council,More than one Service Area Category,More than one Service Division,Transport,02/11/2011,413641,"1,111.87",REVENUE,ARVAL PHH Business Solutions Ltd
Peterborough City Council,Children's & Education Services - Education,Non-School Funding,Employees,02/11/2011,413743,660,REVENUE,Mana Resourcing Ltd
Peterborough City Council,Children's & Education Services - Education,Non-School Funding,Supplies and Services,02/11/2011,414024,"3,588.00",REVENUE,Foundry Mountain Activities Ltd
Peterborough City Council,Children's & Education Services - Children's Social Care,Children Looked After,Supplies and Services - Transfer Payments,02/11/2011,414036,"3,556.01",REVENUE,Foster Care Associates Ltd FCA
Peterborough City Council,Support Services,Support Services,Supplies and Services,02/11/2011,414496,905.5,REVENUE,"Strelitz, Mr Paul"
Peterborough City Council,Children's & Education Services - Children's Social Care,Other Children's & Families Services,Supplies and Services,02/11/2011,414498,"1,593.06",REVENUE,Northampton Women's Aid
Peterborough City Council,Children's & Education Services - Children's Social Care,Support Services & Management Costs,Supplies and Services,02/11/2011,414503,"1,560.00",REVENUE,"Walker, Miss Maria-Amalia"
Peterborough City Council,Children's & Education Services - Children's Social Care,Children Looked After,Supplies and Services,02/11/2011,414507,632.45,REVENUE,Excell Network Solutions Ltd
Peterborough City Council,Support Services,Support Services,Premises,02/11/2011,414617,"1,582.08",REVENUE,Viridor Waste Kent Ltd
Peterborough City Council,More than one Service Area Category,More than one Service Division,More than one Expenses Type,02/11/2011,414635,"5,028.00","Mixture of Capital, Revenue and/or Balance Sheet",Heating & Plumbing Services
Peterborough City Council,Support Services,Support Services,Supplies and Services,02/11/2011,414639,852.48,REVENUE,Wolters Kluwer (UK) Ltd
Peterborough City Council,Children's & Education Services - Children's Social Care,Support Services & Management Costs,Supplies and Services,02/11/2011,414658,"4,500.00",REVENUE,HM Courts and Tribunals Service (HMCTS)
Peterborough City Council,Support Services,Support Services,Supplies and Services,02/11/2011,414672,572.02,REVENUE,O2 (UK) Ltd
Peterborough City Council,Children's & Education Services - Children's Social Care,Children Looked After,Employees,02/11/2011,414674,912,REVENUE,Calm Training Services Ltd
Peterborough City Council,Capital,Capital,Capital Pending Update to BS,02/11/2011,414682,"5,343.60",CAPITAL,UK Power Networks (operations) Ltd
Peterborough City Council,Cultural and Related Services,Recreation & Sport,Supplies and Services,02/11/2011,414731,716.45,REVENUE,Hereward Teamwear & Trophies
Peterborough City Council,Planning Services,Economic Development,Third Party Payments,02/11/2011,414732,"21,000.00",REVENUE,Peterborough Workspace Ltd
Peterborough City Council,More than one Service Area Category,More than one Service Division,Third Party Payments,02/11/2011,414801,"748,767.80",REVENUE,Enterprise Managed Services Limited
Peterborough City Council,Deficit/(Surplus) on Trading Undertakings,Trading Account Surpluses & Deficits,More than one Expenses Type,02/11/2011,414804,"85,589.50",REVENUE,Enterprise Managed Services Limited
Peterborough City Council,Planning Services,Economic Development,Third Party Payments,02/11/2011,414816,"16,190.00",REVENUE,Peterborough Womens Aid
Peterborough City Council,Children's & Education Services - Children's Social Care,Other Children's & Families Services,Third Party Payments,02/11/2011,414834,"5,000.00",REVENUE,Blumint
Peterborough City Council,Housing Services,Homelessness,Supplies and Services,02/11/2011,414903,571.2,REVENUE,DA Rosalia Hotel
Peterborough City Council,Planning Services,Economic Development,Third Party Payments,02/11/2011,414918,"4,880.00",REVENUE,Peterborough Mediation
Peterborough City Council,More than one Service Area Category,More than one Service Division,Balance Sheet,02/11/2011,414952,"1,575.91",Balance Sheet,Redacted Personal Data
Peterborough City Council,Deficit/(Surplus) on Trading Undertakings,Trading Account Surpluses & Deficits,Supplies and Services,02/11/2011,414954,701.69,REVENUE,Perkins Engines Co Ltd
Peterborough City Council,More than one Service Area Category,More than one Service Division,Balance Sheet,02/11/2011,414962,"1,053.28",Balance Sheet,Redacted Personal Data
Peterborough City Council,Children's & Education Services - Education,Non-School Funding,Supplies and Services,02/11/2011,415063,677.6,REVENUE,Family Action
Peterborough City Council,Children's & Education Services - Education,Non-School Funding,Supplies and Services,02/11/2011,415071,"1,246.30",REVENUE,Westwood & Ravensthorpe Children's Centre
Peterborough City Council,Planning Services,Economic Development,Third Party Payments,02/11/2011,415081,"10,000.00",REVENUE,P'Boro Council For Voluntary Srvs
Peterborough City Council,Children's & Education Services - Children's Social Care,Children Looked After,Supplies and Services,02/11/2011,415098,"1,112.00",REVENUE,Redacted Personal Data
Peterborough City Council,"Cultural, Environmental and Planning Services",Waste Collection,Capital Financing Costs,02/11/2011,415103,"43,791.60",REVENUE,Specialist Fleet Services
Peterborough City Council,Deficit/(Surplus) on Trading Undertakings,Trading Account Surpluses & Deficits,Supplies and Services,02/11/2011,415123,"1,974.24",REVENUE,Barron Clark Castings Ltd
Peterborough City Council,More than one Service Area Category,More than one Service Division,More than one Expenses Type,02/11/2011,415161,"2,820.00","Mixture of Capital, Revenue and/or Balance Sheet",Casbon Building Services
Peterborough City Council,More than one Service Area Category,More than one Service Division,More than one Expenses Type,02/11/2011,415163,"10,454.00","Mixture of Capital, Revenue and/or Balance Sheet","Prosser, Mr Wayne"
Peterborough City Council,More than one Service Area Category,More than one Service Division,More than one Expenses Type,02/11/2011,415169,"4,487.00","Mixture of Capital, Revenue and/or Balance Sheet",Allworks Home Improvements Ltd
Peterborough City Council,Housing Services,Housing Benefits,Employees,02/11/2011,415171,"1,077.60",REVENUE,Lexis Nexis Uk
Peterborough City Council,Cultural and Related Services,Recreation & Sport,Supplies and Services,02/11/2011,415238,"2,448.00",REVENUE,Athene Communications
Peterborough City Council,Capital,Capital,Capital Pending Update to BS,02/11/2011,415278,"1,662.15",CAPITAL,Carillion Energy Services Ltd
Peterborough City Council,Children's & Education Services - Children's Social Care,Support Services & Management Costs,Supplies and Services,02/11/2011,415333,965,REVENUE,Great Ormond Street Hospital for Children NHS Trust
Peterborough City Council,More than one Service Area Category,More than one Service Division,More than one Expenses Type,02/11/2011,415353,"1,091.48","Mixture of Capital, Revenue and/or Balance Sheet",Obam Domestic Lift Services Ltd
Peterborough City Council,More than one Service Area Category,More than one Service Division,More than one Expenses Type,02/11/2011,415354,"4,233.00","Mixture of Capital, Revenue and/or Balance Sheet",Burmor Construction
Peterborough City Council,More than one Service Area Category,More than one Service Division,More than one Expenses Type,02/11/2011,415355,"2,414.00","Mixture of Capital, Revenue and/or Balance Sheet",Heating & Plumbing Services
Peterborough City Council,More than one Service Area Category,More than one Service Division,More than one Expenses Type,02/11/2011,415356,"5,148.00","Mixture of Capital, Revenue and/or Balance Sheet",Morley Building Services
Peterborough City Council,More than one Service Area Category,More than one Service Division,More than one Expenses Type,02/11/2011,415358,"1,205.00","Mixture of Capital, Revenue and/or Balance Sheet",Obam Domestic Lift Services Ltd
Peterborough City Council,More than one Service Area Category,More than one Service Division,More than one Expenses Type,02/11/2011,415360,"1,580.00","Mixture of Capital, Revenue and/or Balance Sheet",Dolphin Mobility East Midlands Ltd
Peterborough City Council,More than one Service Area Category,More than one Service Division,More than one Expenses Type,02/11/2011,415363,"1,783.80","Mixture of Capital, Revenue and/or Balance Sheet",EMS Stairlifts
Peterborough City Council,More than one Service Area Category,More than one Service Division,More than one Expenses Type,02/11/2011,415364,"3,016.19","Mixture of Capital, Revenue and/or Balance Sheet",Morley Building Services
Peterborough City Council,More than one Service Area Category,More than one Service Division,More than one Expenses Type,02/11/2011,415365,"2,021.00","Mixture of Capital, Revenue and/or Balance Sheet",S R K Engineering
Peterborough City Council,More than one Service Area Category,More than one Service Division,More than one Expenses Type,02/11/2011,415367,"3,463.00","Mixture of Capital, Revenue and/or Balance Sheet",Casbon Building Services
Peterborough City Council,More than one Service Area Category,More than one Service Division,More than one Expenses Type,02/11/2011,415369,"3,819.00","Mixture of Capital, Revenue and/or Balance Sheet",Allworks Home Improvements Ltd
Peterborough City Council,More than one Service Area Category,More than one Service Division,More than one Expenses Type,02/11/2011,415370,"2,978.41","Mixture of Capital, Revenue and/or Balance Sheet",Morley Building Services
Peterborough City Council,Planning Services,Economic Development,Employees,02/11/2011,415372,"5,257.02",REVENUE,Opportunity Peterborough
Peterborough City Council,More than one Service Area Category,More than one Service Division,More than one Expenses Type,02/11/2011,415373,"3,590.00","Mixture of Capital, Revenue and/or Balance Sheet",Obam Domestic Lift Services Ltd
Peterborough City Council,More than one Service Area Category,More than one Service Division,More than one Expenses Type,02/11/2011,415374,"2,081.00","Mixture of Capital, Revenue and/or Balance Sheet",S R K Engineering
Peterborough City Council,More than one Service Area Category,More than one Service Division,More than one Expenses Type,02/11/2011,415383,"4,213.00","Mixture of Capital, Revenue and/or Balance Sheet",Casbon Building Services
Peterborough City Council,More than one Service Area Category,More than one Service Division,More than one Expenses Type,02/11/2011,415385,"5,529.60","Mixture of Capital, Revenue and/or Balance Sheet",Rawheat Heating & Plumbing Eng.
Peterborough City Council,Children's & Education Services - Education,Non-School Funding,Transport,02/11/2011,415404,608.4,REVENUE,King Cabz
Peterborough City Council,Children's & Education Services - Children's Social Care,Other Children's & Families Services,Supplies and Services - Transfer Payments,02/11/2011,415425,"1,019.89",REVENUE,Redacted Personal Data
Peterborough City Council,More than one Service Area Category,More than one Service Division,More than one Expenses Type,02/11/2011,415439,"1,617.85",REVENUE,Redacted Personal Data
Peterborough City Council,More than one Service Area Category,More than one Service Division,Transport,02/11/2011,415440,"1,199.25",REVENUE,Redacted Personal Data
Peterborough City Council,More than one Service Area Category,More than one Service Division,Transport,02/11/2011,415441,"1,384.20",REVENUE,Redacted Personal Data
Peterborough City Council,Children's & Education Services - Children's Social Care,Children Looked After,Transport,02/11/2011,415443,"2,200.50",REVENUE,Redacted Personal Data
Peterborough City Council,"Highways, Roads & Transport Services","Transport planning, policy and strategy",Transport,02/11/2011,415458,652.03,REVENUE,Atkins Limited
Peterborough City Council,Children's & Education Services - Education,Secondary,Premises,02/11/2011,415491,"5,228.22",REVENUE,Southern Electric
Peterborough City Council,Children's & Education Services - Children's Social Care,Children Looked After,Employees,02/11/2011,415502,934.8,REVENUE,Textbook Teachers
Peterborough City Council,Capital,Capital,Capital Pending Update to BS,02/11/2011,415549,720,CAPITAL,AMTEC Consulting Plc
Peterborough City Council,Capital,Capital,Capital Pending Update to BS,02/11/2011,415550,"10,445.95",CAPITAL,AMTEC Consulting Plc
Peterborough City Council,Planning Services,Economic Development,Third Party Payments,02/11/2011,415553,"12,919.39",REVENUE,AMTEC Consulting Plc
Peterborough City Council,Support Services,Support Services,Supplies and Services,02/11/2011,415555,"1,771.20",REVENUE,AMTEC Consulting Plc
Peterborough City Council,Support Services,Support Services,Supplies and Services,02/11/2011,415556,"16,602.00",REVENUE,AMTEC Consulting Plc
Peterborough City Council,Housing Services,Housing Benefits,Employees,02/11/2011,415566,"9,396.86",REVENUE,The Synergy Group
Peterborough City Council,More than one Service Area Category,More than one Service Division,More than one Expenses Type,02/11/2011,415570,"2,151.45",REVENUE,Peterborough City Council
Peterborough City Council,More than one Service Area Category,More than one Service Division,More than one Expenses Type,02/11/2011,415584,"1,040.14",REVENUE,Peterborough City Council
Peterborough City Council,Children's & Education Services - Education,Non-School Funding,Supplies and Services,02/11/2011,415605,"11,433.60",REVENUE,AMTEC Consulting Plc
Peterborough City Council,Children's & Education Services - Education,Other School -related Education Functions,Supplies and Services,02/11/2011,415606,"3,811.20",REVENUE,AMTEC Consulting Plc
Peterborough City Council,Deficit/(Surplus) on Trading Undertakings,Trading Account Surpluses & Deficits,Supplies and Services,02/11/2011,415607,"6,969.60",REVENUE,AMTEC Consulting Plc
Peterborough City Council,Deficit/(Surplus) on Trading Undertakings,Trading Account Surpluses & Deficits,Supplies and Services,02/11/2011,415608,"5,961.60",REVENUE,AMTEC Consulting Plc
Peterborough City Council,Central Services to the Public,Local Tax,Supplies and Services,02/11/2011,415609,"17,234.40",REVENUE,AMTEC Consulting Plc
Peterborough City Council,Support Services,Support Services,Supplies and Services,02/11/2011,415610,"8,819.56",REVENUE,AMTEC Consulting Plc
Peterborough City Council,Support Services,Support Services,Supplies and Services,02/11/2011,415611,"30,216.00",REVENUE,AMTEC Consulting Plc
Peterborough City Council,Support Services,Support Services & Management Costs,Supplies and Services,02/11/2011,415612,"5,040.00",REVENUE,AMTEC Consulting Plc
Peterborough City Council,Support Services,Support Services & Management Costs,Supplies and Services,02/11/2011,415613,"5,400.00",REVENUE,AMTEC Consulting Plc
Peterborough City Council,Central Services to the Public,Elections,Supplies and Services,02/11/2011,415614,"5,241.60",REVENUE,AMTEC Consulting Plc
Peterborough City Council,Central Services to the Public,Elections,Supplies and Services,02/11/2011,415615,806.4,REVENUE,AMTEC Consulting Plc
Peterborough City Council,Support Services,Support Services & Management Costs,Supplies and Services,02/11/2011,415616,"1,080.00",REVENUE,AMTEC Consulting Plc
Peterborough City Council,Capital,Capital,Capital Pending Update to BS,02/11/2011,415617,"82,418.28",CAPITAL,AMTEC Consulting Plc
Peterborough City Council,Support Services,Support Services,Supplies and Services,02/11/2011,415618,"17,010.00",REVENUE,AMTEC Consulting Plc
Peterborough City Council,Capital,Capital,Capital Pending Update to BS,02/11/2011,415619,720,CAPITAL,AMTEC Consulting Plc
Peterborough City Council,Support Services,Support Services,Supplies and Services,02/11/2011,415620,"11,340.00",REVENUE,AMTEC Consulting Plc
Peterborough City Council,Support Services,Support Services,Supplies and Services,02/11/2011,415621,"8,100.00",REVENUE,AMTEC Consulting Plc
Peterborough City Council,Capital,Capital,Capital Pending Update to BS,02/11/2011,415622,"35,263.20",CAPITAL,AMTEC Consulting Plc
Peterborough City Council,Capital,Capital,Capital Pending Update to BS,02/11/2011,415623,"4,293.00",CAPITAL,AMTEC Consulting Plc
Peterborough City Council,Capital,Capital,Capital Pending Update to BS,02/11/2011,415624,"10,793.26",CAPITAL,AMTEC Consulting Plc
Peterborough City Council,Support Services,Support Services,Supplies and Services,02/11/2011,415625,"20,160.00",REVENUE,AMTEC Consulting Plc
Peterborough City Council,Capital,Capital,Capital Pending Update to BS,02/11/2011,415626,"1,215.00",CAPITAL,AMTEC Consulting Plc
Peterborough City Council,Capital,Capital,Capital Pending Update to BS,02/11/2011,415627,"14,871.00",CAPITAL,AMTEC Consulting Plc
Peterborough City Council,Capital,Capital,Capital Pending Update to BS,02/11/2011,415628,"12,030.82",CAPITAL,AMTEC Consulting Plc
Peterborough City Council,Support Services,Support Services,Supplies and Services,02/11/2011,415629,"11,067.00",REVENUE,AMTEC Consulting Plc
Peterborough City Council,Adult Social Care,Service Strategy,Supplies and Services,02/11/2011,415630,"64,982.10",REVENUE,AMTEC Consulting Plc
Peterborough City Council,More than one Service Area Category,More than one Service Division,Balance Sheet,02/11/2011,415632,"5,659.92",Balance Sheet,The Prudential Assurance Company Ltd
Peterborough City Council,More than one Service Area Category,More than one Service Division,Balance Sheet,02/11/2011,415633,"6,782.12",Balance Sheet,Teachers Pensions
Peterborough City Council,More than one Service Area Category,More than one Service Division,Balance Sheet,02/11/2011,415635,"764,954.14",Balance Sheet,Teachers Pensions
Peterborough City Council,More than one Service Area Category,More than one Service Division,Balance Sheet,02/11/2011,415636,"6,963.85",Balance Sheet,The Prudential Assurance Company Ltd
Peterborough City Council,Capital,Capital,Capital Pending Update to BS,04/11/2011,390389,"2,027.97",CAPITAL,Portakabin Ltd
Peterborough City Council,Capital,Capital,Capital Pending Update to BS,04/11/2011,397979,"6,748.80",CAPITAL,Vivacity Culture and Leisure
Peterborough City Council,Children's & Education Services - Education,Secondary,Employees,04/11/2011,398023,816.24,REVENUE,Mana Resourcing Ltd
Peterborough City Council,Children's & Education Services - Education,Secondary,Employees,04/11/2011,398024,912,REVENUE,Mana Resourcing Ltd
Peterborough City Council,Housing Services,Housing Benefits,Employees,04/11/2011,401435,"1,306.46",REVENUE,The Synergy Group
Peterborough City Council,Housing Services,Housing Benefits,Employees,04/11/2011,403186,"1,255.93",REVENUE,The Synergy Group
Peterborough City Council,Children's & Education Services - Children's Social Care,Family Support Services,Employees,04/11/2011,406360,828.94,REVENUE,Advantage Healthcare Nursing & Care Ltd
Peterborough City Council,"Highways, Roads & Transport Services","Environmental, Safety & Routine Maintenance",Transport,04/11/2011,406845,-659.29,REVENUE,Atkins Limited
Peterborough City Council,Housing Services,Housing Benefits,Employees,04/11/2011,407412,"2,312.06",REVENUE,The Synergy Group
Peterborough City Council,Housing Services,Housing Benefits,Employees,04/11/2011,407414,"1,183.75",REVENUE,The Synergy Group
Peterborough City Council,Housing Services,Housing Benefits,Employees,04/11/2011,407579,"1,068.26",REVENUE,The Synergy Group
Peterborough City Council,Housing Services,Housing Benefits,Employees,04/11/2011,407742,"1,068.26",REVENUE,The Synergy Group
Peterborough City Council,Housing Services,Housing Benefits,Employees,04/11/2011,407744,"1,356.98",REVENUE,The Synergy Group
Peterborough City Council,Housing Services,Housing Benefits,Employees,04/11/2011,407745,"1,299.24",REVENUE,The Synergy Group
Peterborough City Council,Housing Services,Housing Benefits,Employees,04/11/2011,407746,866.16,REVENUE,The Synergy Group
Peterborough City Council,Children's & Education Services - Children's Social Care,Other Children's & Families Services,Employees,04/11/2011,408879,"1,665.00",REVENUE,Care Recruitment UK Ltd
Peterborough City Council,More than one Service Area Category,More than one Service Division,Supplies and Services,04/11/2011,409426,641.73,REVENUE,TNT Post Midlands Ltd
Peterborough City Council,Capital,Capital,Capital Pending Update to BS,04/11/2011,410232,"2,639.82",CAPITAL,Atkins Limited
Peterborough City Council,Capital,Capital,Capital Pending Update to BS,04/11/2011,410236,"5,292.85",CAPITAL,Atkins Limited
Peterborough City Council,Children's & Education Services - Children's Social Care,Other Children's & Families Services,Employees,04/11/2011,412032,"1,687.20",REVENUE,Medicare First
Peterborough City Council,Cultural and Related Services,Waste Collection,Supplies and Services,04/11/2011,414060,720,REVENUE,Duston Oils
Peterborough City Council,Children's & Education Services - Children's Social Care,Support Services & Management Costs,Employees,04/11/2011,414907,"1,580.00",REVENUE,YMCA George Williams College
Peterborough City Council,Environmental and Regulatory Services,Regulatory services,Supplies and Services,04/11/2011,415025,535.39,REVENUE,Applied Language Solutions
Peterborough City Council,Support Services,Support Services & Management Costs,Employees,04/11/2011,415076,"2,229.12",REVENUE,The Solutions Factory (consulting) Ltd
Peterborough City Council,Support Services,Support Services,Employees,04/11/2011,415127,"9,336.11",REVENUE,Brook Street Bureau Plc
Peterborough City Council,More than one Service Area Category,More than one Service Division,Balance Sheet,04/11/2011,415151,"1,098.29",Balance Sheet,Redacted Personal Data
Peterborough City Council,More than one Service Area Category,More than one Service Division,Balance Sheet,04/11/2011,415160,685.32,Balance Sheet,Redacted Personal Data
Peterborough City Council,More than one Service Area Category,More than one Service Division,Balance Sheet,04/11/2011,415352,981.81,Balance Sheet,Redacted Personal Data
Peterborough City Council,Capital,Capital,Capital Pending Update to BS,04/11/2011,415366,"25,170.45",CAPITAL,Morris Homes Limited
Peterborough City Council,Planning Services,Economic Development,Third Party Payments,04/11/2011,415386,700,REVENUE,Maxey Community Association
Peterborough City Council,Children's & Education Services - Children's Social Care,Children Looked After,Employees,04/11/2011,415537,"1,108.80",REVENUE,Textbook Teachers
Peterborough City Council,Children's & Education Services - Education,Management and support services,Supplies and Services,04/11/2011,415590,714.06,REVENUE,ADT Fire and Security
Peterborough City Council,Children's & Education Services - Education,Non-School Funding,Employees,04/11/2011,415652,"24,674.68",REVENUE,Teachers Pensions
Peterborough City Council,"Highways, Roads & Transport Services","Environmental, Safety & Routine Maintenance",Transport,04/11/2011,415678,696.24,REVENUE,Atkins Limited
Peterborough City Council,Capital,Capital,Capital Pending Update to BS,04/11/2011,415679,"3,601.58",CAPITAL,Atkins Limited
Peterborough City Council,Deficit/(Surplus) on Trading Undertakings,Trading Account Surpluses & Deficits,Supplies and Services,04/11/2011,415682,513,REVENUE,Barron Clark Castings Ltd
Peterborough City Council,Deficit/(Surplus) on Trading Undertakings,Trading Account Surpluses & Deficits,Supplies and Services,04/11/2011,415683,595.2,REVENUE,Barron Clark Castings Ltd
Peterborough City Council,Deficit/(Surplus) on Trading Undertakings,Trading Account Surpluses & Deficits,Supplies and Services,04/11/2011,415685,"1,381.97",REVENUE,Barron Clark Castings Ltd
Peterborough City Council,Planning Services,Economic Development,Third Party Payments,04/11/2011,415768,"9,905.00",REVENUE,Peterborough Racial Equality Council
Peterborough City Council,Capital,Capital,Capital Pending Update to BS,04/11/2011,415781,589.2,CAPITAL,UK Power Networks (operations) Ltd
Peterborough City Council,Capital,Capital,Capital Pending Update to BS,04/11/2011,415793,905.66,CAPITAL,Atkins Limited
Peterborough City Council,Capital,Capital,Capital Pending Update to BS,04/11/2011,415814,"214,976.69",CAPITAL,Geoffrey Osborne Ltd
Peterborough City Council,Support Services,Support Services,Premises,04/11/2011,415815,"1,564.42",REVENUE,Southern Electric
Peterborough City Council,Support Services,Support Services,Premises,04/11/2011,415818,772.48,REVENUE,Anglian Water
Peterborough City Council,Children's & Education Services - Education,Non-School Funding,Transport,04/11/2011,415833,"1,458.00",REVENUE,Peterborough Cars
Peterborough City Council,Children's & Education Services - Education,Non-School Funding,Transport,04/11/2011,415836,576,REVENUE,Goldstar Cabs Ltd
Peterborough City Council,Children's & Education Services - Education,Non-School Funding,Transport,04/11/2011,415837,595.2,REVENUE,Goldstar Cabs Ltd
Peterborough City Council,Children's & Education Services - Education,Non-School Funding,Transport,04/11/2011,415838,"1,324.80",REVENUE,Goldstar Cabs Ltd
Peterborough City Council,Children's & Education Services - Education,Non-School Funding,Transport,04/11/2011,415840,"1,478.40",REVENUE,Goldstar Cabs Ltd
Peterborough City Council,Children's & Education Services - Education,Non-School Funding,Transport,04/11/2011,415843,"1,401.60",REVENUE,Goldstar Cabs Ltd
Peterborough City Council,Children's & Education Services - Education,Non-School Funding,Transport,04/11/2011,415844,"1,257.00",REVENUE,Goldstar Cabs Ltd
Peterborough City Council,Children's & Education Services - Education,Non-School Funding,Transport,04/11/2011,415846,691.2,REVENUE,Goldstar Cabs Ltd
Peterborough City Council,Children's & Education Services - Education,Non-School Funding,Transport,04/11/2011,415847,684,REVENUE,King Cabz
Peterborough City Council,Children's & Education Services - Children's Social Care,Family Support Services,Supplies and Services,04/11/2011,415891,"1,078.20",REVENUE,TTS Group Ltd
Peterborough City Council,Children's & Education Services - Children's Social Care,Family Support Services,Supplies and Services,04/11/2011,415941,504,REVENUE,P F S Builders & Contractors
Peterborough City Council,Housing Services,Homelessness,Supplies and Services,04/11/2011,415945,700,REVENUE,Renaissance Property Mngmnt
Peterborough City Council,Housing Services,Homelessness,Supplies and Services,04/11/2011,415948,549.99,REVENUE,Record Property Solutions
Peterborough City Council,More than one Service Area Category,More than one Service Division,Balance Sheet,04/11/2011,415976,"6,000.00",Balance Sheet,Aviva plc
Peterborough City Council,Planning Services,Recreation & Sport,Supplies and Services,04/11/2011,415980,"1,400.00",REVENUE,Football Assoc & Youth Comm Ctr PFA
Peterborough City Council,Support Services,Support Services,Premises,04/11/2011,416038,950,REVENUE,Redacted Personal Data
Peterborough City Council,Capital,Capital,Capital Pending Update to BS,07/11/2011,393884,"2,027.97",CAPITAL,Portakabin Ltd
Peterborough City Council,Capital,Capital,Capital Pending Update to BS,07/11/2011,398037,"2,027.97",CAPITAL,Portakabin Ltd
Peterborough City Council,Capital,Capital,Capital Pending Update to BS,07/11/2011,400509,"10,580.40",CAPITAL,Portakabin Ltd
Peterborough City Council,Capital,Capital,Capital Pending Update to BS,07/11/2011,400515,-981.28,CAPITAL,Portakabin Ltd
Peterborough City Council,Children's & Education Services - Children's Social Care,Youth Justice,Premises,07/11/2011,406599,651.6,REVENUE,Cording Asset Manage. LLP Client A/C
Peterborough City Council,Children's & Education Services - Children's Social Care,Youth Justice,Premises,07/11/2011,406601,649.2,REVENUE,Cording Asset Manage. LLP Client A/C
Peterborough City Council,"Cultural, Environmental and Planning Services",Recreation & Sport,Supplies and Services,07/11/2011,407778,666,REVENUE,Triple SSS Limited
Peterborough City Council,Children's & Education Services - Children's Social Care,Children Looked After,Supplies and Services,07/11/2011,411554,"9,854.21",REVENUE,St Andrew's Healthcare
Peterborough City Council,Children's & Education Services - Children's Social Care,Other Children's & Families Services,Employees,07/11/2011,412045,"1,713.00",REVENUE,Care Recruitment UK Ltd
Peterborough City Council,"Highways, Roads & Transport Services",More than one Service Division,Supplies and Services,07/11/2011,412086,"1,234.00",REVENUE,Bristows Cycles
Peterborough City Council,Children's & Education Services - Children's Social Care,Children Looked After,Supplies and Services - Transfer Payments,07/11/2011,412338,"11,200.00",REVENUE,Amegreen
Peterborough City Council,Children's & Education Services - Education,Management and support services,Supplies and Services,07/11/2011,412440,"1,360.80",REVENUE,Cambridgeshire County Council
Peterborough City Council,Children's & Education Services - Children's Social Care,Support Services & Management Costs,Supplies and Services,07/11/2011,412451,"1,725.00",REVENUE,"Budden, Ms Caroline"
Peterborough City Council,Planning Services,Community Safety (CCTV),Supplies and Services,07/11/2011,412474,"8,892.16",REVENUE,Quadrant Security Group Ltd
Peterborough City Council,Deficit/(Surplus) on Trading Undertakings,Trading Account Surpluses & Deficits,Premises,07/11/2011,412480,"44,896.67",REVENUE,Tesam Distribution Ltd
Peterborough City Council,Children's & Education Services - Education,Non-School Funding,Supplies and Services,07/11/2011,412484,"1,152.00",REVENUE,Top Class Tutors
Peterborough City Council,Children's & Education Services - Education,Non-School Funding,Supplies and Services,07/11/2011,412485,"1,728.00",REVENUE,Top Class Tutors
Peterborough City Council,Children's & Education Services - Education,Non-School Funding,Supplies and Services,07/11/2011,412487,"1,728.00",REVENUE,Top Class Tutors
Peterborough City Council,Children's & Education Services - Education,Non-School Funding,Supplies and Services,07/11/2011,412488,"1,728.00",REVENUE,Top Class Tutors
Peterborough City Council,Children's & Education Services - Children's Social Care,Other Children's & Families Services,Employees,07/11/2011,412500,"1,658.78",REVENUE,Blue Group International Ltd
Peterborough City Council,Children's & Education Services - Education,Non-School Funding,Transport,07/11/2011,412502,"7,428.10",REVENUE,Statutory Payment of Concessionary Fares to Bus Provider
Peterborough City Council,Children's & Education Services - Education,Non-School Funding,Supplies and Services,07/11/2011,412514,"1,584.00",REVENUE,Top Class Tutors
Peterborough City Council,Children's & Education Services - Education,Non-School Funding,Employees,07/11/2011,412572,"5,959.80",REVENUE,Top Class Tutors
Peterborough City Council,Cultural and Related Services,Recreation & Sport,Supplies and Services,07/11/2011,412590,"6,003.60",REVENUE,Pearce Hire
Peterborough City Council,"Highways, Roads & Transport Services",Public Transport,Supplies and Services,07/11/2011,412608,"38,500.00",REVENUE,Lincolnshire County Council
Peterborough City Council,Children's & Education Services - Children's Social Care,Other Children's & Families Services,Employees,07/11/2011,412625,"1,420.80",REVENUE,Medicare First
Peterborough City Council,Children's & Education Services - Education,Non-School Funding,Supplies and Services,07/11/2011,412634,"1,041.88",REVENUE,Capita Absence Management Services Ltd
Peterborough City Council,Children's & Education Services - Education,Non-School Funding,Employees,07/11/2011,412635,"1,344.00",REVENUE,Top Class Tutors
Peterborough City Council,Children's & Education Services - Children's Social Care,Other Children's & Families Services,Employees,07/11/2011,412636,"1,687.20",REVENUE,Medicare First
Peterborough City Council,Children's & Education Services - Education,Secondary,Supplies and Services,07/11/2011,412638,"23,654.75",REVENUE,IIC by Education (P'boro) Ltd
Peterborough City Council,Children's & Education Services - Education,Secondary,Supplies and Services,07/11/2011,412639,"6,233.82",REVENUE,IIC by Education (P'boro) Ltd
Peterborough City Council,Children's & Education Services - Education,Non-School Funding,Third Party Payments,07/11/2011,412722,882.45,REVENUE,National Childminding Association
Peterborough City Council,More than one Service Area Category,More than one Service Division,More than one Expenses Type,07/11/2011,412729,"5,237.28","Mixture of Capital, Revenue and/or Balance Sheet",IIC by Education (P'boro) Ltd
Peterborough City Council,Children's & Education Services - Education,Secondary,Supplies and Services,07/11/2011,412734,"5,428.50",REVENUE,IIC by Education (P'boro) Ltd
Peterborough City Council,Support Services,Support Services & Management Costs,Employees,07/11/2011,412929,594,REVENUE,JCT Consultancy Ltd
Peterborough City Council,Support Services,Support Services,Supplies and Services,07/11/2011,412980,"8,820.00",REVENUE,Ntrinsic Consulting Europe Ltd
Peterborough City Council,Cultural and Related Services,Recreation & Sport,Supplies and Services,07/11/2011,413059,"6,786.00",REVENUE,Landsman's Ltd
Peterborough City Council,Children's & Education Services - Children's Social Care,Support Services & Management Costs,Supplies and Services,07/11/2011,413129,720,REVENUE,Deborah Shield
Peterborough City Council,Environmental and Regulatory Services,"Cemetery, Crematorium & Mortuary Services",Supplies and Services,07/11/2011,413131,"4,440.00",REVENUE,Clear Skies Software Ltd
Peterborough City Council,Housing Services,Homelessness,Supplies and Services,07/11/2011,413289,702.55,REVENUE,Euro RSCG Riley Ltd
Peterborough City Council,Housing Services,Homelessness,Supplies and Services,07/11/2011,413316,702.55,REVENUE,Euro RSCG Riley Ltd
Peterborough City Council,Housing Services,Homelessness,Supplies and Services,07/11/2011,413320,702.55,REVENUE,Euro RSCG Riley Ltd
Peterborough City Council,Housing Services,Homelessness,Supplies and Services,07/11/2011,413323,592.46,REVENUE,Euro RSCG Riley Ltd
Peterborough City Council,Housing Services,Homelessness,Supplies and Services,07/11/2011,413328,702.55,REVENUE,Euro RSCG Riley Ltd
Peterborough City Council,Housing Services,Homelessness,Supplies and Services,07/11/2011,413331,702.55,REVENUE,Euro RSCG Riley Ltd
Peterborough City Council,Housing Services,Homelessness,Supplies and Services,07/11/2011,413333,702.55,REVENUE,Euro RSCG Riley Ltd
Peterborough City Council,Cultural and Related Services,Recreation & Sport,Supplies and Services,07/11/2011,413661,"12,224.40",REVENUE,Eventplus (Hire) Ltd
Peterborough City Council,Environmental and Regulatory Services,Street Cleansing,Premises,07/11/2011,413665,581.47,REVENUE,Cresset Leisure Services Ltd
Peterborough City Council,Environmental and Regulatory Services,Street Cleansing,Premises,07/11/2011,413681,"4,931.73",REVENUE,Cresset Leisure Services Ltd
Peterborough City Council,Cultural and Related Services,Recreation & Sport,Supplies and Services,07/11/2011,414062,"6,404.00",REVENUE,Manor Marquees & Structures
Peterborough City Council,More than one Service Area Category,More than one Service Division,More than one Expenses Type,07/11/2011,414636,"248,743.88","Mixture of Capital, Revenue and/or Balance Sheet",Ringway Infrastructure Services
Peterborough City Council,Children's & Education Services - Children's Social Care,Other Children's & Families Services,Third Party Payments,07/11/2011,414675,"3,600.00",REVENUE,William Scott Abbott Trust
Peterborough City Council,Support Services,Support Services,Premises,07/11/2011,414847,959.88,REVENUE,Anglian Water
Peterborough City Council,Support Services,Support Services,Premises,07/11/2011,414848,-763.61,REVENUE,Eastern Shires Purchasing Organisation
Peterborough City Council,Capital,Capital,Capital Pending Update to BS,07/11/2011,415077,"16,483.80",CAPITAL,ASG Stage Products Ltd
Peterborough City Council,Capital,Capital,Capital Pending Update to BS,07/11/2011,415080,"12,288.00",CAPITAL,ASG Stage Products Ltd
Peterborough City Council,Deficit/(Surplus) on Trading Undertakings,Trading Account Surpluses & Deficits,Premises,07/11/2011,415398,650,REVENUE,Eurodix Ltd
Peterborough City Council,Planning Services,Economic Development,Third Party Payments,07/11/2011,415418,700,REVENUE,Walton Community Association
Peterborough City Council,Planning Services,Economic Development,Third Party Payments,07/11/2011,415727,"11,135.00",REVENUE,Gladstone Connect Ltd
Peterborough City Council,Support Services,Support Services,Premises,07/11/2011,415733,"1,114.75",REVENUE,Zurich Insurance Company
Peterborough City Council,Children's & Education Services - Children's Social Care,Children Looked After,Supplies and Services - Transfer Payments,07/11/2011,415983,587.23,REVENUE,Redacted Personal Data
Peterborough City Council,Children's & Education Services - Education,Non-School Funding,Supplies and Services,07/11/2011,415995,630,REVENUE,Braybrook Nursery
Peterborough City Council,Children's & Education Services - Education,Non-School Funding,Supplies and Services,07/11/2011,415996,630,REVENUE,Braybrook Nursery
Peterborough City Council,Deficit/(Surplus) on Trading Undertakings,Trading Account Surpluses & Deficits,Supplies and Services,07/11/2011,416000,513,REVENUE,Barron Clark Castings Ltd
Peterborough City Council,Deficit/(Surplus) on Trading Undertakings,Trading Account Surpluses & Deficits,Supplies and Services,07/11/2011,416005,595.2,REVENUE,Barron Clark Castings Ltd
Peterborough City Council,Support Services,Support Services,Premises,07/11/2011,416015,648.3,REVENUE,Oakdale Primary School
Peterborough City Council,Children's & Education Services - Education,Secondary,Supplies and Services,07/11/2011,416021,"6,000.00",REVENUE,Stagecoach in Peterborough
Peterborough City Council,Cultural and Related Services,Tourism,Supplies and Services,07/11/2011,416083,893.68,REVENUE,Elgate Products Limited
Peterborough City Council,Environmental and Regulatory Services,"Cemetery, Crematorium & Mortuary Services",Supplies and Services,07/11/2011,416118,"1,602.00",REVENUE,The Columbaria Company
Peterborough City Council,Children's & Education Services - Children's Social Care,Children Looked After,Transport,07/11/2011,416140,667.8,REVENUE,Redacted Personal Data
Peterborough City Council,More than one Service Area Category,More than one Service Division,Transport,07/11/2011,416141,835.2,REVENUE,Redacted Personal Data
Peterborough City Council,Children's & Education Services - Children's Social Care,Children Looked After,Transport,07/11/2011,416142,"1,788.75",REVENUE,Redacted Personal Data
Peterborough City Council,Children's & Education Services - Children's Social Care,Children Looked After,Transport,07/11/2011,416143,573.75,REVENUE,Redacted Personal Data
Peterborough City Council,More than one Service Area Category,More than one Service Division,Transport,07/11/2011,416144,"1,747.00",REVENUE,Redacted Personal Data
Peterborough City Council,Children's & Education Services - Children's Social Care,Children Looked After,Transport,07/11/2011,416145,"1,124.60",REVENUE,Redacted Personal Data
Peterborough City Council,Children's & Education Services - Children's Social Care,Children Looked After,Transport,07/11/2011,416146,"1,564.20",REVENUE,Redacted Personal Data
Peterborough City Council,Children's & Education Services - Children's Social Care,Children Looked After,Transport,07/11/2011,416147,"2,152.00",REVENUE,Redacted Personal Data
Peterborough City Council,More than one Service Area Category,More than one Service Division,Transport,07/11/2011,416149,"1,200.15",REVENUE,Redacted Personal Data
Peterborough City Council,Children's & Education Services - Children's Social Care,Children Looked After,Transport,07/11/2011,416150,578.4,REVENUE,Redacted Personal Data
Peterborough City Council,Support Services,Support Services,Premises,07/11/2011,416170,"28,232.03",REVENUE,Eastern Shires Purchasing Organisation
Peterborough City Council,Children's & Education Services - Children's Social Care,More than one Service Division,More than one Expenses Type,07/11/2011,416174,"1,229.27",REVENUE,Children & Families Looked After Children
Peterborough City Council,More than one Service Area Category,More than one Service Division,More than one Expenses Type,07/11/2011,416188,"8,105.39",REVENUE,Peterborough City Council
Peterborough City Council,Adult Social Care,Adult Social Care,Third Party Payments,07/11/2011,416229,"3,305,909.10",REVENUE,Peterborough PCT
Peterborough City Council,More than one Service Area Category,More than one Service Division,Balance Sheet,08/11/2011,412908,570,Balance Sheet,Her Majesty's Revenue and Customs
Peterborough City Council,More than one Service Area Category,More than one Service Division,Balance Sheet,08/11/2011,413492,-570,Balance Sheet,Her Majesty's Revenue and Customs
Peterborough City Council,Support Services,Support Services,Employees,09/11/2011,400141,"2,787.00",REVENUE,Law Absolute (PS2) Ltd
Peterborough City Council,Children's & Education Services - Education,Non-School Funding,Supplies and Services,09/11/2011,400441,"22,411.00",REVENUE,Treloar School
Peterborough City Council,"Highways, Roads & Transport Services",Public Transport,Supplies and Services,09/11/2011,410139,"3,978.00",REVENUE,Stagecoach Viscount
Peterborough City Council,Children's & Education Services - Children's Social Care,Children Looked After,Supplies and Services - Transfer Payments,09/11/2011,410441,"8,289.71",REVENUE,I S P
Peterborough City Council,Children's & Education Services - Children's Social Care,Children Looked After,Supplies and Services - Transfer Payments,09/11/2011,410649,"3,260.89",REVENUE,Alliance Foster Care
Peterborough City Council,Capital,Capital,Capital Pending Update to BS,09/11/2011,412030,"1,719.60",CAPITAL,UK Power Networks (operations) Ltd
Peterborough City Council,Housing Services,Housing Benefits,Employees,09/11/2011,412507,"1,335.00",REVENUE,The Synergy Group
Peterborough City Council,Children's & Education Services - Children's Social Care,Children Looked After,Employees,09/11/2011,412509,"1,020.00",REVENUE,Ace Tones Music Ltd
Peterborough City Council,Cultural and Related Services,Waste Collection,Supplies and Services,09/11/2011,412510,"9,816.95",REVENUE,H W Martin Waste Ltd
Peterborough City Council,Support Services,Support Services,Employees,09/11/2011,412511,"1,518.42",REVENUE,Venn Group Ltd
Peterborough City Council,Support Services,Support Services,Employees,09/11/2011,412512,"1,327.03",REVENUE,Venn Group Ltd
Peterborough City Council,Central Services to the Public,Local Tax,More than one Expenses Type,09/11/2011,412522,"1,804.80",REVENUE,The Synergy Group
Peterborough City Council,Central Services to the Public,Local Tax,Employees,09/11/2011,412523,"1,843.20",REVENUE,The Synergy Group
Peterborough City Council,Children's & Education Services - Children's Social Care,Children Looked After,Employees,09/11/2011,412615,547.48,REVENUE,Randstad Care Ltd
Peterborough City Council,Children's & Education Services - Children's Social Care,Support Services & Management Costs,Employees,09/11/2011,412617,"1,529.14",REVENUE,Randstad Care Ltd
Peterborough City Council,Children's & Education Services - Children's Social Care,Other Children's & Families Services,Employees,09/11/2011,412618,"2,901.49",REVENUE,Randstad Care Ltd
Peterborough City Council,Children's & Education Services - Children's Social Care,Children Looked After,Employees,09/11/2011,412621,921.37,REVENUE,Randstad Care Ltd
Peterborough City Council,Housing Services,Private Sector Housing Renewal,Supplies and Services,09/11/2011,412649,"1,419.50",REVENUE,Nightingale Services
Peterborough City Council,Planning Services,Economic Development,Employees,09/11/2011,412737,"1,355.86",REVENUE,The Synergy Group
Peterborough City Council,Planning Services,Economic Development,Employees,09/11/2011,412738,"1,181.11",REVENUE,The Synergy Group
Peterborough City Council,Planning Services,Economic Development,Employees,09/11/2011,412744,"1,870.02",REVENUE,The Synergy Group
Peterborough City Council,Planning Services,Economic Development,Employees,09/11/2011,412748,"5,206.46",REVENUE,The Synergy Group
Peterborough City Council,Capital,Capital,Capital Pending Update to BS,09/11/2011,412786,"9,345.00",CAPITAL,Prescient Power Ltd
Peterborough City Council,Children's & Education Services - Children's Social Care,Management and support services,Premises,09/11/2011,412833,925,REVENUE,Nick Smith Building & Maintenance
Peterborough City Council,Capital,Capital,Capital Pending Update to BS,09/11/2011,412933,576,CAPITAL,Quadrant Security Group Ltd
Peterborough City Council,"Highways, Roads & Transport Services","Transport planning, policy and strategy",Transport,09/11/2011,412939,815.06,REVENUE,Atkins Limited
Peterborough City Council,"Highways, Roads & Transport Services","Transport planning, policy and strategy",Transport,09/11/2011,412942,"3,101.68",REVENUE,Atkins Limited
Peterborough City Council,Capital,Capital,Capital Pending Update to BS,09/11/2011,412943,"2,442.79",CAPITAL,Atkins Limited
Peterborough City Council,Capital,Capital,Capital Pending Update to BS,09/11/2011,412944,"1,528.12",CAPITAL,Atkins Limited
Peterborough City Council,Capital,Capital,Capital Pending Update to BS,09/11/2011,412947,"4,735.84",CAPITAL,Atkins Limited
Peterborough City Council,"Highways, Roads & Transport Services",Street Lighting,Transport,09/11/2011,412948,"7,706.99",REVENUE,Atkins Limited
Peterborough City Council,Capital,Capital,Capital Pending Update to BS,09/11/2011,412949,"2,698.51",CAPITAL,Atkins Limited
Peterborough City Council,Children's & Education Services - Children's Social Care,Support Services & Management Costs,Employees,09/11/2011,412950,"1,614.06",REVENUE,Service Care Solutions Ltd
Peterborough City Council,"Highways, Roads & Transport Services","Transport planning, policy and strategy",Transport,09/11/2011,412951,"2,455.58",REVENUE,Atkins Limited
Peterborough City Council,Children's & Education Services - Education,Secondary,Transport,09/11/2011,412952,"7,200.00",REVENUE,Atkins Limited
Peterborough City Council,"Highways, Roads & Transport Services",Highways/road (structural),Transport,09/11/2011,412953,"3,273.62",REVENUE,Atkins Limited
Peterborough City Council,"Highways, Roads & Transport Services","Transport planning, policy and strategy",Transport,09/11/2011,412956,"4,310.76",REVENUE,Atkins Limited
Peterborough City Council,"Highways, Roads & Transport Services","Transport planning, policy and strategy",Transport,09/11/2011,412958,"2,609.78",REVENUE,Atkins Limited
Peterborough City Council,"Highways, Roads & Transport Services",Winter Service,Transport,09/11/2011,412959,"6,312.28",REVENUE,Atkins Limited
Peterborough City Council,Capital,Capital,Capital Pending Update to BS,09/11/2011,412960,"7,672.02",CAPITAL,Atkins Limited
Peterborough City Council,"Highways, Roads & Transport Services","Transport planning, policy and strategy",Transport,09/11/2011,412961,"1,115.65",REVENUE,Atkins Limited
Peterborough City Council,Capital,Capital,Capital Pending Update to BS,09/11/2011,412962,"8,866.70",CAPITAL,Atkins Limited
Peterborough City Council,Capital,Capital,Capital Pending Update to BS,09/11/2011,412963,"1,845.60",CAPITAL,Atkins Limited
Peterborough City Council,Capital,Capital,Capital Pending Update to BS,09/11/2011,412966,"4,828.20",CAPITAL,Atkins Limited
Peterborough City Council,Cultural and Related Services,Culture & Heritage,Employees,09/11/2011,412973,600,REVENUE,The Morton Partnership
Peterborough City Council,Capital,Capital,Capital Pending Update to BS,09/11/2011,412987,"39,600.00",CAPITAL,Ringway Infrastructure Services
Peterborough City Council,Capital,Capital,Capital Pending Update to BS,09/11/2011,412992,"69,977.88",CAPITAL,Ringway Infrastructure Services
Peterborough City Council,Children's & Education Services - Children's Social Care,Children Looked After,Employees,09/11/2011,413016,"1,194.41",REVENUE,Advantage Healthcare Nursing & Care Ltd
Peterborough City Council,Corporate & Democratic Core,Democratic Representation & Managemetn,Supplies and Services,09/11/2011,413062,"1,152.00",REVENUE,House of Logos Ltd
Peterborough City Council,Planning Services,Community Safety (CCTV),Supplies and Services,09/11/2011,413085,"3,735.60",REVENUE,Quadrant Security Group Ltd
Peterborough City Council,Children's & Education Services - Education,Children's Services - Commissioning and Social Work,Supplies and Services,09/11/2011,413086,507.6,REVENUE,Bretton Caterers
Peterborough City Council,Planning Services,Economic Development,Employees,09/11/2011,413142,"2,877.60",REVENUE,Macdonald & Company
Peterborough City Council,More than one Service Area Category,More than one Service Division,Balance Sheet,09/11/2011,413193,686.9,Balance Sheet,Rossendales C B Ltd
Peterborough City Council,Children's & Education Services - Education,Non-School Funding,Supplies and Services,09/11/2011,413215,600,REVENUE,Stagecoach in Peterborough
Peterborough City Council,Children's & Education Services - Children's Social Care,Support Services & Management Costs,Supplies and Services,09/11/2011,413238,"1,500.00",REVENUE,"Jerman, Mr Anthony"
Peterborough City Council,Capital,Capital,Capital Pending Update to BS,09/11/2011,413239,"3,962.86",CAPITAL,Atkins Limited
Peterborough City Council,Capital,Capital,Capital Pending Update to BS,09/11/2011,413244,"1,479.82",CAPITAL,Atkins Limited
Peterborough City Council,"Highways, Roads & Transport Services","Transport planning, policy and strategy",Transport,09/11/2011,413260,959.64,REVENUE,Atkins Limited
Peterborough City Council,"Highways, Roads & Transport Services","Transport planning, policy and strategy",Transport,09/11/2011,413272,"5,478.31",REVENUE,Atkins Limited
Peterborough City Council,Capital,Capital,Capital Pending Update to BS,09/11/2011,413275,"4,863.67",CAPITAL,Atkins Limited
Peterborough City Council,"Highways, Roads & Transport Services","Environmental, Safety & Routine Maintenance",Transport,09/11/2011,413276,"19,682.58",REVENUE,Atkins Limited
Peterborough City Council,Capital,Capital,Capital Pending Update to BS,09/11/2011,413279,767.86,CAPITAL,Atkins Limited
Peterborough City Council,Capital,Capital,Capital Pending Update to BS,09/11/2011,413282,"23,615.45",CAPITAL,Atkins Limited
Peterborough City Council,Capital,Capital,Capital Pending Update to BS,09/11/2011,413285,872.9,CAPITAL,Atkins Limited
Peterborough City Council,Cultural and Related Services,Recreation & Sport,Supplies and Services,09/11/2011,413300,"2,386.80",REVENUE,East of England Ambulance NHS Trust
Peterborough City Council,Capital,Capital,Capital Pending Update to BS,09/11/2011,413308,"5,167.07",CAPITAL,Richard Rogers Conservation Ltd
Peterborough City Council,Support Services,Support Services,Premises,09/11/2011,413398,847.2,REVENUE,Leeton Electrical Ltd
Peterborough City Council,Children's & Education Services - Education,Non-School Funding,Supplies and Services,09/11/2011,413399,"3,375.00",REVENUE,University College Northampton
Peterborough City Council,Children's & Education Services - Children's Social Care,Children's Services - Commissioning and Social Work,Third Party Payments,09/11/2011,413439,"9,927.25",REVENUE,DRINKSENSE
Peterborough City Council,Children's & Education Services - Children's Social Care,Other Children's & Families Services,Employees,09/11/2011,413468,"1,764.00",REVENUE,Sellick Partnership Group Limited
Peterborough City Council,More than one Service Area Category,More than one Service Division,Supplies and Services,09/11/2011,413511,"3,352.33",REVENUE,TNT Post Midlands Ltd
Peterborough City Council,"Highways, Roads & Transport Services",Public Transport,Supplies and Services,09/11/2011,413525,"34,588.81",REVENUE,Stagecoach in Peterborough
Peterborough City Council,Children's & Education Services - Education,Non-School Funding,Employees,09/11/2011,414016,666,REVENUE,Mana Resourcing Ltd
Peterborough City Council,Children's & Education Services - Children's Social Care,Other Children's & Families Services,Employees,09/11/2011,414042,"1,894.99",REVENUE,Sanctuary Personnel Ltd
Peterborough City Council,Support Services,Support Services,Supplies and Services,09/11/2011,414540,"1,194.00",REVENUE,Baymedia
Peterborough City Council,Housing Services,Homelessness,Supplies and Services,09/11/2011,414565,612.5,REVENUE,DA Rosalia Hotel
Peterborough City Council,Housing Services,Homelessness,Supplies and Services,09/11/2011,414608,786.1,REVENUE,DA Rosalia Hotel
Peterborough City Council,Housing Services,Homelessness,Supplies and Services,09/11/2011,414612,571.2,REVENUE,DA Rosalia Hotel
Peterborough City Council,"Highways, Roads & Transport Services",Public Transport,Supplies and Services,09/11/2011,414670,"17,867.60",REVENUE,Stagecoach in Peterborough
Peterborough City Council,Capital,Capital,Capital Pending Update to BS,09/11/2011,414747,"284,824.31",CAPITAL,Ringway Infrastructure Services
Peterborough City Council,Children's & Education Services - Children's Social Care,Children Looked After,Employees,09/11/2011,414753,"1,287.60",REVENUE,Frontline Staffing Ltd
Peterborough City Council,Planning Services,Economic Development,Employees,09/11/2011,414822,676.66,REVENUE,Redacted Personal Data
Peterborough City Council,Cultural and Related Services,Waste Collection,Premises,09/11/2011,414829,"13,800.00",REVENUE,Waste Recycling Ltd
Peterborough City Council,More than one Service Area Category,More than one Service Division,Transport,09/11/2011,414863,891.6,REVENUE,R T Enterprises Ltd T/A Royal Taxis
Peterborough City Council,Capital,Capital,Capital Pending Update to BS,09/11/2011,414921,"87,215.04",CAPITAL,Lindum Group Ltd
Peterborough City Council,Children's & Education Services - Education,Secondary,Supplies and Services,09/11/2011,414965,"10,000.00",REVENUE,Opportunity Peterborough
Peterborough City Council,Capital,Capital,Capital Pending Update to BS,09/11/2011,415122,"95,374.12",CAPITAL,Benchmark Contracts Ltd
Peterborough City Council,Children's & Education Services - Children's Social Care,Children Looked After,Supplies and Services - Transfer Payments,09/11/2011,415133,"5,240.55",REVENUE,Foster Care Associates Ltd FCA
Peterborough City Council,Children's & Education Services - Children's Social Care,Children Looked After,Supplies and Services - Transfer Payments,09/11/2011,415135,"3,556.01",REVENUE,Foster Care Associates Ltd FCA
Peterborough City Council,Children's & Education Services - Children's Social Care,Children Looked After,Supplies and Services - Transfer Payments,09/11/2011,415138,"2,907.49",REVENUE,Foster Care Associates Ltd FCA
Peterborough City Council,Children's & Education Services - Children's Social Care,Children Looked After,Supplies and Services - Transfer Payments,09/11/2011,415142,"3,556.01",REVENUE,Foster Care Associates Ltd FCA
Peterborough City Council,Children's & Education Services - Children's Social Care,Children Looked After,Supplies and Services - Transfer Payments,09/11/2011,415144,573.55,REVENUE,Foster Care Associates Ltd FCA
Peterborough City Council,Children's & Education Services - Children's Social Care,Children Looked After,Supplies and Services - Transfer Payments,09/11/2011,415156,"2,907.49",REVENUE,Nene Valley Fostering Agency
Peterborough City Council,"Highways, Roads & Transport Services",Parking Services,Premises,09/11/2011,415299,906.18,REVENUE,E.ON Energy
Peterborough City Council,Children's & Education Services - Education,Non-School Funding,Transport,09/11/2011,415399,"2,696.00",REVENUE,Aardvark Coaches
Peterborough City Council,Children's & Education Services - Education,Non-School Funding,Transport,09/11/2011,415400,"2,312.00",REVENUE,Aardvark Coaches
Peterborough City Council,Children's & Education Services - Education,Non-School Funding,Transport,09/11/2011,415401,"2,336.00",REVENUE,Aardvark Coaches
Peterborough City Council,Children's & Education Services - Education,Non-School Funding,Transport,09/11/2011,415402,"2,632.00",REVENUE,Aardvark Coaches
Peterborough City Council,Children's & Education Services - Education,Non-School Funding,Transport,09/11/2011,415403,"2,768.00",REVENUE,Aardvark Coaches
Peterborough City Council,Children's & Education Services - Children's Social Care,Children Looked After,Supplies and Services - Transfer Payments,09/11/2011,415469,"3,556.01",REVENUE,Foster Care Associates Ltd FCA
Peterborough City Council,Children's & Education Services - Children's Social Care,Children Looked After,Supplies and Services - Transfer Payments,09/11/2011,415472,"3,556.01",REVENUE,Foster Care Associates Ltd FCA
Peterborough City Council,Children's & Education Services - Children's Social Care,Children Looked After,Supplies and Services - Transfer Payments,09/11/2011,415476,"2,907.49",REVENUE,Foster Care Associates Ltd FCA
Peterborough City Council,Children's & Education Services - Children's Social Care,Children Looked After,Supplies and Services - Transfer Payments,09/11/2011,415480,"3,556.01",REVENUE,Foster Care Associates Ltd FCA
Peterborough City Council,Children's & Education Services - Children's Social Care,Children Looked After,Supplies and Services - Transfer Payments,09/11/2011,415483,"2,907.49",REVENUE,Foster Care Associates Ltd FCA
Peterborough City Council,Children's & Education Services - Children's Social Care,Children Looked After,Supplies and Services - Transfer Payments,09/11/2011,415485,"2,907.49",REVENUE,Foster Care Associates Ltd FCA
Peterborough City Council,Children's & Education Services - Children's Social Care,Children Looked After,Supplies and Services - Transfer Payments,09/11/2011,415492,"2,907.49",REVENUE,Foster Care Associates Ltd FCA
Peterborough City Council,Children's & Education Services - Children's Social Care,Children Looked After,Supplies and Services - Transfer Payments,09/11/2011,415494,"3,556.01",REVENUE,Foster Care Associates Ltd FCA
Peterborough City Council,Children's & Education Services - Children's Social Care,Children Looked After,Supplies and Services - Transfer Payments,09/11/2011,415498,"2,907.49",REVENUE,Foster Care Associates Ltd FCA
Peterborough City Council,Cultural and Related Services,Tourism,Supplies and Services,09/11/2011,415582,587.39,REVENUE,National Express Ltd
Peterborough City Council,More than one Service Area Category,More than one Service Division,Balance Sheet,09/11/2011,415664,"6,000.00",Balance Sheet,Redacted Personal Data
Peterborough City Council,More than one Service Area Category,More than one Service Division,Balance Sheet,09/11/2011,415709,"5,000.00",Balance Sheet,Graysons with Watson Esam Solicitors
Peterborough City Council,Children's & Education Services - Children's Social Care,Children Looked After,Employees,09/11/2011,415748,962.4,REVENUE,Textbook Teachers
Peterborough City Council,Planning Services,Community Development,Supplies and Services,09/11/2011,415997,696,REVENUE,The Outstanding Events Co. Ltd
Peterborough City Council,Planning Services,Community Development,Supplies and Services,09/11/2011,415999,"2,500.00",REVENUE,Phantoms Junior Ice Hockey Club Academy
Peterborough City Council,Deficit/(Surplus) on Trading Undertakings,Trading Account Surpluses & Deficits,Supplies and Services,09/11/2011,416008,"1,368.00",REVENUE,Barron Clark Castings Ltd
Peterborough City Council,Deficit/(Surplus) on Trading Undertakings,Trading Account Surpluses & Deficits,Supplies and Services,09/11/2011,416010,"1,587.02",REVENUE,Barron Clark Castings Ltd
Peterborough City Council,Children's & Education Services - Children's Social Care,Family Support Services,Supplies and Services,09/11/2011,416110,"1,500.00",REVENUE,Redacted Personal Data
Peterborough City Council,Children's & Education Services - Children's Social Care,Family Support Services,Supplies and Services,09/11/2011,416112,"2,850.00",REVENUE,Redacted Personal Data
Peterborough City Council,Children's & Education Services - Children's Social Care,Children Looked After,More than one Expenses Type,09/11/2011,416212,"18,894.00",REVENUE,Chilworth House School
Peterborough City Council,Planning Services,Recreation & Sport,Supplies and Services,09/11/2011,416260,508.8,REVENUE,Eastern Shires Purchasing Organisation
Peterborough City Council,Support Services,Support Services,Premises,09/11/2011,416564,"1,354.83",REVENUE,EDF Energy Networks Ltd
Peterborough City Council,Support Services,Support Services,Premises,09/11/2011,416565,"2,717.76",REVENUE,Anglian Water
Peterborough City Council,Support Services,Support Services,Premises,09/11/2011,416566,821.28,REVENUE,Southern Electric
Peterborough City Council,Support Services,Support Services,Premises,09/11/2011,416567,506.76,REVENUE,Eastern Shires Purchasing Organisation
Peterborough City Council,Children's & Education Services - Children's Social Care,Family Support Services,Transport,09/11/2011,416568,840,REVENUE,W H Fowler & Son (Coaches) Ltd
Peterborough City Council,"Cultural, Environmental and Planning Services",Open Spaces,Third Party Payments,09/11/2011,416569,900,REVENUE,Elliott Group Limited
Peterborough City Council,Cultural and Related Services,Recreation & Sport,Supplies and Services,09/11/2011,416601,"4,212.25",REVENUE,Athene Communications
Peterborough City Council,Children's & Education Services - Children's Social Care,Children Looked After,Supplies and Services - Transfer Payments,09/11/2011,416627,805.04,REVENUE,Redacted Personal Data
Peterborough City Council,Children's & Education Services - Children's Social Care,Other Children's & Families Services,Supplies and Services - Transfer Payments,09/11/2011,416648,600,REVENUE,Redacted Personal Data
Peterborough City Council,Children's & Education Services - Children's Social Care,Other Children's & Families Services,Supplies and Services - Transfer Payments,09/11/2011,416649,613.6,REVENUE,Redacted Personal Data
Peterborough City Council,Children's & Education Services - Children's Social Care,Other Children's & Families Services,Supplies and Services - Transfer Payments,09/11/2011,416750,669.48,REVENUE,Redacted Personal Data
Peterborough City Council,Children's & Education Services - Children's Social Care,Children Looked After,Supplies and Services - Transfer Payments,09/11/2011,416757,616.18,REVENUE,Redacted Personal Data
Peterborough City Council,Children's & Education Services - Children's Social Care,Children Looked After,Supplies and Services - Transfer Payments,09/11/2011,416758,560.98,REVENUE,Redacted Personal Data
Peterborough City Council,Children's & Education Services - Children's Social Care,Children Looked After,Supplies and Services - Transfer Payments,09/11/2011,416759,560.98,REVENUE,Redacted Personal Data
Peterborough City Council,Children's & Education Services - Children's Social Care,Children Looked After,Supplies and Services - Transfer Payments,09/11/2011,416760,529.9,REVENUE,Redacted Personal Data
Peterborough City Council,Children's & Education Services - Children's Social Care,Children Looked After,Supplies and Services - Transfer Payments,09/11/2011,416761,560.98,REVENUE,Redacted Personal Data
Peterborough City Council,Children's & Education Services - Children's Social Care,Children Looked After,Supplies and Services - Transfer Payments,09/11/2011,416762,529.9,REVENUE,Redacted Personal Data
Peterborough City Council,Children's & Education Services - Children's Social Care,Children Looked After,Supplies and Services - Transfer Payments,09/11/2011,416764,529.9,REVENUE,Redacted Personal Data
Peterborough City Council,Children's & Education Services - Children's Social Care,Children Looked After,Supplies and Services - Transfer Payments,09/11/2011,416765,529.9,REVENUE,Redacted Personal Data
Peterborough City Council,Children's & Education Services - Children's Social Care,Children Looked After,Supplies and Services - Transfer Payments,09/11/2011,416766,529.9,REVENUE,Redacted Personal Data
Peterborough City Council,Children's & Education Services - Children's Social Care,Children Looked After,Supplies and Services - Transfer Payments,09/11/2011,416767,529.9,REVENUE,Redacted Personal Data
Peterborough City Council,Children's & Education Services - Children's Social Care,Children Looked After,Supplies and Services - Transfer Payments,09/11/2011,416768,529.9,REVENUE,Redacted Personal Data
Peterborough City Council,Children's & Education Services - Children's Social Care,Children Looked After,Supplies and Services - Transfer Payments,09/11/2011,416769,560.98,REVENUE,Redacted Personal Data
Peterborough City Council,Children's & Education Services - Children's Social Care,Children Looked After,Supplies and Services - Transfer Payments,09/11/2011,416770,529.9,REVENUE,Redacted Personal Data
Peterborough City Council,Children's & Education Services - Children's Social Care,Children Looked After,Supplies and Services - Transfer Payments,09/11/2011,416772,560.98,REVENUE,Redacted Personal Data
Peterborough City Council,Children's & Education Services - Children's Social Care,Children Looked After,Supplies and Services - Transfer Payments,09/11/2011,416773,560.98,REVENUE,Redacted Personal Data
Peterborough City Council,Children's & Education Services - Children's Social Care,Children Looked After,Supplies and Services - Transfer Payments,09/11/2011,416775,529.9,REVENUE,Redacted Personal Data
Peterborough City Council,Children's & Education Services - Children's Social Care,Children Looked After,Supplies and Services - Transfer Payments,09/11/2011,416777,560.98,REVENUE,Redacted Personal Data
Peterborough City Council,Children's & Education Services - Children's Social Care,Children Looked After,Supplies and Services - Transfer Payments,09/11/2011,416778,529.9,REVENUE,Redacted Personal Data
Peterborough City Council,Children's & Education Services - Children's Social Care,Children Looked After,Supplies and Services - Transfer Payments,09/11/2011,416779,529.9,REVENUE,Redacted Personal Data
Peterborough City Council,Children's & Education Services - Children's Social Care,Children Looked After,Supplies and Services - Transfer Payments,09/11/2011,416780,560.98,REVENUE,Redacted Personal Data
Peterborough City Council,Children's & Education Services - Children's Social Care,Children Looked After,Supplies and Services - Transfer Payments,09/11/2011,416783,529.9,REVENUE,Redacted Personal Data
Peterborough City Council,Children's & Education Services - Children's Social Care,Children Looked After,Supplies and Services - Transfer Payments,09/11/2011,416784,529.9,REVENUE,Redacted Personal Data
Peterborough City Council,Children's & Education Services - Children's Social Care,Children Looked After,Supplies and Services - Transfer Payments,09/11/2011,416785,529.9,REVENUE,Redacted Personal Data
Peterborough City Council,Children's & Education Services - Children's Social Care,Children Looked After,Supplies and Services - Transfer Payments,09/11/2011,416795,841.47,REVENUE,Redacted Personal Data
Peterborough City Council,Children's & Education Services - Children's Social Care,Children Looked After,Supplies and Services - Transfer Payments,09/11/2011,416796,885.08,REVENUE,Redacted Personal Data
Peterborough City Council,Children's & Education Services - Children's Social Care,Children Looked After,Supplies and Services - Transfer Payments,09/11/2011,416799,529.9,REVENUE,Redacted Personal Data
Peterborough City Council,Children's & Education Services - Children's Social Care,Children Looked After,Supplies and Services - Transfer Payments,09/11/2011,416800,560.98,REVENUE,Redacted Personal Data
Peterborough City Council,Children's & Education Services - Children's Social Care,Children Looked After,Supplies and Services - Transfer Payments,09/11/2011,416802,529.9,REVENUE,Redacted Personal Data
Peterborough City Council,Children's & Education Services - Children's Social Care,Children Looked After,Supplies and Services - Transfer Payments,09/11/2011,416804,560.98,REVENUE,Redacted Personal Data
Peterborough City Council,Children's & Education Services - Children's Social Care,Children Looked After,Supplies and Services - Transfer Payments,09/11/2011,416811,560.98,REVENUE,Redacted Personal Data
Peterborough City Council,Children's & Education Services - Children's Social Care,Children Looked After,Supplies and Services - Transfer Payments,09/11/2011,416820,529.9,REVENUE,Redacted Personal Data
Peterborough City Council,Children's & Education Services - Children's Social Care,Children Looked After,Supplies and Services - Transfer Payments,09/11/2011,416824,529.9,REVENUE,Redacted Personal Data
Peterborough City Council,Children's & Education Services - Children's Social Care,Children Looked After,Supplies and Services - Transfer Payments,09/11/2011,416826,529.9,REVENUE,Redacted Personal Data
Peterborough City Council,Children's & Education Services - Children's Social Care,Family Support Services,Supplies and Services,09/11/2011,416833,"1,148.22",REVENUE,Redacted Personal Data
Peterborough City Council,Children's & Education Services - Children's Social Care,Children Looked After,Supplies and Services - Transfer Payments,09/11/2011,416852,560.98,REVENUE,Redacted Personal Data
Peterborough City Council,Children's & Education Services - Children's Social Care,Children Looked After,Supplies and Services - Transfer Payments,09/11/2011,416859,885.08,REVENUE,Redacted Personal Data
Peterborough City Council,Children's & Education Services - Children's Social Care,Children Looked After,Supplies and Services - Transfer Payments,09/11/2011,416861,885.08,REVENUE,Redacted Personal Data
Peterborough City Council,Children's & Education Services - Children's Social Care,Children Looked After,Supplies and Services - Transfer Payments,09/11/2011,416862,885.08,REVENUE,Redacted Personal Data
Peterborough City Council,Children's & Education Services - Children's Social Care,Children Looked After,Supplies and Services - Transfer Payments,09/11/2011,416863,885.08,REVENUE,Redacted Personal Data
Peterborough City Council,Children's & Education Services - Children's Social Care,Children Looked After,Supplies and Services - Transfer Payments,09/11/2011,416864,885.08,REVENUE,Redacted Personal Data
Peterborough City Council,Children's & Education Services - Children's Social Care,Children Looked After,Supplies and Services - Transfer Payments,09/11/2011,416869,529.9,REVENUE,Redacted Personal Data
Peterborough City Council,Children's & Education Services - Children's Social Care,Children Looked After,Supplies and Services - Transfer Payments,09/11/2011,416882,529.9,REVENUE,Redacted Personal Data
Peterborough City Council,Children's & Education Services - Children's Social Care,Children Looked After,Supplies and Services - Transfer Payments,09/11/2011,416902,560.98,REVENUE,Redacted Personal Data
Peterborough City Council,Children's & Education Services - Children's Social Care,Children Looked After,Supplies and Services - Transfer Payments,09/11/2011,416910,560.98,REVENUE,Redacted Personal Data
Peterborough City Council,Children's & Education Services - Children's Social Care,Children Looked After,Supplies and Services - Transfer Payments,09/11/2011,416928,529.9,REVENUE,Redacted Personal Data
Peterborough City Council,Children's & Education Services - Children's Social Care,Children Looked After,Supplies and Services - Transfer Payments,09/11/2011,416930,529.9,REVENUE,Redacted Personal Data
Peterborough City Council,Children's & Education Services - Children's Social Care,Children Looked After,Supplies and Services - Transfer Payments,09/11/2011,416945,529.9,REVENUE,Redacted Personal Data
Peterborough City Council,Children's & Education Services - Children's Social Care,Children Looked After,Supplies and Services - Transfer Payments,09/11/2011,416960,661.36,REVENUE,Redacted Personal Data
Peterborough City Council,Children's & Education Services - Children's Social Care,Children Looked After,Supplies and Services - Transfer Payments,09/11/2011,416965,780.5,REVENUE,Redacted Personal Data
Peterborough City Council,Children's & Education Services - Children's Social Care,Children Looked After,Supplies and Services - Transfer Payments,09/11/2011,416966,532.56,REVENUE,Redacted Personal Data
Peterborough City Council,Children's & Education Services - Children's Social Care,Children Looked After,Supplies and Services - Transfer Payments,09/11/2011,416971,529.9,REVENUE,Redacted Personal Data
Peterborough City Council,Children's & Education Services - Children's Social Care,Children Looked After,Supplies and Services - Transfer Payments,09/11/2011,417009,967.68,REVENUE,Redacted Personal Data
Peterborough City Council,"Cultural, Environmental and Planning Services",Open Spaces,Transport,09/11/2011,417040,589.68,REVENUE,Burnt Tree Group
Peterborough City Council,"Cultural, Environmental and Planning Services",Open Spaces,Transport,09/11/2011,417041,589.68,REVENUE,Burnt Tree Group
Peterborough City Council,"Cultural, Environmental and Planning Services",Open Spaces,Transport,09/11/2011,417042,617.76,REVENUE,Burnt Tree Group
Peterborough City Council,"Cultural, Environmental and Planning Services",Open Spaces,Transport,09/11/2011,417043,645.84,REVENUE,Burnt Tree Group
Peterborough City Council,"Cultural, Environmental and Planning Services",Open Spaces,Transport,09/11/2011,417045,617.76,REVENUE,Burnt Tree Group
Peterborough City Council,"Cultural, Environmental and Planning Services",Open Spaces,Transport,09/11/2011,417048,645.84,REVENUE,Burnt Tree Group
Peterborough City Council,Capital,Capital,Capital Pending Update to BS,09/11/2011,417078,"36,149.26",CAPITAL,R G Carter Peterborough Ltd
Peterborough City Council,Children's & Education Services - Children's Social Care,Children Looked After,Supplies and Services - Transfer Payments,09/11/2011,417089,"1,826.35",REVENUE,PC Homes
Peterborough City Council,Children's & Education Services - Children's Social Care,Children Looked After,Supplies and Services - Transfer Payments,09/11/2011,417090,690,REVENUE,PC Homes
Peterborough City Council,Children's & Education Services - Children's Social Care,Children Looked After,Supplies and Services - Transfer Payments,09/11/2011,417092,690,REVENUE,PC Homes
Peterborough City Council,Children's & Education Services - Education,Secondary,Supplies and Services,09/11/2011,417097,720,REVENUE,Opportunity Peterborough
Peterborough City Council,More than one Service Area Category,More than one Service Division,Transport,09/11/2011,417178,"1,326.00",REVENUE,A2B Euro Cars
Peterborough City Council,Children's & Education Services - Education,Non-School Funding,Transport,09/11/2011,417191,"1,716.60",REVENUE,Peterborough Cars
Peterborough City Council,Children's & Education Services - Education,Non-School Funding,Transport,09/11/2011,417192,"1,281.60",REVENUE,Peterborough Cars
Peterborough City Council,Children's & Education Services - Education,Non-School Funding,Transport,09/11/2011,417193,990,REVENUE,Peterborough Cars
Peterborough City Council,Children's & Education Services - Education,Non-School Funding,More than one Expenses Type,09/11/2011,417194,655.2,REVENUE,Peterborough Cars
Peterborough City Council,Children's & Education Services - Education,Non-School Funding,Transport,09/11/2011,417195,738,REVENUE,Peterborough Cars
Peterborough City Council,Children's & Education Services - Education,Non-School Funding,Transport,09/11/2011,417196,"1,138.20",REVENUE,Goldstar Cabs Ltd
Peterborough City Council,Children's & Education Services - Education,Non-School Funding,Transport,09/11/2011,417197,729.6,REVENUE,Goldstar Cabs Ltd
Peterborough City Council,Children's & Education Services - Education,Non-School Funding,Transport,09/11/2011,417198,927,REVENUE,Goldstar Cabs Ltd
Peterborough City Council,Children's & Education Services - Education,Non-School Funding,Transport,09/11/2011,417199,"1,624.50",REVENUE,Goldstar Cabs Ltd
Peterborough City Council,Children's & Education Services - Education,Non-School Funding,Transport,09/11/2011,417200,"1,424.64",REVENUE,Goldstar Cabs Ltd
Peterborough City Council,Children's & Education Services - Education,Non-School Funding,Supplies and Services,09/11/2011,417230,"19,717.00",REVENUE,Park House School
Peterborough City Council,Children's & Education Services - Education,Non-School Funding,Supplies and Services,09/11/2011,417232,"17,253.00",REVENUE,Park House School
Peterborough City Council,Central Services to the Public,Emergency Planning,Supplies and Services,09/11/2011,417235,"2,100.00",REVENUE,Athene Communications
Peterborough City Council,Central Services to the Public,Elections,Supplies and Services,10/11/2011,417227,"1,425.96",REVENUE,Royal Mail
Peterborough City Council,More than one Service Area Category,More than one Service Division,Balance Sheet,10/11/2011,417279,566,Balance Sheet,Dept for Work & Pensions
Peterborough City Council,More than one Service Area Category,Economic Development,More than one Expenses Type,11/11/2011,390856,954,REVENUE,Nabma
Peterborough City Council,Housing Services,Homelessness,Supplies and Services,11/11/2011,396057,"2,615.27",REVENUE,Northgate Information Solutions
Peterborough City Council,Capital,Capital,Capital Pending Update to BS,11/11/2011,407471,"2,330.81",CAPITAL,Atkins Limited
Peterborough City Council,Planning Services,Community Development,Supplies and Services,11/11/2011,410182,727.7,REVENUE,Serco Ltd
Peterborough City Council,Children's & Education Services - Children's Social Care,Children Looked After,Supplies and Services - Transfer Payments,11/11/2011,410715,"3,011.43",REVENUE,Nene Valley Fostering Agency
Peterborough City Council,Environmental and Regulatory Services,Regulatory services,Supplies and Services,11/11/2011,414764,"2,508.24",REVENUE,Tejaycey Boarding Kennels and Cattery
Peterborough City Council,Environmental and Regulatory Services,Regulatory services,Supplies and Services,11/11/2011,414766,"1,644.52",REVENUE,Tejaycey Boarding Kennels and Cattery
Peterborough City Council,Support Services,Support Services,Supplies and Services,11/11/2011,415799,"1,506.00",REVENUE,Browne Jacobson
Peterborough City Council,Support Services,Support Services,Supplies and Services,11/11/2011,415879,801,REVENUE,Browne Jacobson
Peterborough City Council,Planning Services,Community Development,Supplies and Services,11/11/2011,417236,500,REVENUE,Sutton Court Residents Association
Peterborough City Council,Children's & Education Services - Education,Non-School Funding,Supplies and Services,11/11/2011,417252,"2,468.40",REVENUE,The Teddy Bears inn Day Nursery
Peterborough City Council,Children's & Education Services - Education,Non-School Funding,Supplies and Services,11/11/2011,417254,677.6,REVENUE,Pakistan Comm Ass of PBoro Pre- School
Peterborough City Council,Children's & Education Services - Education,Non-School Funding,Supplies and Services,11/11/2011,417259,504,REVENUE,First Steps Nursery (Maxey) Ltd
Peterborough City Council,Children's & Education Services - Children's Social Care,Children Looked After,Supplies and Services - Transfer Payments,11/11/2011,417300,"3,410.00",REVENUE,Acorn Fostering Services Ltd
Peterborough City Council,Planning Services,Economic Development,Third Party Payments,11/11/2011,417315,700,REVENUE,Copeland Community Association
Peterborough City Council,Children's & Education Services - Children's Social Care,Youth Justice,Supplies and Services,11/11/2011,417324,"8,063.00",REVENUE,YMCA Cambridge & Peterborough
Peterborough City Council,Support Services,Support Services,Premises,11/11/2011,417388,503.33,REVENUE,British Gas Business
Peterborough City Council,Children's & Education Services - Education,Secondary,Employees,11/11/2011,417424,"3,992.40",REVENUE,Mana Resourcing Ltd
Peterborough City Council,Children's & Education Services - Education,Secondary,Employees,11/11/2011,417425,"3,462.67",REVENUE,Mana Resourcing Ltd
Peterborough City Council,Children's & Education Services - Children's Social Care,Other Children's & Families Services,Supplies and Services,11/11/2011,417426,763.25,REVENUE,Redacted Personal Data
Peterborough City Council,Support Services,Support Services,Premises,11/11/2011,417463,"1,500.00",REVENUE,Redacted Personal Data
Peterborough City Council,Children's & Education Services - Education,Secondary,Employees,11/11/2011,417502,"3,108.00",REVENUE,Mana Resourcing Ltd
Peterborough City Council,More than one Service Area Category,More than one Service Division,More than one Expenses Type,11/11/2011,417519,"1,135.00","Mixture of Capital, Revenue and/or Balance Sheet",Obam Domestic Lift Services Ltd
Peterborough City Council,More than one Service Area Category,More than one Service Division,More than one Expenses Type,11/11/2011,417520,"4,324.95","Mixture of Capital, Revenue and/or Balance Sheet",Optimum Plumbing & Heating Ltd
Peterborough City Council,More than one Service Area Category,More than one Service Division,More than one Expenses Type,11/11/2011,417538,"1,600.00","Mixture of Capital, Revenue and/or Balance Sheet",Obam Domestic Lift Services Ltd
Peterborough City Council,More than one Service Area Category,More than one Service Division,More than one Expenses Type,11/11/2011,417698,"3,697.00","Mixture of Capital, Revenue and/or Balance Sheet",Obam Domestic Lift Services Ltd
Peterborough City Council,Children's & Education Services - Education,Secondary,Employees,11/11/2011,417699,"1,128.00",REVENUE,Mana Resourcing Ltd
Peterborough City Council,Support Services,Support Services,Supplies and Services,11/11/2011,417703,"1,026.60",REVENUE,Browne Jacobson
Peterborough City Council,Support Services,Support Services,Supplies and Services,11/11/2011,417704,864.6,REVENUE,Browne Jacobson
Peterborough City Council,Children's & Education Services - Education,Non-School Funding,Transport,11/11/2011,417726,"1,327.20",REVENUE,Woodgrange Travel Ltd t/a DiamondCars
Peterborough City Council,Children's & Education Services - Education,Non-School Funding,Transport,11/11/2011,417733,871,REVENUE,Peterborough Cars
Peterborough City Council,Children's & Education Services - Education,Non-School Funding,Transport,11/11/2011,417734,"1,073.28",REVENUE,Goldstar Cabs Ltd
Peterborough City Council,Children's & Education Services - Education,Non-School Funding,Transport,11/11/2011,417735,"1,068.00",REVENUE,Goldstar Cabs Ltd
Peterborough City Council,Children's & Education Services - Education,Non-School Funding,Transport,11/11/2011,417736,576,REVENUE,Goldstar Cabs Ltd
Peterborough City Council,Children's & Education Services - Education,Non-School Funding,Transport,11/11/2011,417737,"1,211.04",REVENUE,Goldstar Cabs Ltd
Peterborough City Council,Children's & Education Services - Education,Non-School Funding,Transport,11/11/2011,417738,"1,476.00",REVENUE,Goldstar Cabs Ltd
Peterborough City Council,Children's & Education Services - Education,Non-School Funding,Transport,11/11/2011,417739,"1,512.00",REVENUE,Goldstar Cabs Ltd
Peterborough City Council,Children's & Education Services - Education,Non-School Funding,Transport,11/11/2011,417745,872.6,REVENUE,Redacted Personal Data
Peterborough City Council,Children's & Education Services - Children's Social Care,Children Looked After,Transport,11/11/2011,417746,721.35,REVENUE,Redacted Personal Data
Peterborough City Council,Deficit/(Surplus) on Trading Undertakings,Trading Account Surpluses & Deficits,Supplies and Services,11/11/2011,417747,673.51,REVENUE,O2 (UK) Ltd
Peterborough City Council,Deficit/(Surplus) on Trading Undertakings,Trading Account Surpluses & Deficits,Supplies and Services,11/11/2011,417748,645.14,REVENUE,O2 (UK) Ltd
Peterborough City Council,More than one Service Area Category,More than one Service Division,More than one Expenses Type,11/11/2011,417832,"4,479.60","Mixture of Capital, Revenue and/or Balance Sheet",Jones Heating Ltd
Peterborough City Council,Children's & Education Services - Children's Social Care,More than one Service Division,More than one Expenses Type,11/11/2011,417853,"1,085.14",REVENUE,Children & Families Looked After Children
Peterborough City Council,More than one Service Area Category,More than one Service Division,More than one Expenses Type,11/11/2011,417859,"4,343.00","Mixture of Capital, Revenue and/or Balance Sheet",M J Greaves
Peterborough City Council,Capital,Capital,Capital Pending Update to BS,11/11/2011,417865,"24,361.93",CAPITAL,Richard Rogers Conservation Ltd
Peterborough City Council,More than one Service Area Category,More than one Service Division,More than one Expenses Type,11/11/2011,417872,"4,190.00","Mixture of Capital, Revenue and/or Balance Sheet",M M Heating & Plumbing
Peterborough City Council,More than one Service Area Category,More than one Service Division,More than one Expenses Type,11/11/2011,417881,"2,467.73","Mixture of Capital, Revenue and/or Balance Sheet",M M Heating & Plumbing
Peterborough City Council,Cultural and Related Services,Waste Collection,Supplies and Services,11/11/2011,417889,709.1,REVENUE,Augean South Ltd
Peterborough City Council,Children's & Education Services - Children's Social Care,Family Support Services,More than one Expenses Type,11/11/2011,417899,957.62,REVENUE,Cherry Lodge
Peterborough City Council,Children's & Education Services - Children's Social Care,Children Looked After,More than one Expenses Type,11/11/2011,417909,640.88,REVENUE,Clare Lodge Secure Unit
Peterborough City Council,Planning Services,Economic Development,Third Party Payments,11/11/2011,417932,"2,212.50",REVENUE,Victim Support Cambridgeshire
Peterborough City Council,Deficit/(Surplus) on Trading Undertakings,Trading Account Surpluses & Deficits,Supplies and Services,11/11/2011,417939,"1,452.96",REVENUE,Barron Clark Castings Ltd
Peterborough City Council,Deficit/(Surplus) on Trading Undertakings,Trading Account Surpluses & Deficits,Supplies and Services,11/11/2011,417941,684,REVENUE,Barron Clark Castings Ltd
Peterborough City Council,Deficit/(Surplus) on Trading Undertakings,Trading Account Surpluses & Deficits,Supplies and Services,11/11/2011,417942,"2,577.02",REVENUE,Barron Clark Castings Ltd
Peterborough City Council,Children's & Education Services - Children's Social Care,Children Looked After,Supplies and Services - Transfer Payments,11/11/2011,417945,"2,840.84",REVENUE,National Fostering Agency
Peterborough City Council,Children's & Education Services - Children's Social Care,Children Looked After,Supplies and Services - Transfer Payments,11/11/2011,417948,"3,414.34",REVENUE,National Fostering Agency
Peterborough City Council,Children's & Education Services - Children's Social Care,Children Looked After,Supplies and Services - Transfer Payments,11/11/2011,417950,"1,431.82",REVENUE,National Fostering Agency
Peterborough City Council,Children's & Education Services - Children's Social Care,Children Looked After,Supplies and Services - Transfer Payments,11/11/2011,417953,"3,074.27",REVENUE,National Fostering Agency
Peterborough City Council,Children's & Education Services - Children's Social Care,Children Looked After,Supplies and Services - Transfer Payments,11/11/2011,417956,"3,414.34",REVENUE,National Fostering Agency
Peterborough City Council,Children's & Education Services - Children's Social Care,Children Looked After,Supplies and Services - Transfer Payments,11/11/2011,417958,"3,414.34",REVENUE,National Fostering Agency
Peterborough City Council,Deficit/(Surplus) on Trading Undertakings,Trading Account Surpluses & Deficits,Supplies and Services,11/11/2011,417964,913.2,REVENUE,British Standards Institute
Peterborough City Council,Support Services,Support Services,Premises,11/11/2011,417987,535.23,REVENUE,British Gas Business
Peterborough City Council,Support Services,Support Services,Premises,11/11/2011,417989,554.58,REVENUE,Anglian Water
Peterborough City Council,Support Services,Support Services,Premises,11/11/2011,417992,"48,569.56",REVENUE,Southern Electric
Peterborough City Council,Corporate & Democratic Core,Democratic Representation & Managemetn,Employees,11/11/2011,418006,539.89,REVENUE,Reed Specialist Recruitment
Peterborough City Council,Housing Services,Homelessness,Supplies and Services,11/11/2011,418026,550,REVENUE,Renaissance Property Mngmnt
Peterborough City Council,Children's & Education Services - Children's Social Care,Family Support Services,Employees,14/11/2011,388703,"2,985.54",REVENUE,Nottingham Rehab Ltd
Peterborough City Council,More than one Service Area Category,More than one Service Division,Balance Sheet,14/11/2011,390226,623.53,Balance Sheet,Equita Ltd
Peterborough City Council,Support Services,Support Services,Employees,14/11/2011,406575,926.42,REVENUE,Venn Group Ltd
Peterborough City Council,Support Services,Support Services,Employees,14/11/2011,407288,"1,326.67",REVENUE,Venn Group Ltd
Peterborough City Council,Support Services,Support Services,Employees,14/11/2011,407589,"1,544.75",REVENUE,Venn Group Ltd
Peterborough City Council,Housing Services,Housing Benefits,Employees,14/11/2011,407822,"1,839.26",REVENUE,Badenoch & Clark
Peterborough City Council,Housing Services,Housing Benefits,Employees,14/11/2011,409523,"1,855.69",REVENUE,Badenoch & Clark
Peterborough City Council,Adult Social Care,Other Adult Services,Third Party Payments,14/11/2011,410288,"126,158.00",REVENUE,CRI
Peterborough City Council,Children's & Education Services - Children's Social Care,Other Children's & Families Services,Employees,14/11/2011,410722,"1,609.50",REVENUE,Care Recruitment UK Ltd
Peterborough City Council,Adult Social Care,Other Adult Services,Supplies and Services,14/11/2011,410910,500,REVENUE,Cambs & P'boro NHS Foundation Trust
Peterborough City Council,Adult Social Care,Other Adult Services,Supplies and Services,14/11/2011,410911,"8,335.71",REVENUE,Cambs & P'boro NHS Foundation Trust
Peterborough City Council,Adult Social Care,Other Adult Services,Supplies and Services,14/11/2011,410912,"61,833.33",REVENUE,Cambs & P'boro NHS Foundation Trust
Peterborough City Council,Adult Social Care,Other Adult Services,Supplies and Services,14/11/2011,410938,"4,902.71",REVENUE,Cambs & P'boro NHS Foundation Trust
Peterborough City Council,Adult Social Care,Other Adult Services,Supplies and Services,14/11/2011,410941,"13,336.71",REVENUE,Cambs & P'boro NHS Foundation Trust
Peterborough City Council,Adult Social Care,Other Adult Services,Supplies and Services,14/11/2011,411517,"2,375.71",REVENUE,Cambs & P'boro NHS Foundation Trust
Peterborough City Council,Adult Social Care,Other Adult Services,Third Party Payments,14/11/2011,411518,"71,971.43",REVENUE,Cambs & P'boro NHS Foundation Trust
Peterborough City Council,Housing Services,Housing Benefits,Employees,14/11/2011,412059,"1,839.26",REVENUE,Badenoch & Clark
Peterborough City Council,Housing Services,Housing Benefits,Employees,14/11/2011,412515,"1,855.69",REVENUE,Badenoch & Clark
Peterborough City Council,Children's & Education Services - Children's Social Care,Other Children's & Families Services,Employees,14/11/2011,412787,"1,609.50",REVENUE,Care Recruitment UK Ltd
Peterborough City Council,Children's & Education Services - Children's Social Care,Service Strategy,Employees,14/11/2011,412846,621.3,REVENUE,Gosfield House
Peterborough City Council,Support Services,Support Services,Premises,14/11/2011,413015,"6,533.52",REVENUE,Baker Perkins Ltd
Peterborough City Council,Children's & Education Services - Children's Social Care,Other Children's & Families Services,Employees,14/11/2011,413081,"1,809.00",REVENUE,Care Recruitment UK Ltd
Peterborough City Council,Capital,Capital,Capital Pending Update to BS,14/11/2011,413189,"63,964.13",CAPITAL,E N Suiter & Sons Ltd
Peterborough City Council,Housing Services,Homelessness,Supplies and Services,14/11/2011,413296,702.55,REVENUE,Euro RSCG Riley Ltd
Peterborough City Council,Children's & Education Services - Children's Social Care,Support Services & Management Costs,Supplies and Services,14/11/2011,413307,780,REVENUE,"Elliott, Ms Margot"
Peterborough City Council,Children's & Education Services - Education,Secondary,Supplies and Services,14/11/2011,413322,510,REVENUE,Andrew Belson Arboricultural Con.
Peterborough City Council,More than one Service Area Category,More than one Service Division,More than one Expenses Type,14/11/2011,413355,"1,530.00","Mixture of Capital, Revenue and/or Balance Sheet",Dolphin Mobility East Midlands Ltd
Peterborough City Council,More than one Service Area Category,More than one Service Division,More than one Expenses Type,14/11/2011,413357,"4,755.00","Mixture of Capital, Revenue and/or Balance Sheet",EMS Stairlifts
Peterborough City Council,More than one Service Area Category,More than one Service Division,More than one Expenses Type,14/11/2011,413359,"4,335.00","Mixture of Capital, Revenue and/or Balance Sheet",Obam Domestic Lift Services Ltd
Peterborough City Council,More than one Service Area Category,More than one Service Division,More than one Expenses Type,14/11/2011,413361,"1,584.00","Mixture of Capital, Revenue and/or Balance Sheet",Dolphin Mobility East Midlands Ltd
Peterborough City Council,More than one Service Area Category,More than one Service Division,More than one Expenses Type,14/11/2011,413364,"3,512.00","Mixture of Capital, Revenue and/or Balance Sheet",Morley Building Services
Peterborough City Council,Capital,Capital,Capital Pending Update to BS,14/11/2011,413444,"63,414.78",CAPITAL,Servaccomm Redhall Ltd
Peterborough City Council,Children's & Education Services - Children's Social Care,Other Children's & Families Services,Employees,14/11/2011,413450,"2,231.18",REVENUE,Randstad Care Ltd
Peterborough City Council,Children's & Education Services - Children's Social Care,Support Services & Management Costs,Supplies and Services,14/11/2011,413466,775.45,REVENUE,Redacted Personal Data
Peterborough City Council,Capital,Capital,Capital Pending Update to BS,14/11/2011,413470,"6,989.64",CAPITAL,Ground Engineering Ltd
Peterborough City Council,Children's & Education Services - Education,Non-School Funding,Employees,14/11/2011,413471,"3,589.20",REVENUE,National Childminding Association
Peterborough City Council,Deficit/(Surplus) on Trading Undertakings,Trading Account Surpluses & Deficits,Supplies and Services,14/11/2011,413689,669.6,REVENUE,A1 Steel
Peterborough City Council,Cultural and Related Services,Tourism,Supplies and Services,14/11/2011,413705,"1,331.70",REVENUE,Serco Ltd
Peterborough City Council,Children's & Education Services - Children's Social Care,Children Looked After,Supplies and Services,14/11/2011,413738,"2,414.84",REVENUE,XMA Limited
Peterborough City Council,Children's & Education Services - Children's Social Care,Children Looked After,Supplies and Services,14/11/2011,414044,607.38,REVENUE,Voice
Peterborough City Council,Cultural and Related Services,Recreation & Sport,Supplies and Services,14/11/2011,414070,"12,244.55",REVENUE,F R Systems Ltd
Peterborough City Council,Children's & Education Services - Children's Social Care,Support Services & Management Costs,Supplies and Services,14/11/2011,414497,900,REVENUE,"King, Miss Fawzia"
Peterborough City Council,Planning Services,Community Development,Supplies and Services,14/11/2011,414580,797.44,REVENUE,Crown Catering Equipment
Peterborough City Council,"Highways, Roads & Transport Services",Parking Services,Employees,14/11/2011,414677,806.4,REVENUE,Unity Recruitment Ltd
Peterborough City Council,Cultural and Related Services,Recreation & Sport,Supplies and Services,14/11/2011,414679,"9,892.72",REVENUE,AP Security (North) Ltd
Peterborough City Council,Capital,Capital,Capital Pending Update to BS,14/11/2011,414692,"14,431.20",CAPITAL,UK Power Networks (operations) Ltd
Peterborough City Council,Capital,Capital,Capital Pending Update to BS,14/11/2011,414693,638.2,CAPITAL,Cambridgeshire County Council
Peterborough City Council,"Highways, Roads & Transport Services","Environmental, Safety & Routine Maintenance",Supplies and Services,14/11/2011,414743,"9,716.40",REVENUE,Siemens Plc
Peterborough City Council,Children's & Education Services - Children's Social Care,Children Looked After,Employees,14/11/2011,414757,"1,365.30",REVENUE,Frontline Staffing Ltd
Peterborough City Council,Children's & Education Services - Children's Social Care,Children Looked After,Supplies and Services - Transfer Payments,14/11/2011,415126,"1,720.65",REVENUE,Foster Care Associates Ltd FCA
Peterborough City Council,Children's & Education Services - Children's Social Care,Children Looked After,Supplies and Services - Transfer Payments,14/11/2011,415148,"1,720.65",REVENUE,Foster Care Associates Ltd FCA
Peterborough City Council,Children's & Education Services - Education,Primary,Supplies and Services,14/11/2011,415479,"1,068.00",REVENUE,Normans
Peterborough City Council,Children's & Education Services - Education,Primary,Supplies and Services,14/11/2011,415481,"1,815.60",REVENUE,Normans
Peterborough City Council,Children's & Education Services - Education,Primary,Supplies and Services,14/11/2011,415681,"2,242.80",REVENUE,Normans
Peterborough City Council,More than one Service Area Category,More than one Service Division,Balance Sheet,14/11/2011,415687,991.95,Balance Sheet,Redacted Personal Data
Peterborough City Council,Children's & Education Services - Children's Social Care,Family Support Services,Premises,14/11/2011,416198,520.44,REVENUE,The MSR Service
Peterborough City Council,Children's & Education Services - Children's Social Care,Children Looked After,Supplies and Services - Transfer Payments,14/11/2011,417093,759.99,REVENUE,PC Homes
Peterborough City Council,"Highways, Roads & Transport Services",Street Lighting,Premises,14/11/2011,417226,"55,596.63",REVENUE,Southern Electric
Peterborough City Council,Cultural and Related Services,Tourism,Supplies and Services,14/11/2011,417313,557.65,REVENUE,City of P'bor Symphony Orchestra
Peterborough City Council,Cultural and Related Services,Tourism,Supplies and Services,14/11/2011,417326,"2,757.00",REVENUE,Chapter of Peterborough Cathedral
Peterborough City Council,"Highways, Roads & Transport Services",Public Transport,Supplies and Services,14/11/2011,417461,"1,040.00",REVENUE,R Kime & Co Ltd
Peterborough City Council,"Cultural, Environmental and Planning Services",Recreation & Sport,Employees,14/11/2011,417678,650.63,REVENUE,Reed Personnel Services Plc
Peterborough City Council,"Cultural, Environmental and Planning Services",Recreation & Sport,Employees,14/11/2011,417679,640.14,REVENUE,Reed Personnel Services Plc
Peterborough City Council,More than one Service Area Category,More than one Service Division,Balance Sheet,14/11/2011,417717,821.48,Balance Sheet,Browne Jacobson
Peterborough City Council,Deficit/(Surplus) on Trading Undertakings,Trading Account Surpluses & Deficits,Supplies and Services,14/11/2011,417806,721.86,REVENUE,Barron Clark Castings Ltd
Peterborough City Council,Deficit/(Surplus) on Trading Undertakings,Trading Account Surpluses & Deficits,Supplies and Services,14/11/2011,417808,855,REVENUE,Barron Clark Castings Ltd
Peterborough City Council,Children's & Education Services - Children's Social Care,Children Looked After,Supplies and Services - Transfer Payments,14/11/2011,417943,"3,414.34",REVENUE,National Fostering Agency
Peterborough City Council,Deficit/(Surplus) on Trading Undertakings,Trading Account Surpluses & Deficits,Supplies and Services,14/11/2011,417970,646.08,REVENUE,Barron Clark Castings Ltd
Peterborough City Council,"Highways, Roads & Transport Services",Street Lighting,Premises,14/11/2011,417975,"1,775.18",REVENUE,E.ON Energy
Peterborough City Council,"Cultural, Environmental and Planning Services",Recreation & Sport,Employees,14/11/2011,417998,629.64,REVENUE,Reed Personnel Services Plc
Peterborough City Council,Adult Social Care,Service Strategy,Supplies and Services,14/11/2011,418053,"9,720.00",REVENUE,Veredus
Peterborough City Council,Adult Social Care,Service Strategy,Supplies and Services,14/11/2011,418054,"8,640.00",REVENUE,Veredus
Peterborough City Council,More than one Service Area Category,More than one Service Division,More than one Expenses Type,14/11/2011,418084,"4,452.00","Mixture of Capital, Revenue and/or Balance Sheet",Casbon Building Services
Peterborough City Council,More than one Service Area Category,More than one Service Division,Balance Sheet,14/11/2011,418088,"14,250.00",Balance Sheet,Aviva plc
Peterborough City Council,More than one Service Area Category,More than one Service Division,Balance Sheet,14/11/2011,418133,"3,123.13",Balance Sheet,Cambridgeshire County Council
Peterborough City Council,More than one Service Area Category,More than one Service Division,Balance Sheet,14/11/2011,418135,"1,006.54",Balance Sheet,Cambridgeshire County Council
Peterborough City Council,More than one Service Area Category,More than one Service Division,Balance Sheet,14/11/2011,418137,"617,382.98",Balance Sheet,Cambridgeshire County Council
Peterborough City Council,More than one Service Area Category,More than one Service Division,Balance Sheet,14/11/2011,418139,"231,710.86",Balance Sheet,Cambridgeshire County Council
Peterborough City Council,Capital,Capital,Capital Pending Update to BS,16/11/2011,372239,"1,044.00",CAPITAL,Valuation Office Agency
Peterborough City Council,Planning Services,Economic Development,Employees,16/11/2011,399764,"1,270.94",REVENUE,Randstad CPE
Peterborough City Council,Deficit/(Surplus) on Trading Undertakings,Trading Account Surpluses & Deficits,Supplies and Services,16/11/2011,400310,579.36,REVENUE,Safetykleen UK Ltd
Peterborough City Council,More than one Service Area Category,More than one Service Division,More than one Expenses Type,16/11/2011,401396,510,"Mixture of Capital, Revenue and/or Balance Sheet",Northgate Information Solutions
Peterborough City Council,Children's & Education Services - Children's Social Care,Other Children's & Families Services,More than one Expenses Type,16/11/2011,407180,"1,780.20",REVENUE,Randstad Care Ltd
Peterborough City Council,Deficit/(Surplus) on Trading Undertakings,Trading Account Surpluses & Deficits,Supplies and Services,16/11/2011,407362,579.36,REVENUE,Safetykleen UK Ltd
Peterborough City Council,Central Services to the Public,Local Tax,Employees,16/11/2011,408973,"2,186.16",REVENUE,The Synergy Group
Peterborough City Council,Children's & Education Services - Children's Social Care,Children Looked After,Employees,16/11/2011,409550,763.43,REVENUE,Randstad Care Ltd
Peterborough City Council,Central Services to the Public,Local Tax,Employees,16/11/2011,410116,"1,193.92",REVENUE,The Synergy Group
Peterborough City Council,Central Services to the Public,Local Tax,Employees,16/11/2011,410615,"1,201.98",REVENUE,The Synergy Group
Peterborough City Council,Housing Services,Housing Benefits,Employees,16/11/2011,410624,"1,201.46",REVENUE,The Synergy Group
Peterborough City Council,Children's & Education Services - Children's Social Care,Other Children's & Families Services,Employees,16/11/2011,410899,"1,154.26",REVENUE,Randstad Care Ltd
Peterborough City Council,Housing Services,Housing Benefits,Employees,16/11/2011,412504,974.03,REVENUE,The Synergy Group
Peterborough City Council,Central Services to the Public,Local Tax,Employees,16/11/2011,412554,"1,201.98",REVENUE,The Synergy Group
Peterborough City Council,Central Services to the Public,Local Tax,Employees,16/11/2011,412556,"1,270.67",REVENUE,The Synergy Group
Peterborough City Council,Children's & Education Services - Children's Social Care,Other Children's & Families Services,Employees,16/11/2011,412624,"1,154.26",REVENUE,Randstad Care Ltd
Peterborough City Council,Deficit/(Surplus) on Trading Undertakings,Trading Account Surpluses & Deficits,Supplies and Services,16/11/2011,412732,579.36,REVENUE,Safetykleen UK Ltd
Peterborough City Council,Children's & Education Services - Children's Social Care,Children Looked After,Supplies and Services - Transfer Payments,16/11/2011,413313,"12,000.00",REVENUE,Continuum Care & Educ. Group.
Peterborough City Council,Drainage and Flood Levies,Precepts & Levies,Premises,16/11/2011,413368,"75,180.00",REVENUE,Welland & Deepings Internal Drainage Board
Peterborough City Council,Children's & Education Services - Children's Social Care,Children Looked After,Supplies and Services - Transfer Payments,16/11/2011,413409,"-2,214.33",REVENUE,Continuum Care & Educ. Group.
Peterborough City Council,Children's & Education Services - Children's Social Care,Children Looked After,Supplies and Services - Transfer Payments,16/11/2011,413412,"-2,142.90",REVENUE,Continuum Care & Educ. Group.
Peterborough City Council,Support Services,Support Services,Employees,16/11/2011,413440,"1,449.00",REVENUE,Venn Group Ltd
Peterborough City Council,Support Services,Support Services,Employees,16/11/2011,413442,"1,553.18",REVENUE,Venn Group Ltd
Peterborough City Council,Support Services,Support Services,Employees,16/11/2011,413443,"1,326.67",REVENUE,Venn Group Ltd
Peterborough City Council,Housing Services,Housing Benefits,Employees,16/11/2011,413445,"1,855.69",REVENUE,Badenoch & Clark
Peterborough City Council,Children's & Education Services - Children's Social Care,Other Children's & Families Services,Employees,16/11/2011,413457,"1,609.50",REVENUE,Care Recruitment UK Ltd
Peterborough City Council,Capital,Capital,Capital Pending Update to BS,16/11/2011,413530,"4,003.08",CAPITAL,Harmony Roofing Serv. Ltd
Peterborough City Council,Children's & Education Services - Children's Social Care,Children Looked After,More than one Expenses Type,16/11/2011,413683,"11,512.84",REVENUE,Lovell's Hall
Peterborough City Council,Cultural and Related Services,Culture & Heritage,Supplies and Services,16/11/2011,413684,"1,209.60",REVENUE,Chapter of Peterborough Cathedral
Peterborough City Council,Children's & Education Services - Education,Non-School Funding,Supplies and Services,16/11/2011,413687,"1,688.00",REVENUE,Anglia Ruskin University
Peterborough City Council,"Highways, Roads & Transport Services","Environmental, Safety & Routine Maintenance",Supplies and Services,16/11/2011,413723,"6,287.69",REVENUE,Telent Technology Services Ltd
Peterborough City Council,Children's & Education Services - Education,All Schools - apportion across sectors,Supplies and Services,16/11/2011,413735,"7,105.20",REVENUE,Tribal Education Ltd
Peterborough City Council,Capital,Capital,Capital Pending Update to BS,16/11/2011,413741,"1,767.60",CAPITAL,UK Power Networks (operations) Ltd
Peterborough City Council,Children's & Education Services - Children's Social Care,Children Looked After,Employees,16/11/2011,414025,868.73,REVENUE,Randstad Care Ltd
Peterborough City Council,Children's & Education Services - Children's Social Care,Children Looked After,Employees,16/11/2011,414026,600.22,REVENUE,Randstad Care Ltd
Peterborough City Council,Children's & Education Services - Children's Social Care,Other Children's & Families Services,Employees,16/11/2011,414029,"1,154.26",REVENUE,Randstad Care Ltd
Peterborough City Council,Children's & Education Services - Children's Social Care,Support Services & Management Costs,Employees,16/11/2011,414032,"1,529.14",REVENUE,Randstad Care Ltd
Peterborough City Council,Children's & Education Services - Children's Social Care,Other Children's & Families Services,Employees,16/11/2011,414033,"2,606.69",REVENUE,Randstad Care Ltd
Peterborough City Council,Children's & Education Services - Children's Social Care,Children Looked After,Employees,16/11/2011,414038,"2,414.09",REVENUE,Advantage Healthcare Nursing & Care Ltd
Peterborough City Council,Children's & Education Services - Children's Social Care,Children Looked After,Supplies and Services - Transfer Payments,16/11/2011,414049,"9,247.08",REVENUE,Lovell's Hall
Peterborough City Council,Children's & Education Services - Education,All Schools - apportion across sectors,Supplies and Services,16/11/2011,414052,"1,056.00",REVENUE,Peterborough Tree Services Ltd
Peterborough City Council,"Highways, Roads & Transport Services",Parking Services,Supplies and Services,16/11/2011,414514,"2,455.70",REVENUE,Patrol
Peterborough City Council,Planning Services,Development Control,Supplies and Services,16/11/2011,414538,527.9,REVENUE,Johnston Press Midlands Division
Peterborough City Council,Planning Services,Community Development,Supplies and Services,16/11/2011,414563,736.8,REVENUE,Serco Ltd
Peterborough City Council,Children's & Education Services - Children's Social Care,Support Services & Management Costs,Employees,16/11/2011,414582,"1,642.14",REVENUE,Service Care Solutions Ltd
Peterborough City Council,Housing Services,Homelessness,Supplies and Services,16/11/2011,414585,702.55,REVENUE,Euro RSCG Riley Ltd
Peterborough City Council,More than one Service Area Category,More than one Service Division,Balance Sheet,16/11/2011,414607,"18,500.00",Balance Sheet,Chattertons Solicitors
Peterborough City Council,"Highways, Roads & Transport Services","Transport planning, policy and strategy",Transport,16/11/2011,414620,517.19,REVENUE,Burnt Tree Group
Peterborough City Council,More than one Service Area Category,More than one Service Division,Balance Sheet,16/11/2011,414640,"1,249.50",Balance Sheet,Peakirk Village Hall Committee
Peterborough City Council,Children's & Education Services - Education,All Schools - apportion across sectors,Supplies and Services,16/11/2011,414689,951.06,REVENUE,ES4S Ltd
Peterborough City Council,Support Services,Support Services,Supplies and Services,16/11/2011,414698,748.91,REVENUE,Serco Ltd
Peterborough City Council,Corporate & Democratic Core,Corporate Management,Supplies and Services,16/11/2011,414721,"129,600.00",REVENUE,PricewaterhouseCoopers LLP
Peterborough City Council,Corporate & Democratic Core,Corporate Management,Supplies and Services,16/11/2011,414725,"14,400.00",REVENUE,PricewaterhouseCoopers LLP
Peterborough City Council,Children's & Education Services - Education,All Schools - apportion across sectors,Supplies and Services,16/11/2011,414728,"1,058.51",REVENUE,Peterborough Tree Services Ltd
Peterborough City Council,Court Services,Coroner's Court Service,Supplies and Services,16/11/2011,414738,"2,226.40",REVENUE,BDW Practice Account
Peterborough City Council,More than one Service Area Category,More than one Service Division,Balance Sheet,16/11/2011,414739,936.82,Balance Sheet,Rossendales C B Ltd
Peterborough City Council,Capital,Capital,Capital Pending Update to BS,16/11/2011,414770,"4,222.80",CAPITAL,Enterprise Managed Services Limited
Peterborough City Council,Capital,Capital,Capital Pending Update to BS,16/11/2011,414771,"1,500.00",CAPITAL,Enterprise Managed Services Limited
Peterborough City Council,Capital,Capital,Capital Pending Update to BS,16/11/2011,414772,"3,260.40",CAPITAL,Enterprise Managed Services Limited
Peterborough City Council,Capital,Capital,Capital Pending Update to BS,16/11/2011,414773,"3,523.20",CAPITAL,Enterprise Managed Services Limited
Peterborough City Council,Capital,Capital,Capital Pending Update to BS,16/11/2011,414774,"7,141.20",CAPITAL,Enterprise Managed Services Limited
Peterborough City Council,Capital,Capital,Capital Pending Update to BS,16/11/2011,414775,862.8,CAPITAL,Enterprise Managed Services Limited
Peterborough City Council,Capital,Capital,Capital Pending Update to BS,16/11/2011,414818,"9,291.60",CAPITAL,Enterprise Managed Services Limited
Peterborough City Council,More than one Service Area Category,More than one Service Division,Balance Sheet,16/11/2011,414841,"16,432.51",Balance Sheet,Redacted Personal Data
Peterborough City Council,Support Services,Support Services,Supplies and Services,16/11/2011,414898,502.8,REVENUE,Serco Ltd
Peterborough City Council,Deficit/(Surplus) on Trading Undertakings,Trading Account Surpluses & Deficits,Supplies and Services,16/11/2011,414911,"4,039.78",REVENUE,Godric Engineering Ltd
Peterborough City Council,Deficit/(Surplus) on Trading Undertakings,Trading Account Surpluses & Deficits,Premises,16/11/2011,414926,"2,595.60",REVENUE,Energy Report Ltd
Peterborough City Council,Support Services,Support Services,Supplies and Services,16/11/2011,414933,"2,599.20",REVENUE,Eversheds LLP
Peterborough City Council,Support Services,Support Services,Supplies and Services,16/11/2011,414945,"7,049.94",REVENUE,Serco Ltd
Peterborough City Council,Capital,Capital,Capital Pending Update to BS,16/11/2011,414966,"10,557.60",CAPITAL,Enterprise Managed Services Limited
Peterborough City Council,Housing Services,Private Sector Housing Renewal,Supplies and Services,16/11/2011,415320,870.4,REVENUE,T G M Maintenance
Peterborough City Council,More than one Service Area Category,More than one Service Division,Supplies and Services,16/11/2011,415382,"1,941.68",REVENUE,TNT Post Midlands Ltd
Peterborough City Council,Corporate & Democratic Core,Democratic Representation & Managemetn,Supplies and Services,16/11/2011,415857,"1,365.70",REVENUE,Serco Ltd
Peterborough City Council,Corporate & Democratic Core,Democratic Representation & Managemetn,Supplies and Services,16/11/2011,415859,"12,848.05",REVENUE,Serco Ltd
Peterborough City Council,Housing Services,Private Sector Housing Renewal,Supplies and Services,16/11/2011,415867,935,REVENUE,Fletton Electrics Ltd
Peterborough City Council,Children's & Education Services - Children's Social Care,Children Looked After,Employees,16/11/2011,415872,"1,087.20",REVENUE,Textbook Teachers
Peterborough City Council,Adult Social Care,Other Adult Services,Third Party Payments,16/11/2011,415930,615,REVENUE,Frontier Medical
Peterborough City Council,Housing Services,Homelessness,Supplies and Services,16/11/2011,416018,"1,080.00",REVENUE,"Earle, Mr James"
Peterborough City Council,Central Services to the Public,Local Tax,Supplies and Services,16/11/2011,416019,646.15,REVENUE,Financial Data Management
Peterborough City Council,More than one Service Area Category,More than one Service Division,Transport,16/11/2011,416138,759.6,REVENUE,R T Enterprises Ltd T/A Royal Taxis
Peterborough City Council,Loss on Disposal of fixed assets,Loss on Disposal of Fixed Assets,Third Party Payments,16/11/2011,417304,"1,732.80",REVENUE,Morris Homes Limited
Peterborough City Council,Support Services,Support Services,Third Party Payments,16/11/2011,417323,750,REVENUE,Salvation Army Peterborough
Peterborough City Council,More than one Service Area Category,More than one Service Division,Supplies and Services,16/11/2011,417429,"63,420.26",REVENUE,Ringway Infrastructure Services
Peterborough City Council,Housing Services,Homelessness,Supplies and Services,16/11/2011,417710,932.5,REVENUE,Restover Lodge Hotel
Peterborough City Council,Housing Services,Homelessness,Supplies and Services,16/11/2011,417714,586.5,REVENUE,Restover Lodge Hotel
Peterborough City Council,"Highways, Roads & Transport Services",Street Lighting,Premises,16/11/2011,417812,"77,434.28",REVENUE,Southern Electric
Peterborough City Council,Capital,Capital,Capital Pending Update to BS,16/11/2011,417829,"2,783.21",CAPITAL,Burmor Construction
Peterborough City Council,Housing Services,Homelessness,Supplies and Services,16/11/2011,417830,586.5,REVENUE,Restover Lodge Hotel
Peterborough City Council,Housing Services,Homelessness,Supplies and Services,16/11/2011,417833,638,REVENUE,Restover Lodge Hotel
Peterborough City Council,More than one Service Area Category,More than one Service Division,More than one Expenses Type,16/11/2011,417926,"5,006.40","Mixture of Capital, Revenue and/or Balance Sheet",Priestgate Properties Ltd
Peterborough City Council,Children's & Education Services - Children's Social Care,Support Services & Management Costs,Supplies and Services,16/11/2011,417930,"1,100.00",REVENUE,Redacted Personal Data
Peterborough City Council,Capital,Capital,Capital Pending Update to BS,16/11/2011,417937,"1,428,290.40",CAPITAL,Kier Eastern
Peterborough City Council,Capital,Capital,Capital Pending Update to BS,16/11/2011,418004,"285,785.28",CAPITAL,Kier Eastern
Peterborough City Council,Children's & Education Services - Children's Social Care,Service Strategy,Supplies and Services,16/11/2011,418138,"1,375.78",REVENUE,Redacted Personal Data
Peterborough City Council,Support Services,Support Services,Supplies and Services,16/11/2011,418183,"1,139.40",REVENUE,Serco Ltd
Peterborough City Council,Children's & Education Services - Children's Social Care,Children Looked After,Supplies and Services - Transfer Payments,16/11/2011,418227,"19,729.28",REVENUE,Oracle Care Ltd (Region 2)
Peterborough City Council,Children's & Education Services - Education,Non-School Funding,Supplies and Services,16/11/2011,418248,"13,218.80",REVENUE,Eye Pre-School
Peterborough City Council,Children's & Education Services - Education,Non-School Funding,Supplies and Services,16/11/2011,418250,"8,145.80",REVENUE,Westwood & Ravensthorpe Children's Centre
Peterborough City Council,Children's & Education Services - Education,Non-School Funding,Supplies and Services,16/11/2011,418251,537.8,REVENUE,Westwood & Ravensthorpe Children's Centre
Peterborough City Council,Children's & Education Services - Education,Non-School Funding,Supplies and Services,16/11/2011,418252,"7,667.10",REVENUE,Discovery Pre School
Peterborough City Council,Children's & Education Services - Education,Non-School Funding,Supplies and Services,16/11/2011,418253,"9,311.30",REVENUE,Dogsthorpe Community Pre-School
Peterborough City Council,Children's & Education Services - Education,Non-School Funding,Supplies and Services,16/11/2011,418255,"5,083.00",REVENUE,East Community Playgroup
Peterborough City Council,Children's & Education Services - Education,Non-School Funding,Supplies and Services,16/11/2011,418278,570.72,REVENUE,Redacted Personal Data
Peterborough City Council,Children's & Education Services - Education,Non-School Funding,Supplies and Services,16/11/2011,418282,"22,102.30",REVENUE,Family Action
Peterborough City Council,Children's & Education Services - Education,Non-School Funding,Supplies and Services,16/11/2011,418284,"3,575.75",REVENUE,Kindercare Pre-School Ltd
Peterborough City Council,Children's & Education Services - Education,Non-School Funding,Supplies and Services,16/11/2011,418286,"5,189.07",REVENUE,Best Start Childrens Nursery
Peterborough City Council,Children's & Education Services - Education,Non-School Funding,Supplies and Services,16/11/2011,418288,"10,190.50",REVENUE,Rainbow Pre-School
Peterborough City Council,Children's & Education Services - Education,Non-School Funding,Supplies and Services,16/11/2011,418290,"3,175.35",REVENUE,Rise & Shine Day Nursery
Peterborough City Council,Children's & Education Services - Education,Non-School Funding,Supplies and Services,16/11/2011,418291,"1,173.70",REVENUE,Carousel Day Nursery
Peterborough City Council,Children's & Education Services - Education,Non-School Funding,Supplies and Services,16/11/2011,418293,"8,031.43",REVENUE,Carousel Day Nursery
Peterborough City Council,Children's & Education Services - Education,Non-School Funding,Supplies and Services,16/11/2011,418294,"1,123.00",REVENUE,Castor & Ailsworth Playgroup
Peterborough City Council,Children's & Education Services - Education,Non-School Funding,Supplies and Services,16/11/2011,418296,"3,184.80",REVENUE,Castor & Ailsworth Playgroup
Peterborough City Council,Children's & Education Services - Education,Non-School Funding,Supplies and Services,16/11/2011,418299,"10,382.65",REVENUE,Parnwell Family Project Playgroup
Peterborough City Council,Children's & Education Services - Education,Non-School Funding,Supplies and Services,16/11/2011,418303,"8,570.10",REVENUE,Paston & Gunthorpe Pre-School
Peterborough City Council,Children's & Education Services - Education,Non-School Funding,Supplies and Services,16/11/2011,418305,"11,880.40",REVENUE,Family Action
Peterborough City Council,Children's & Education Services - Education,Non-School Funding,Supplies and Services,16/11/2011,418306,"3,519.00",REVENUE,Family Action
Peterborough City Council,Children's & Education Services - Education,Non-School Funding,Supplies and Services,16/11/2011,418308,"15,896.50",REVENUE,Newark Playgroup
Peterborough City Council,Children's & Education Services - Education,Non-School Funding,Supplies and Services,16/11/2011,418313,"4,301.00",REVENUE,Newborough Pre-School Playgroup
Peterborough City Council,Children's & Education Services - Education,Non-School Funding,Supplies and Services,16/11/2011,418315,"7,187.30",REVENUE,Noah's Ark Pre-School
Peterborough City Council,Children's & Education Services - Education,Non-School Funding,Supplies and Services,16/11/2011,418317,"18,818.05",REVENUE,Orton Longueville Playgroup
Peterborough City Council,Children's & Education Services - Education,Non-School Funding,Supplies and Services,16/11/2011,418322,"9,860.20",REVENUE,PSLA
Peterborough City Council,Children's & Education Services - Education,Non-School Funding,Supplies and Services,16/11/2011,418323,943.7,REVENUE,Redacted Personal Data
Peterborough City Council,Children's & Education Services - Education,Non-School Funding,Supplies and Services,16/11/2011,418328,"9,638.20",REVENUE,Busy Bees Pre-School
Peterborough City Council,Children's & Education Services - Education,Non-School Funding,Supplies and Services,16/11/2011,418329,"7,249.51",REVENUE,Bundles of Fun Day Nursery
Peterborough City Council,Children's & Education Services - Education,Non-School Funding,Supplies and Services,16/11/2011,418330,"4,550.50",REVENUE,Bright Kids Nursery Ltd (Broadway)
Peterborough City Council,Children's & Education Services - Education,Non-School Funding,Supplies and Services,16/11/2011,418332,769.37,REVENUE,Redacted Personal Data
Peterborough City Council,Children's & Education Services - Education,Non-School Funding,Supplies and Services,16/11/2011,418334,"7,276.10",REVENUE,Happy Days Playgroup
Peterborough City Council,Children's & Education Services - Education,Non-School Funding,Supplies and Services,16/11/2011,418335,"10,026.70",REVENUE,Millfield Pre-School
Peterborough City Council,Children's & Education Services - Education,Non-School Funding,Supplies and Services,16/11/2011,418336,"1,393.90",REVENUE,Jenny's Pre School Playgroup
Peterborough City Council,Children's & Education Services - Education,Non-School Funding,Supplies and Services,16/11/2011,418337,"1,882.30",REVENUE,Fulbridge Nursery LIttle Gems
Peterborough City Council,Children's & Education Services - Education,Non-School Funding,Supplies and Services,16/11/2011,418338,"18,350.35",REVENUE,Kiddi Caru Day Nursery
Peterborough City Council,Children's & Education Services - Education,Non-School Funding,Supplies and Services,16/11/2011,418339,"6,244.90",REVENUE,Birchtree Pre-School
Peterborough City Council,Children's & Education Services - Education,Non-School Funding,Supplies and Services,16/11/2011,418340,"3,208.20",REVENUE,Glinton Pre-School Playgroup
Peterborough City Council,Children's & Education Services - Education,Non-School Funding,Supplies and Services,16/11/2011,418341,"7,907.70",REVENUE,PSLA
Peterborough City Council,Children's & Education Services - Education,Non-School Funding,Supplies and Services,16/11/2011,418342,"5,165.15",REVENUE,Longthorpe Playgroup
Peterborough City Council,Children's & Education Services - Education,Non-School Funding,Supplies and Services,16/11/2011,418343,"4,399.65",REVENUE,Little Poppets Day Nursery
Peterborough City Council,Children's & Education Services - Education,Non-School Funding,Supplies and Services,16/11/2011,418344,"7,601.12",REVENUE,Kidsunlimited Group Ltd
Peterborough City Council,Children's & Education Services - Education,Non-School Funding,Supplies and Services,16/11/2011,418345,"40,935.71",REVENUE,Little Stars Day Nursery
Peterborough City Council,Children's & Education Services - Education,Non-School Funding,Supplies and Services,16/11/2011,418346,"6,074.70",REVENUE,Helpston Playhouse & Under Fives
Peterborough City Council,Children's & Education Services - Education,Non-School Funding,Supplies and Services,16/11/2011,418347,"2,175.69",REVENUE,Little Steps Day Nursery
Peterborough City Council,Children's & Education Services - Education,Non-School Funding,Supplies and Services,16/11/2011,418348,"13,245.24",REVENUE,Little Tigers Day Nursery
Peterborough City Council,Children's & Education Services - Education,Non-School Funding,Supplies and Services,16/11/2011,418349,"2,730.30",REVENUE,Rise & Shine Day Nursery
Peterborough City Council,Children's & Education Services - Education,Non-School Funding,Supplies and Services,16/11/2011,418350,"7,934.80",REVENUE,Kindercare Pre-School Ltd
Peterborough City Council,Children's & Education Services - Education,Non-School Funding,Supplies and Services,16/11/2011,418351,"24,626.06",REVENUE,Leapfrog Day Nurseries
Peterborough City Council,Children's & Education Services - Education,Non-School Funding,Supplies and Services,16/11/2011,418352,"6,647.00",REVENUE,Leighton Primary Pre-School
Peterborough City Council,Children's & Education Services - Education,Non-School Funding,Supplies and Services,16/11/2011,418353,943.7,REVENUE,Rachaels Childminding
Peterborough City Council,Children's & Education Services - Education,Non-School Funding,Supplies and Services,16/11/2011,418354,"5,328.50",REVENUE,Little Angels
Peterborough City Council,Children's & Education Services - Education,Non-School Funding,Supplies and Services,16/11/2011,418355,"1,418.05",REVENUE,Redacted Personal Data
Peterborough City Council,Children's & Education Services - Education,Non-School Funding,Supplies and Services,16/11/2011,418357,"1,183.01",REVENUE,Kiddi Caru Day Nursery
Peterborough City Council,Children's & Education Services - Education,Non-School Funding,Supplies and Services,16/11/2011,418362,"16,474.81",REVENUE,Anna-Ca-Soo Day Nursery
Peterborough City Council,Children's & Education Services - Education,Non-School Funding,Supplies and Services,16/11/2011,418363,"44,909.50",REVENUE,Herlington Pre-School
Peterborough City Council,Children's & Education Services - Education,Non-School Funding,Supplies and Services,16/11/2011,418364,535.5,REVENUE,PSLA
Peterborough City Council,Children's & Education Services - Education,Non-School Funding,Supplies and Services,16/11/2011,418365,"4,336.80",REVENUE,Husaini Pre-School
Peterborough City Council,Children's & Education Services - Education,Non-School Funding,Supplies and Services,16/11/2011,418366,943.7,REVENUE,Redacted Personal Data
Peterborough City Council,Children's & Education Services - Education,Non-School Funding,Supplies and Services,16/11/2011,418367,943.7,REVENUE,Redacted Personal Data
Peterborough City Council,Children's & Education Services - Education,Non-School Funding,Supplies and Services,16/11/2011,418368,519.58,REVENUE,Redacted Personal Data
Peterborough City Council,Children's & Education Services - Education,Non-School Funding,Supplies and Services,16/11/2011,418369,"16,160.60",REVENUE,Beeches Pre-School
Peterborough City Council,Children's & Education Services - Education,Non-School Funding,Supplies and Services,16/11/2011,418370,"22,918.60",REVENUE,PSLA
Peterborough City Council,Children's & Education Services - Education,Non-School Funding,Supplies and Services,16/11/2011,418371,"3,365.94",REVENUE,Shining Stars Pre-School Nursery
Peterborough City Council,Children's & Education Services - Education,Non-School Funding,Supplies and Services,16/11/2011,418372,"9,133.67",REVENUE,First Steps Nursery (Maxey) Ltd
Peterborough City Council,Children's & Education Services - Education,Non-School Funding,Supplies and Services,16/11/2011,418373,"23,026.53",REVENUE,Flying Start Pre-School & Day Care Centre
Peterborough City Council,Children's & Education Services - Education,Non-School Funding,Supplies and Services,16/11/2011,418375,898,REVENUE,Pakistan Comm Ass of PBoro Pre- School
Peterborough City Council,Children's & Education Services - Education,Non-School Funding,Supplies and Services,16/11/2011,418379,"7,403.98",REVENUE,Bright Kids Nursery Ltd (Lynchwood)
Peterborough City Council,Children's & Education Services - Education,Non-School Funding,Supplies and Services,16/11/2011,418380,"10,011.10",REVENUE,Bright Star's day Nursery
Peterborough City Council,Children's & Education Services - Education,Non-School Funding,Supplies and Services,16/11/2011,418382,"7,693.20",REVENUE,Brookside Playgroup
Peterborough City Council,Children's & Education Services - Education,Non-School Funding,Supplies and Services,16/11/2011,418386,"13,400.40",REVENUE,Braybrook Nursery
Peterborough City Council,Children's & Education Services - Education,Non-School Funding,Supplies and Services,16/11/2011,418387,"19,832.56",REVENUE,Alpha Big Sky Ltd
Peterborough City Council,Children's & Education Services - Education,Non-School Funding,Supplies and Services,16/11/2011,418388,"6,489.57",REVENUE,Alpha Big Sky Ltd
Peterborough City Council,Children's & Education Services - Education,Non-School Funding,Supplies and Services,16/11/2011,418398,"2,661.80",REVENUE,Barnack Pre-School
Peterborough City Council,Children's & Education Services - Education,Non-School Funding,Supplies and Services,16/11/2011,418402,"9,505.00",REVENUE,Welland Pre-School
Peterborough City Council,Children's & Education Services - Children's Social Care,Other Children's & Families Services,Employees,16/11/2011,418405,"-1,578.44",REVENUE,Randstad Care Ltd
Peterborough City Council,Children's & Education Services - Education,Non-School Funding,Supplies and Services,16/11/2011,418410,"4,870.82",REVENUE,The Teddy Bears inn Day Nursery
Peterborough City Council,Children's & Education Services - Education,Non-School Funding,Supplies and Services,16/11/2011,418411,"3,834.80",REVENUE,The Village Playgroup
Peterborough City Council,Children's & Education Services - Education,Non-School Funding,Supplies and Services,16/11/2011,418414,"5,737.13",REVENUE,Smiley Faces Day Nursery
Peterborough City Council,Children's & Education Services - Education,Non-School Funding,Supplies and Services,16/11/2011,418416,"5,310.00",REVENUE,Shiny Stars Pre-School
Peterborough City Council,Children's & Education Services - Education,Non-School Funding,Supplies and Services,16/11/2011,418418,"9,891.00",REVENUE,West Town Playgroup
Peterborough City Council,Children's & Education Services - Education,Non-School Funding,Supplies and Services,16/11/2011,418419,"11,271.30",REVENUE,St Michaels Playgroup
Peterborough City Council,Children's & Education Services - Education,Non-School Funding,Supplies and Services,16/11/2011,418421,"14,696.50",REVENUE,St Thomas More Catholic Nursery
Peterborough City Council,Children's & Education Services - Education,Non-School Funding,Supplies and Services,16/11/2011,418427,"10,872.80",REVENUE,South Bretton PS Middleton
Peterborough City Council,Children's & Education Services - Education,Non-School Funding,Supplies and Services,16/11/2011,418428,"8,774.13",REVENUE,The Day Nursery Peterborough Ltd
Peterborough City Council,Children's & Education Services - Education,Non-School Funding,Supplies and Services,16/11/2011,418433,"27,116.55",REVENUE,St Josephs Day Nursery
Peterborough City Council,Children's & Education Services - Education,Non-School Funding,Supplies and Services,16/11/2011,418435,"1,799.34",REVENUE,Stepping Stones Day Nursery
Peterborough City Council,Children's & Education Services - Education,Non-School Funding,Supplies and Services,16/11/2011,418441,"3,610.30",REVENUE,Southfields Pre-School Playgroup
Peterborough City Council,Children's & Education Services - Education,Non-School Funding,Supplies and Services,16/11/2011,418442,"10,171.00",REVENUE,Southfields Nursery
Peterborough City Council,Children's & Education Services - Education,Non-School Funding,Supplies and Services,16/11/2011,418444,"6,387.45",REVENUE,St Johns C of E Pre-School
Peterborough City Council,Children's & Education Services - Education,Non-School Funding,Supplies and Services,16/11/2011,418445,"1,820.20",REVENUE,St Josephs Day Nursery
Peterborough City Council,Children's & Education Services - Education,Non-School Funding,Supplies and Services,16/11/2011,418453,875.8,REVENUE,Salvation Army Playgroup
Peterborough City Council,Deficit/(Surplus) on Trading Undertakings,Trading Account Surpluses & Deficits,Supplies and Services,16/11/2011,418456,691.2,REVENUE,Barron Clark Castings Ltd
Peterborough City Council,Deficit/(Surplus) on Trading Undertakings,Trading Account Surpluses & Deficits,Supplies and Services,16/11/2011,418458,684,REVENUE,Barron Clark Castings Ltd
Peterborough City Council,More than one Service Area Category,More than one Service Division,Balance Sheet,16/11/2011,418527,"4,520.17",Balance Sheet,HM Revenues & Customs
Peterborough City Council,More than one Service Area Category,More than one Service Division,Balance Sheet,16/11/2011,418529,"8,573.49",Balance Sheet,HM Revenues & Customs
Peterborough City Council,More than one Service Area Category,More than one Service Division,Balance Sheet,16/11/2011,418531,"9,636.17",Balance Sheet,HM Revenues & Customs
Peterborough City Council,More than one Service Area Category,More than one Service Division,Balance Sheet,16/11/2011,418534,"115,233.09",Balance Sheet,HM Revenues & Customs
Peterborough City Council,More than one Service Area Category,More than one Service Division,Balance Sheet,16/11/2011,418536,"1,447,281.86",Balance Sheet,HM Revenues & Customs
Peterborough City Council,Support Services,Support Services,Premises,16/11/2011,418552,616.97,REVENUE,Zurich Insurance Company
Peterborough City Council,Children's & Education Services - Children's Social Care,Children Looked After,Supplies and Services - Transfer Payments,18/11/2011,384976,"8,270.18",REVENUE,Heath Farm Family Services Ltd
Peterborough City Council,Children's & Education Services - Children's Social Care,Children Looked After,Supplies and Services - Transfer Payments,18/11/2011,389334,"8,003.40",REVENUE,Heath Farm Family Services Ltd
Peterborough City Council,Children's & Education Services - Children's Social Care,Children Looked After,Supplies and Services - Transfer Payments,18/11/2011,393380,"8,270.18",REVENUE,Heath Farm Family Services Ltd
Peterborough City Council,Children's & Education Services - Children's Social Care,Other Children's & Families Services,Employees,18/11/2011,402211,"1,708.20",REVENUE,Sanctuary Personnel Ltd
Peterborough City Council,Children's & Education Services - Children's Social Care,Other Children's & Families Services,Employees,18/11/2011,402213,"1,607.64",REVENUE,Sanctuary Personnel Ltd
Peterborough City Council,Children's & Education Services - Children's Social Care,Children Looked After,Supplies and Services - Transfer Payments,18/11/2011,410886,"6,815.40",REVENUE,Tree House Care Fostering Solutions Ltd
Peterborough City Council,More than one Service Area Category,More than one Service Division,Employees,18/11/2011,412566,"1,764.00",REVENUE,Sellick Partnership Group Limited
Peterborough City Council,Children's & Education Services - Children's Social Care,Children Looked After,Supplies and Services - Transfer Payments,18/11/2011,412807,"46,581.96",REVENUE,Kisimul Group Ltd
Peterborough City Council,Children's & Education Services - Children's Social Care,Other Children's & Families Services,Employees,18/11/2011,414666,"1,527.12",REVENUE,Frontline Staffing Ltd
Peterborough City Council,Children's & Education Services - Children's Social Care,Other Children's & Families Services,Employees,18/11/2011,414667,"1,405.92",REVENUE,Frontline Staffing Ltd
Peterborough City Council,More than one Service Area Category,More than one Service Division,Supplies and Services,18/11/2011,414937,"12,915.88",REVENUE,Loomis UK Ltd
Peterborough City Council,Support Services,Support Services,Supplies and Services,18/11/2011,417441,"11,026.80",REVENUE,Pinsent Masons
Peterborough City Council,Children's & Education Services - Education,Non-School Funding,Supplies and Services,18/11/2011,417506,774.4,REVENUE,Kindercare Pre-School Ltd
Peterborough City Council,More than one Service Area Category,More than one Service Division,More than one Expenses Type,18/11/2011,417783,"1,714.90",REVENUE,Peterborough City Council
Peterborough City Council,"Highways, Roads & Transport Services",Street Lighting,Premises,18/11/2011,418078,"1,779.54",REVENUE,E.ON Energy
Peterborough City Council,More than one Service Area Category,More than one Service Division,Balance Sheet,18/11/2011,418097,"1,559.00",Balance Sheet,Baxter & King
Peterborough City Council,"Highways, Roads & Transport Services",Street Lighting,Premises,18/11/2011,418122,"2,794.40",REVENUE,Southern Electric
Peterborough City Council,More than one Service Area Category,More than one Service Division,Balance Sheet,18/11/2011,418132,"2,137.85",Balance Sheet,Anglia Support Partnership
Peterborough City Council,Support Services,Support Services,Premises,18/11/2011,418165,"-9,789.44",REVENUE,Eastern Shires Purchasing Organisation
Peterborough City Council,Support Services,Support Services,Premises,18/11/2011,418166,"8,709.66",REVENUE,Eastern Shires Purchasing Organisation
Peterborough City Council,Planning Services,Recreation & Sport,Supplies and Services,18/11/2011,418217,516,REVENUE,Eastern Shires Purchasing Organisation
Peterborough City Council,More than one Service Area Category,More than one Service Division,Balance Sheet,18/11/2011,418246,984.86,Balance Sheet,Redacted Personal Data
Peterborough City Council,Children's & Education Services - Education,Non-School Funding,Supplies and Services,18/11/2011,418298,"9,497.50",REVENUE,Orton Wistow Under Fives
Peterborough City Council,Children's & Education Services - Education,Non-School Funding,Supplies and Services,18/11/2011,418331,"1,887.40",REVENUE,Redacted Personal Data
Peterborough City Council,Children's & Education Services - Education,Non-School Funding,Supplies and Services,18/11/2011,418374,"8,845.00",REVENUE,Young Generation Playgroup
Peterborough City Council,Children's & Education Services - Education,Non-School Funding,Supplies and Services,18/11/2011,418378,"4,523.04",REVENUE,The Peterborough School Ltd
Peterborough City Council,Children's & Education Services - Education,Non-School Funding,Supplies and Services,18/11/2011,418381,"5,464.30",REVENUE,Thorney Pre-School Playgroup
Peterborough City Council,Children's & Education Services - Education,Non-School Funding,Supplies and Services,18/11/2011,418383,"10,683.72",REVENUE,Peterborough Regional College
Peterborough City Council,Children's & Education Services - Education,Non-School Funding,Supplies and Services,18/11/2011,418385,"11,849.23",REVENUE,Miss J W Boon T/A Toddlers Inn Day Nursery
Peterborough City Council,Children's & Education Services - Education,Non-School Funding,Supplies and Services,18/11/2011,418401,505.64,REVENUE,Redacted Personal Data
Peterborough City Council,Children's & Education Services - Education,Non-School Funding,Supplies and Services,18/11/2011,418403,"13,998.30",REVENUE,Bunny Tots Pre-School
Peterborough City Council,Children's & Education Services - Education,Non-School Funding,Supplies and Services,18/11/2011,418412,"2,737.00",REVENUE,The Voyager Nursery
Peterborough City Council,Children's & Education Services - Education,Non-School Funding,Supplies and Services,18/11/2011,418423,"11,294.70",REVENUE,Stanground St Johns Pre-School
Peterborough City Council,Children's & Education Services - Education,Non-School Funding,Supplies and Services,18/11/2011,418424,"2,275.25",REVENUE,Step One Day Care
Peterborough City Council,Children's & Education Services - Education,Non-School Funding,Supplies and Services,18/11/2011,418425,"1,134.91",REVENUE,Stepping Stones Day Nursery
Peterborough City Council,Children's & Education Services - Education,Non-School Funding,Supplies and Services,18/11/2011,418429,"10,553.73",REVENUE,The Learning Tree Kindergarten
Peterborough City Council,Children's & Education Services - Education,Non-School Funding,Supplies and Services,18/11/2011,418430,"11,413.92",REVENUE,Manor House Nursery School
Peterborough City Council,Children's & Education Services - Education,Non-School Funding,Supplies and Services,18/11/2011,418431,"16,326.46",REVENUE,Peterborough High School Nursery
Peterborough City Council,Children's & Education Services - Education,Non-School Funding,Supplies and Services,18/11/2011,418434,"11,197.73",REVENUE,Stepping Stones Day Nursery
Peterborough City Council,Children's & Education Services - Education,Non-School Funding,Supplies and Services,18/11/2011,418436,"9,456.90",REVENUE,Sunflower Seed Pre-School
Peterborough City Council,Children's & Education Services - Education,Non-School Funding,Supplies and Services,18/11/2011,418437,"4,095.45",REVENUE,The Cedars Independent School & Day Nursery
Peterborough City Council,Children's & Education Services - Education,Non-School Funding,Supplies and Services,18/11/2011,418438,"13,005.50",REVENUE,Woodston Playgroup
Peterborough City Council,Children's & Education Services - Education,Non-School Funding,Supplies and Services,18/11/2011,418439,"7,644.90",REVENUE,Salvation Army Playgroup
Peterborough City Council,Children's & Education Services - Education,Non-School Funding,Supplies and Services,18/11/2011,418446,"2,187.24",REVENUE,Peterborough Regional College
Peterborough City Council,Children's & Education Services - Education,Non-School Funding,Supplies and Services,18/11/2011,418451,721.15,REVENUE,Kindercare Pre-School Ltd
Peterborough City Council,Support Services,Support Services,Premises,18/11/2011,418488,"8,436.00",REVENUE,Debenham Tie Leung (DTZ)
Peterborough City Council,Support Services,Support Services,Premises,18/11/2011,418495,"49,695.00",REVENUE,Debenham Tie Leung (DTZ)
Peterborough City Council,Central Services to the Public,Local Tax,Supplies and Services,18/11/2011,418540,967.94,REVENUE,Equita Ltd
Peterborough City Council,Deficit/(Surplus) on Trading Undertakings,Trading Account Surpluses & Deficits,Transport,18/11/2011,418559,507.4,REVENUE,Neil Cawthorn
Peterborough City Council,Central Services to the Public,Local Tax,Supplies and Services,18/11/2011,418577,619.69,REVENUE,Equita Ltd
Peterborough City Council,Central Services to the Public,Local Tax,Supplies and Services,18/11/2011,418579,763.17,REVENUE,Equita Ltd
Peterborough City Council,More than one Service Area Category,More than one Service Division,Balance Sheet,18/11/2011,418585,887.64,Balance Sheet,Equita Ltd
Peterborough City Council,More than one Service Area Category,More than one Service Division,Balance Sheet,18/11/2011,418588,"1,121.92",Balance Sheet,Equita Ltd
Peterborough City Council,More than one Service Area Category,More than one Service Division,Balance Sheet,18/11/2011,418591,531.38,Balance Sheet,Equita Ltd
Peterborough City Council,More than one Service Area Category,More than one Service Division,Balance Sheet,18/11/2011,418600,981.18,Balance Sheet,Equita Ltd
Peterborough City Council,Central Services to the Public,Local Tax,Supplies and Services,18/11/2011,418605,"1,002.42",REVENUE,Equita Ltd
Peterborough City Council,Support Services,Support Services,Premises,18/11/2011,418625,694.24,REVENUE,Anglian Water
Peterborough City Council,Support Services,Support Services,Premises,18/11/2011,418626,"1,081.44",REVENUE,Southern Electric
Peterborough City Council,Support Services,Support Services,Premises,18/11/2011,418627,"20,067.85",REVENUE,Eastern Shires Purchasing Organisation
Peterborough City Council,Support Services,Support Services,Premises,18/11/2011,418628,564,REVENUE,Siemens Energy Services Ltd
Peterborough City Council,Central Services to the Public,Local Tax,Supplies and Services,18/11/2011,418658,930.91,REVENUE,Equita Ltd
Peterborough City Council,Children's & Education Services - Children's Social Care,Other Children's & Families Services,Employees,18/11/2011,418684,898.84,REVENUE,Sanctuary Personnel Ltd
Peterborough City Council,Children's & Education Services - Education,Secondary,Premises,18/11/2011,418685,605.35,REVENUE,Anglian Water
Peterborough City Council,Children's & Education Services - Education,Secondary,Premises,18/11/2011,418696,"-4,902.40",REVENUE,Southern Electric
Peterborough City Council,Children's & Education Services - Education,Secondary,Premises,18/11/2011,418698,"1,226.59",REVENUE,Southern Electric
Peterborough City Council,Children's & Education Services - Education,Secondary,Premises,18/11/2011,418700,"4,902.40",REVENUE,Southern Electric
Peterborough City Council,Children's & Education Services - Education,Secondary,Premises,18/11/2011,418702,"5,807.79",REVENUE,Southern Electric
Peterborough City Council,Housing Services,Homelessness,Supplies and Services,18/11/2011,418704,610,REVENUE,Renaissance Property Mngmnt
Peterborough City Council,Children's & Education Services - Education,Secondary,Premises,18/11/2011,418705,"10,542.44",REVENUE,Southern Electric
Peterborough City Council,Children's & Education Services - Education,Secondary,Premises,18/11/2011,418706,"2,411.90",REVENUE,Southern Electric
Peterborough City Council,More than one Service Area Category,More than one Service Division,Balance Sheet,18/11/2011,418707,683.25,Balance Sheet,Keoghs LLP
Peterborough City Council,Children's & Education Services - Education,Secondary,Premises,18/11/2011,418709,"6,562.46",REVENUE,Southern Electric
Peterborough City Council,Children's & Education Services - Education,Secondary,Premises,18/11/2011,418733,"5,550.46",REVENUE,Anglian Water
Peterborough City Council,Children's & Education Services - Education,Management and support services,Premises,18/11/2011,418752,"2,437.43",REVENUE,Anglian Water
Peterborough City Council,Children's & Education Services - Education,Non-School Funding,Supplies and Services,18/11/2011,418755,"32,043.40",REVENUE,The Copyright Licencing Agency Ltd
Peterborough City Council,Planning Services,Economic Development,Employees,18/11/2011,418770,"1,332.00",REVENUE,Hays Specialist Recruitment Ltd
Peterborough City Council,Planning Services,Economic Development,Employees,18/11/2011,418772,"1,332.00",REVENUE,Hays Specialist Recruitment Ltd
Peterborough City Council,Environmental and Regulatory Services,Environmental Initiatives,Supplies and Services,18/11/2011,418781,"1,290.00",REVENUE,Environment Agency
Peterborough City Council,Children's & Education Services - Children's Social Care,Family Support Services,More than one Expenses Type,18/11/2011,418800,626.78,REVENUE,The Manor
Peterborough City Council,Capital,Capital,Capital Pending Update to BS,18/11/2011,418818,"12,654.00",CAPITAL,External Solutions Ltd
Peterborough City Council,Capital,Capital,Capital Pending Update to BS,18/11/2011,418823,530.4,CAPITAL,OCMIS Ltd
Peterborough City Council,Environmental and Regulatory Services,Environmental Initiatives,Supplies and Services,18/11/2011,418825,"1,290.00",REVENUE,Environment Agency
Peterborough City Council,Support Services,Support Services,Supplies and Services,18/11/2011,418878,"6,000.00",REVENUE,Pinsent Masons
Peterborough City Council,Children's & Education Services - Education,Non-School Funding,Transport,18/11/2011,418884,576,REVENUE,3 Star Ambassador Taxis
Peterborough City Council,Children's & Education Services - Education,Non-School Funding,Transport,18/11/2011,418905,"1,228.80",REVENUE,Goldstar Cabs Ltd
Peterborough City Council,Capital,Capital,Capital Pending Update to BS,21/11/2011,391933,"3,000.00",CAPITAL,Vivacity Culture and Leisure
Peterborough City Council,Children's & Education Services - Education,Non-School Funding,Supplies and Services,21/11/2011,398094,"4,314.66",REVENUE,Kirkstone House School
Peterborough City Council,Support Services,Support Services & Management Costs,Employees,21/11/2011,398187,"4,130.00",REVENUE,Cambridge Safety
Peterborough City Council,Environmental and Regulatory Services,Regulatory services,Supplies and Services,21/11/2011,408753,"4,590.00",REVENUE,Best Friends Veterinary Group
Peterborough City Council,Children's & Education Services - Children's Social Care,Children Looked After,Supplies and Services,21/11/2011,414055,678,REVENUE,Redacted Personal Data
Peterborough City Council,Children's & Education Services - Children's Social Care,Other Children's & Families Services,Employees,21/11/2011,414074,"1,665.00",REVENUE,Care Recruitment UK Ltd
Peterborough City Council,Capital,Capital,Capital Pending Update to BS,21/11/2011,414537,"50,139.20",CAPITAL,Benchmark Contracts Ltd
Peterborough City Council,Capital,Capital,Capital Pending Update to BS,21/11/2011,414546,"5,376.00",CAPITAL,Imperial Civil Enforcement Solutions
Peterborough City Council,More than one Service Area Category,More than one Service Division,Balance Sheet,21/11/2011,414660,557.56,Balance Sheet,Mrs A Holmes T/A Schoffields
Peterborough City Council,Children's & Education Services - Children's Social Care,Family Support Services,Premises,21/11/2011,414683,"1,011.60",REVENUE,Fastsigns Peterborough
Peterborough City Council,Planning Services,Planning Policy,Supplies and Services,21/11/2011,414686,954,REVENUE,Hereward Stationers & Printers Ltd
Peterborough City Council,"Cultural, Environmental and Planning Services",Street Cleansing,Transport,21/11/2011,414819,"12,160.80",REVENUE,Applied Sweepers Group Leasing Ltd
Peterborough City Council,Children's & Education Services - Children's Social Care,Other Children's & Families Services,Third Party Payments,21/11/2011,414835,"6,600.00",REVENUE,Blumint
Peterborough City Council,Children's & Education Services - Children's Social Care,Other Children's & Families Services,Employees,21/11/2011,414941,"1,420.80",REVENUE,Medicare First
Peterborough City Council,Children's & Education Services - Children's Social Care,Other Children's & Families Services,Employees,21/11/2011,414942,"1,687.20",REVENUE,Medicare First
Peterborough City Council,Children's & Education Services - Children's Social Care,Children Looked After,Supplies and Services - Transfer Payments,21/11/2011,414953,"11,400.00",REVENUE,Lincoln House Childrens Services
Peterborough City Council,Children's & Education Services - Children's Social Care,Children Looked After,Supplies and Services,21/11/2011,414956,570.39,REVENUE,Walter Clarke EFG
Peterborough City Council,Housing Services,Homelessness,Supplies and Services,21/11/2011,414963,702.55,REVENUE,Euro RSCG Riley Ltd
Peterborough City Council,Housing Services,Homelessness,Supplies and Services,21/11/2011,414964,702.55,REVENUE,Euro RSCG Riley Ltd
Peterborough City Council,Children's & Education Services - Children's Social Care,Children Looked After,Supplies and Services - Transfer Payments,21/11/2011,414967,"3,504.00",REVENUE,Archway Care Ltd
Peterborough City Council,Children's & Education Services - Children's Social Care,Children Looked After,Supplies and Services - Transfer Payments,21/11/2011,414968,"3,504.00",REVENUE,Archway Care Ltd
Peterborough City Council,Children's & Education Services - Children's Social Care,Children Looked After,Supplies and Services - Transfer Payments,21/11/2011,414970,"3,504.00",REVENUE,Archway Care Ltd
Peterborough City Council,"Highways, Roads & Transport Services","Environmental, Safety & Routine Maintenance",Supplies and Services,21/11/2011,415104,"4,047.12",REVENUE,Cambridgeshire County Council
Peterborough City Council,Capital,Capital,Capital Pending Update to BS,21/11/2011,415106,"1,560.82",CAPITAL,Haley Sharpe Design Ltd
Peterborough City Council,Children's & Education Services - Children's Social Care,Youth Justice,Supplies and Services,21/11/2011,415111,602.42,REVENUE,Postage By Phone - Pitney Bowes Ltd
Peterborough City Council,Housing Services,Housing Benefits,Supplies and Services,21/11/2011,415168,701.76,REVENUE,Crown Records Management Ltd
Peterborough City Council,Capital,Capital,Capital Pending Update to BS,21/11/2011,415340,"4,800.00",CAPITAL,Haley Sharpe Design Ltd
Peterborough City Council,"Highways, Roads & Transport Services","Environmental, Safety & Routine Maintenance",Supplies and Services,21/11/2011,415423,"7,448.18",REVENUE,Cambridgeshire County Council
Peterborough City Council,Housing Services,Homelessness,Supplies and Services,21/11/2011,415429,702.55,REVENUE,Euro RSCG Riley Ltd
Peterborough City Council,Support Services,Support Services,Supplies and Services,21/11/2011,415478,"3,029.76",REVENUE,Serco Ltd
Peterborough City Council,Support Services,Support Services,Supplies and Services,21/11/2011,415482,924.68,REVENUE,Serco Ltd
Peterborough City Council,Children's & Education Services - Children's Social Care,Children Looked After,Supplies and Services - Transfer Payments,21/11/2011,415855,"8,003.40",REVENUE,Heath Farm Family Services Ltd
Peterborough City Council,Children's & Education Services - Children's Social Care,Children Looked After,Supplies and Services - Transfer Payments,21/11/2011,415856,"5,722.50",REVENUE,Heath Farm Family Services Ltd
Peterborough City Council,"Highways, Roads & Transport Services",Public Transport,Supplies and Services,21/11/2011,415971,"10,412.18",REVENUE,National Express Ltd
Peterborough City Council,Children's & Education Services - Children's Social Care,Support Services & Management Costs,Supplies and Services,21/11/2011,417842,"2,100.00",REVENUE,"Rosenblatt, Mr Jeremy"
Peterborough City Council,"Highways, Roads & Transport Services",More than one Service Division,More than one Expenses Type,21/11/2011,417982,"131,874.73",REVENUE,Ringway Infrastructure Services
Peterborough City Council,Capital,Capital,Capital Pending Update to BS,21/11/2011,418049,"463,423.20",CAPITAL,PG Robinson t/a PGR Construction
Peterborough City Council,Children's & Education Services - Education,Primary,Supplies and Services,21/11/2011,418169,"7,920.00",REVENUE,Louder Than Life Ltd
Peterborough City Council,Children's & Education Services - Children's Social Care,Children Looked After,Supplies and Services - Transfer Payments,21/11/2011,418226,"20,825.35",REVENUE,Oracle Care Ltd (Region 2)
Peterborough City Council,"Highways, Roads & Transport Services",Street Lighting,Premises,21/11/2011,418718,"1,671.07",REVENUE,Southern Electric
Peterborough City Council,Planning Services,Economic Development,Employees,21/11/2011,418774,"1,332.00",REVENUE,Hays Specialist Recruitment Ltd
Peterborough City Council,Planning Services,Economic Development,Employees,21/11/2011,418778,"1,332.00",REVENUE,Hays Specialist Recruitment Ltd
Peterborough City Council,Children's & Education Services - Education,Non-School Funding,Supplies and Services,21/11/2011,418863,617.1,REVENUE,Best Start Childrens Nursery
Peterborough City Council,Children's & Education Services - Education,Non-School Funding,Supplies and Services,21/11/2011,418866,"17,632.30",REVENUE,Bretton Community Pre-School
Peterborough City Council,Support Services,Support Services,Premises,21/11/2011,418919,"2,393.43",REVENUE,Anglian Water
Peterborough City Council,Support Services,Support Services,Premises,21/11/2011,418922,"9,193.71",REVENUE,Southern Electric
Peterborough City Council,Support Services,Support Services,Supplies and Services,21/11/2011,418924,"9,600.00",REVENUE,Jardine Lloyd Thompson
Peterborough City Council,Deficit/(Surplus) on Trading Undertakings,Trading Account Surpluses & Deficits,Supplies and Services,21/11/2011,418929,"2,596.54",REVENUE,Barron Clark Castings Ltd
Peterborough City Council,Deficit/(Surplus) on Trading Undertakings,Trading Account Surpluses & Deficits,Supplies and Services,21/11/2011,418930,695.76,REVENUE,Barron Clark Castings Ltd
Peterborough City Council,Deficit/(Surplus) on Trading Undertakings,Trading Account Surpluses & Deficits,Supplies and Services,21/11/2011,418931,"1,026.00",REVENUE,Barron Clark Castings Ltd
Peterborough City Council,Deficit/(Surplus) on Trading Undertakings,Trading Account Surpluses & Deficits,Supplies and Services,21/11/2011,418933,"1,794.00",REVENUE,Barron Clark Castings Ltd
Peterborough City Council,Support Services,Support Services,Supplies and Services,21/11/2011,418978,"4,803.00",REVENUE,Browne Jacobson
Peterborough City Council,Children's & Education Services - Children's Social Care,Other Children's & Families Services,Third Party Payments,21/11/2011,418990,"2,500.00",REVENUE,Bridgegate Drug Services
Peterborough City Council,"Highways, Roads & Transport Services","Environmental, Safety & Routine Maintenance",Supplies and Services,21/11/2011,418993,"1,296.00",REVENUE,Clearview Traffic Group Ltd
Peterborough City Council,More than one Service Area Category,More than one Service Division,Supplies and Services,21/11/2011,418997,"2,817.84",REVENUE,GSL Dardan Ltd
Peterborough City Council,"Highways, Roads & Transport Services","Environmental, Safety & Routine Maintenance",Supplies and Services,21/11/2011,419086,"1,494.53",REVENUE,Newborough Parish Council
Peterborough City Council,Children's & Education Services - Children's Social Care,Other Children's & Families Services,Third Party Payments,21/11/2011,419124,"8,500.00",REVENUE,Bridgegate Drug Services
Peterborough City Council,Children's & Education Services - Children's Social Care,Other Children's & Families Services,Third Party Payments,21/11/2011,419133,"22,000.00",REVENUE,Bridgegate Drug Services
Peterborough City Council,Deficit/(Surplus) on Trading Undertakings,Trading Account Surpluses & Deficits,Premises,22/11/2011,419603,-983.48,REVENUE,Anglian Water
Peterborough City Council,Children's & Education Services - Children's Social Care,Children Looked After,Transport,22/11/2011,419605,"-1,729.80",REVENUE,Redacted Personal Data
Peterborough City Council,More than one Service Area Category,More than one Service Division,More than one Expenses Type,23/11/2011,360641,-928.25,"Mixture of Capital, Revenue and/or Balance Sheet",S R K Engineering
Peterborough City Council,Children's & Education Services - Children's Social Care,Other Children's & Families Services,Supplies and Services,23/11/2011,396217,612.6,REVENUE,DA Rosalia Hotel
Peterborough City Council,Deficit/(Surplus) on Trading Undertakings,Trading Account Surpluses & Deficits,Supplies and Services,23/11/2011,399771,"1,817.65",REVENUE,Chamberlin & Hill
Peterborough City Council,Deficit/(Surplus) on Trading Undertakings,Trading Account Surpluses & Deficits,Supplies and Services,23/11/2011,400434,521.16,REVENUE,Barron Clark Castings Ltd
Peterborough City Council,Children's & Education Services - Children's Social Care,Other Children's & Families Services,Employees,23/11/2011,406764,"1,894.99",REVENUE,Sanctuary Personnel Ltd
Peterborough City Council,More than one Service Area Category,More than one Service Division,More than one Expenses Type,23/11/2011,409152,"35,688.89","Mixture of Capital, Revenue and/or Balance Sheet",Ringway Infrastructure Services
Peterborough City Council,Deficit/(Surplus) on Trading Undertakings,Trading Account Surpluses & Deficits,Supplies and Services,23/11/2011,411573,"2,443.99",REVENUE,Barron Clark Castings Ltd
Peterborough City Council,Deficit/(Surplus) on Trading Undertakings,Trading Account Surpluses & Deficits,Supplies and Services,23/11/2011,411578,"2,413.98",REVENUE,Barron Clark Castings Ltd
Peterborough City Council,Deficit/(Surplus) on Trading Undertakings,Trading Account Surpluses & Deficits,Supplies and Services,23/11/2011,412468,"2,864.92",REVENUE,Barron Clark Castings Ltd
Peterborough City Council,Children's & Education Services - Children's Social Care,Other Children's & Families Services,Employees,23/11/2011,412561,"1,575.00",REVENUE,Sanctuary Personnel Ltd
Peterborough City Council,Deficit/(Surplus) on Trading Undertakings,Trading Account Surpluses & Deficits,Supplies and Services,23/11/2011,412979,"4,482.35",REVENUE,Barron Clark Castings Ltd
Peterborough City Council,Children's & Education Services - Children's Social Care,Other Children's & Families Services,Employees,23/11/2011,413010,945,REVENUE,Sanctuary Personnel Ltd
Peterborough City Council,Children's & Education Services - Children's Social Care,Other Children's & Families Services,Employees,23/11/2011,413013,"1,575.00",REVENUE,Sanctuary Personnel Ltd
Peterborough City Council,Deficit/(Surplus) on Trading Undertakings,Trading Account Surpluses & Deficits,Supplies and Services,23/11/2011,413281,"3,440.93",REVENUE,Barron Clark Castings Ltd
Peterborough City Council,Children's & Education Services - Children's Social Care,Children Looked After,Supplies and Services - Transfer Payments,23/11/2011,413318,"11,571.30",REVENUE,Continuum Care & Educ. Group.
Peterborough City Council,Children's & Education Services - Children's Social Care,Other Children's & Families Services,Employees,23/11/2011,413464,"1,185.60",REVENUE,Medicare First
Peterborough City Council,Children's & Education Services - Children's Social Care,Other Children's & Families Services,Employees,23/11/2011,413465,"1,216.80",REVENUE,Medicare First
Peterborough City Council,Deficit/(Surplus) on Trading Undertakings,Trading Account Surpluses & Deficits,Supplies and Services,23/11/2011,413555,"1,875.77",REVENUE,Barron Clark Castings Ltd
Peterborough City Council,Children's & Education Services - Children's Social Care,Other Children's & Families Services,Employees,23/11/2011,413711,"1,687.20",REVENUE,Medicare First
Peterborough City Council,Children's & Education Services - Children's Social Care,Other Children's & Families Services,Employees,23/11/2011,413715,"1,420.80",REVENUE,Medicare First
Peterborough City Council,Children's & Education Services - Children's Social Care,Other Children's & Families Services,Employees,23/11/2011,414043,"1,598.04",REVENUE,Sanctuary Personnel Ltd
Peterborough City Council,Deficit/(Surplus) on Trading Undertakings,Trading Account Surpluses & Deficits,Supplies and Services,23/11/2011,414809,"3,103.20",REVENUE,Barron Clark Castings Ltd
Peterborough City Council,Deficit/(Surplus) on Trading Undertakings,Trading Account Surpluses & Deficits,Supplies and Services,23/11/2011,414814,"1,274.04",REVENUE,Barron Clark Castings Ltd
Peterborough City Council,Children's & Education Services - Children's Social Care,Support Services & Management Costs,Supplies and Services,23/11/2011,414823,"1,500.00",REVENUE,"Bennett, Mr Jonathan"
Peterborough City Council,Support Services,Support Services,Employees,23/11/2011,414830,"1,326.67",REVENUE,Venn Group Ltd
Peterborough City Council,Support Services,Support Services,Employees,23/11/2011,414831,"1,132.37",REVENUE,Venn Group Ltd
Peterborough City Council,Support Services,Support Services,Employees,23/11/2011,414832,"1,438.50",REVENUE,Venn Group Ltd
Peterborough City Council,Housing Services,Housing Benefits,Employees,23/11/2011,414904,"1,855.69",REVENUE,Badenoch & Clark
Peterborough City Council,Children's & Education Services - Education,Other School -related Education Functions,Supplies and Services,23/11/2011,414909,"4,075.20",REVENUE,Flick Schofield Ltd
Peterborough City Council,Environmental and Regulatory Services,Flood Defence & Land Drainage,Supplies and Services,23/11/2011,414924,"7,932.00",REVENUE,L A Jackson
Peterborough City Council,Children's & Education Services - Children's Social Care,Children Looked After,Supplies and Services - Transfer Payments,23/11/2011,414958,"3,442.50",REVENUE,Young Options College Ltd
Peterborough City Council,Children's & Education Services - Children's Social Care,Children Looked After,Supplies and Services - Transfer Payments,23/11/2011,415059,"2,042.86",REVENUE,Nene Valley Fostering Agency
Peterborough City Council,Children's & Education Services - Children's Social Care,Other Children's & Families Services,Employees,23/11/2011,415100,"1,154.26",REVENUE,Randstad Care Ltd
Peterborough City Council,Children's & Education Services - Children's Social Care,Other Children's & Families Services,Employees,23/11/2011,415102,"2,296.37",REVENUE,Randstad Care Ltd
Peterborough City Council,Children's & Education Services - Children's Social Care,Children Looked After,Employees,23/11/2011,415107,826.61,REVENUE,Randstad Care Ltd
Peterborough City Council,Children's & Education Services - Children's Social Care,Children Looked After,Employees,23/11/2011,415116,600.22,REVENUE,Randstad Care Ltd
Peterborough City Council,Deficit/(Surplus) on Trading Undertakings,Trading Account Surpluses & Deficits,Supplies and Services,23/11/2011,415117,"1,649.56",REVENUE,Barron Clark Castings Ltd
Peterborough City Council,"Highways, Roads & Transport Services","Environmental, Safety & Routine Maintenance",Supplies and Services,23/11/2011,415157,662.4,REVENUE,Peek Traffic Ltd
Peterborough City Council,Children's & Education Services - Children's Social Care,Support Services & Management Costs,Employees,23/11/2011,415162,"1,475.71",REVENUE,Service Care Solutions Ltd
Peterborough City Council,Children's & Education Services - Education,All Schools - apportion across sectors,Supplies and Services,23/11/2011,415170,"6,858.00",REVENUE,Peterborough Tree Services Ltd
Peterborough City Council,Corporate & Democratic Core,Democratic Representation & Managemetn,Supplies and Services,23/11/2011,415241,519,REVENUE,Bailey's Caterers Ltd
Peterborough City Council,Children's & Education Services - Children's Social Care,Children Looked After,Employees,23/11/2011,415258,"1,082.41",REVENUE,Advantage Healthcare Nursing & Care Ltd
Peterborough City Council,Capital,Capital,Capital Pending Update to BS,23/11/2011,415322,"2,946.00",CAPITAL,UK Power Networks (operations) Ltd
Peterborough City Council,"Highways, Roads & Transport Services",Traffic management & Road Safety,Supplies and Services,23/11/2011,415361,676.2,REVENUE,Johnston Press Midlands Division
Peterborough City Council,Children's & Education Services - Education,Non-School Funding,Transport,23/11/2011,415405,576,REVENUE,King Cabz
Peterborough City Council,Children's & Education Services - Education,Non-School Funding,Transport,23/11/2011,415406,576,REVENUE,King Cabz
Peterborough City Council,Children's & Education Services - Education,Non-School Funding,Transport,23/11/2011,415410,652.8,REVENUE,King Cabz
Peterborough City Council,Children's & Education Services - Children's Social Care,Children Looked After,Employees,23/11/2011,415438,645,REVENUE,Ace Tones Music Ltd
Peterborough City Council,Planning Services,Economic Development,Employees,23/11/2011,415450,"1,221.84",REVENUE,The Synergy Group
Peterborough City Council,Housing Services,Housing Benefits,Employees,23/11/2011,415452,981.65,REVENUE,The Synergy Group
Peterborough City Council,"Highways, Roads & Transport Services","Transport planning, policy and strategy",Employees,23/11/2011,415461,"2,871.00",REVENUE,The Synergy Group
Peterborough City Council,Planning Services,Economic Development,Employees,23/11/2011,415462,"1,771.67",REVENUE,The Synergy Group
Peterborough City Council,Planning Services,Economic Development,Employees,23/11/2011,415464,"1,355.86",REVENUE,The Synergy Group
Peterborough City Council,Children's & Education Services - Children's Social Care,Other Children's & Families Services,Employees,23/11/2011,415466,"1,579.80",REVENUE,Sanctuary Personnel Ltd
Peterborough City Council,More than one Service Area Category,More than one Service Division,Third Party Payments,23/11/2011,415467,"748,767.80",REVENUE,Enterprise Managed Services Limited
Peterborough City Council,Deficit/(Surplus) on Trading Undertakings,Trading Account Surpluses & Deficits,More than one Expenses Type,23/11/2011,415471,"85,589.50",REVENUE,Enterprise Managed Services Limited
Peterborough City Council,Children's & Education Services - Children's Social Care,Support Services & Management Costs,Supplies and Services,23/11/2011,415473,720,REVENUE,"Bennett, Mr Jonathan"
Peterborough City Council,Capital,Capital,Capital Pending Update to BS,23/11/2011,415486,"5,458.80",CAPITAL,UK Power Networks (operations) Ltd
Peterborough City Council,Capital,Capital,Capital Pending Update to BS,23/11/2011,415493,"3,062.40",CAPITAL,UK Power Networks (operations) Ltd
Peterborough City Council,Capital,Capital,Capital Pending Update to BS,23/11/2011,415496,"1,178.40",CAPITAL,UK Power Networks (operations) Ltd
Peterborough City Council,Children's & Education Services - Education,Non-School Funding,Transport,23/11/2011,415506,883.2,REVENUE,A2B Euro Cars
Peterborough City Council,Children's & Education Services - Education,Non-School Funding,Transport,23/11/2011,415508,684,REVENUE,A2B Euro Cars
Peterborough City Council,Children's & Education Services - Education,Non-School Funding,Transport,23/11/2011,415509,"1,881.60",REVENUE,A2B Euro Cars
Peterborough City Council,Children's & Education Services - Education,Non-School Funding,Transport,23/11/2011,415510,"1,190.40",REVENUE,A2B Euro Cars
Peterborough City Council,Children's & Education Services - Education,Non-School Funding,Transport,23/11/2011,415511,844.8,REVENUE,A2B Euro Cars
Peterborough City Council,Children's & Education Services - Education,Non-School Funding,Transport,23/11/2011,415513,652.8,REVENUE,A2B Euro Cars
Peterborough City Council,Children's & Education Services - Education,Non-School Funding,Transport,23/11/2011,415514,"2,073.60",REVENUE,A2B Euro Cars
Peterborough City Council,Children's & Education Services - Education,Non-School Funding,Transport,23/11/2011,415515,"1,382.40",REVENUE,A2B Euro Cars
Peterborough City Council,Children's & Education Services - Education,Non-School Funding,Transport,23/11/2011,415517,768,REVENUE,A2B Euro Cars
Peterborough City Council,Children's & Education Services - Education,Non-School Funding,Transport,23/11/2011,415518,"2,850.00",REVENUE,Grettons Coaches
Peterborough City Council,Children's & Education Services - Education,Non-School Funding,Transport,23/11/2011,415519,"3,075.00",REVENUE,Grettons Coaches
Peterborough City Council,Children's & Education Services - Education,Non-School Funding,Transport,23/11/2011,415520,"2,775.00",REVENUE,Grettons Coaches
Peterborough City Council,Children's & Education Services - Education,Non-School Funding,Transport,23/11/2011,415521,"2,760.00",REVENUE,Grettons Coaches
Peterborough City Council,Children's & Education Services - Education,Non-School Funding,Transport,23/11/2011,415522,"2,760.00",REVENUE,Grettons Coaches
Peterborough City Council,Children's & Education Services - Education,Non-School Funding,Transport,23/11/2011,415523,"2,960.00",REVENUE,Grettons Coaches
Peterborough City Council,Children's & Education Services - Education,Non-School Funding,Transport,23/11/2011,415524,"2,960.00",REVENUE,Grettons Coaches
Peterborough City Council,Children's & Education Services - Education,Non-School Funding,Transport,23/11/2011,415525,"2,955.00",REVENUE,Grettons Coaches
Peterborough City Council,Children's & Education Services - Education,Non-School Funding,Transport,23/11/2011,415526,"1,344.00",REVENUE,Ash School Transport
Peterborough City Council,Children's & Education Services - Education,Non-School Funding,Transport,23/11/2011,415527,"1,536.00",REVENUE,Ash School Transport
Peterborough City Council,Children's & Education Services - Education,Non-School Funding,Transport,23/11/2011,415528,810,REVENUE,Ash School Transport
Peterborough City Council,Children's & Education Services - Education,Non-School Funding,Transport,23/11/2011,415530,"1,200.00",REVENUE,Ash School Transport
Peterborough City Council,Children's & Education Services - Education,Non-School Funding,Transport,23/11/2011,415531,"1,344.00",REVENUE,Orton Comm. Transport Assoc. Ltd
Peterborough City Council,Children's & Education Services - Education,Non-School Funding,Transport,23/11/2011,415532,"1,504.00",REVENUE,Orton Comm. Transport Assoc. Ltd
Peterborough City Council,Children's & Education Services - Education,Non-School Funding,Transport,23/11/2011,415533,"1,600.00",REVENUE,Orton Comm. Transport Assoc. Ltd
Peterborough City Council,Children's & Education Services - Education,Non-School Funding,Transport,23/11/2011,415534,"1,520.00",REVENUE,Orton Comm. Transport Assoc. Ltd
Peterborough City Council,Capital,Capital,Capital Pending Update to BS,23/11/2011,415655,"4,254.90",CAPITAL,Clear Channel UK Ltd
Peterborough City Council,Capital,Capital,Capital Pending Update to BS,23/11/2011,415656,540,CAPITAL,Clear Channel UK Ltd
Peterborough City Council,Capital,Capital,Capital Pending Update to BS,23/11/2011,415658,"4,254.90",CAPITAL,Clear Channel UK Ltd
Peterborough City Council,Deficit/(Surplus) on Trading Undertakings,Trading Account Surpluses & Deficits,Supplies and Services,23/11/2011,415684,"1,929.00",REVENUE,Barron Clark Castings Ltd
Peterborough City Council,Children's & Education Services - Education,Support Services & Management Costs,Supplies and Services,23/11/2011,415707,"200,000.00",REVENUE,British Sugar Plc
Peterborough City Council,Children's & Education Services - Children's Social Care,Family Support Services,Supplies and Services,23/11/2011,415720,654.08,REVENUE,Cambs & P'boro NHS Foundation Trust
Peterborough City Council,Central Services to the Public,Local Tax,Supplies and Services,23/11/2011,415722,"2,760.42",REVENUE,Financial Data Management
Peterborough City Council,Capital,Capital,Capital Pending Update to BS,23/11/2011,415723,"91,547.70",CAPITAL,Princebuild Limited
Peterborough City Council,Support Services,Support Services,Supplies and Services,23/11/2011,415729,749.67,REVENUE,Edenred
Peterborough City Council,Support Services,Support Services,Supplies and Services,23/11/2011,415732,"16,971.31",REVENUE,Edenred
Peterborough City Council,More than one Service Area Category,More than one Service Division,Balance Sheet,23/11/2011,415742,"4,694.87",Balance Sheet,IIC by Education (P'boro) Ltd
Peterborough City Council,"Highways, Roads & Transport Services",Traffic management & Road Safety,Supplies and Services,23/11/2011,415750,"3,439.20",REVENUE,Serco Ltd
Peterborough City Council,Children's & Education Services - Education,Non-School Funding,Supplies and Services,23/11/2011,415766,"1,369.98",REVENUE,Acoustic Metrology Ltd
Peterborough City Council,Support Services,Support Services,Supplies and Services,23/11/2011,415802,"1,266.00",REVENUE,Serco Ltd
Peterborough City Council,Cultural and Related Services,Waste Collection,Supplies and Services,23/11/2011,415803,"14,646.10",REVENUE,Biffa Waste Services Ltd
Peterborough City Council,Children's & Education Services - Education,Non-School Funding,Transport,23/11/2011,415821,537.6,REVENUE,A2B Euro Cars
Peterborough City Council,Children's & Education Services - Education,Non-School Funding,Transport,23/11/2011,415823,612,REVENUE,A2B Euro Cars
Peterborough City Council,Children's & Education Services - Education,Non-School Funding,Transport,23/11/2011,415824,"1,044.00",REVENUE,A2B Euro Cars
Peterborough City Council,More than one Service Area Category,More than one Service Division,Transport,23/11/2011,415825,"1,324.80",REVENUE,A2B Euro Cars
Peterborough City Council,Children's & Education Services - Education,Non-School Funding,Transport,23/11/2011,415826,"1,228.80",REVENUE,A2B Euro Cars
Peterborough City Council,Children's & Education Services - Education,Non-School Funding,Transport,23/11/2011,415827,"1,536.00",REVENUE,A2B Euro Cars
Peterborough City Council,Children's & Education Services - Education,Non-School Funding,Transport,23/11/2011,415828,"1,536.00",REVENUE,A2B Euro Cars
Peterborough City Council,Children's & Education Services - Education,Non-School Funding,Transport,23/11/2011,415829,"1,843.20",REVENUE,A2B Euro Cars
Peterborough City Council,More than one Service Area Category,More than one Service Division,Transport,23/11/2011,415830,"1,680.00",REVENUE,A2B Euro Cars
Peterborough City Council,Children's & Education Services - Education,Non-School Funding,Transport,23/11/2011,415832,768,REVENUE,A2B Euro Cars
Peterborough City Council,Capital,Capital,Capital Pending Update to BS,23/11/2011,415853,"13,200.00",CAPITAL,Mott Macdonald
Peterborough City Council,Deficit/(Surplus) on Trading Undertakings,Trading Account Surpluses & Deficits,Supplies and Services,23/11/2011,415861,"14,340.00",REVENUE,Burbage Machine Tools Ltd
Peterborough City Council,Deficit/(Surplus) on Trading Undertakings,Trading Account Surpluses & Deficits,Supplies and Services,23/11/2011,415869,"11,484.00",REVENUE,Data Interchange
Peterborough City Council,Deficit/(Surplus) on Trading Undertakings,Trading Account Surpluses & Deficits,Supplies and Services,23/11/2011,415871,"1,140.00",REVENUE,Barker Storey Matthews
Peterborough City Council,Children's & Education Services - Children's Social Care,Support Services & Management Costs,Supplies and Services,23/11/2011,415893,"2,701.68",REVENUE,Serco Ltd
Peterborough City Council,Support Services,Support Services,Supplies and Services,23/11/2011,415894,"16,860.00",REVENUE,Serco Ltd
Peterborough City Council,Deficit/(Surplus) on Trading Undertakings,Trading Account Surpluses & Deficits,Supplies and Services,23/11/2011,415895,"1,394.30",REVENUE,Serco Ltd
Peterborough City Council,Capital,Capital,Capital Pending Update to BS,23/11/2011,415899,"2,011.20",CAPITAL,Serco Ltd
Peterborough City Council,Capital,Capital,Capital Pending Update to BS,23/11/2011,415900,"4,368.00",CAPITAL,Serco Ltd
Peterborough City Council,Children's & Education Services - Education,Non-School Funding,Supplies and Services,23/11/2011,415904,"1,824.00",REVENUE,Wyboston Lakes Ltd
Peterborough City Council,Capital,Capital,Capital Pending Update to BS,23/11/2011,415906,"98,967.10",CAPITAL,Serco Ltd
Peterborough City Council,Capital,Capital,Capital Pending Update to BS,23/11/2011,415907,"3,069.60",CAPITAL,Serco Ltd
Peterborough City Council,Support Services,Support Services,Supplies and Services,23/11/2011,415923,"5,028.00",REVENUE,Serco Ltd
Peterborough City Council,Capital,Capital,Capital Pending Update to BS,23/11/2011,415924,"1,724.09",CAPITAL,Serco Ltd
Peterborough City Council,Support Services,Support Services,Supplies and Services,23/11/2011,415925,529.2,REVENUE,Serco Ltd
Peterborough City Council,Capital,Capital,Capital Pending Update to BS,23/11/2011,415927,"5,265.00",CAPITAL,Serco Ltd
Peterborough City Council,Environmental and Regulatory Services,Environmental Initiatives,Supplies and Services,23/11/2011,415932,725.1,REVENUE,Serco Ltd
Peterborough City Council,Support Services,Support Services,Supplies and Services,23/11/2011,415934,"1,461.88",REVENUE,Serco Ltd
Peterborough City Council,Support Services,Support Services,Supplies and Services,23/11/2011,415936,"1,072.64",REVENUE,Serco Ltd
Peterborough City Council,Children's & Education Services - Education,All Schools - apportion across sectors,Supplies and Services,23/11/2011,415939,"49,729.20",REVENUE,Serco Ltd
Peterborough City Council,Central Services to the Public,Emergency Planning,Supplies and Services,23/11/2011,415940,754.45,REVENUE,Serco Ltd
Peterborough City Council,Cultural and Related Services,Recreation & Sport,Premises,23/11/2011,415962,"10,116.00",REVENUE,Omega Red Group Ltd
Peterborough City Council,More than one Service Area Category,More than one Service Division,Supplies and Services,23/11/2011,415969,"1,423.86",REVENUE,TNT Post Midlands Ltd
Peterborough City Council,Deficit/(Surplus) on Trading Undertakings,Trading Account Surpluses & Deficits,Supplies and Services,23/11/2011,416001,517.61,REVENUE,Barron Clark Castings Ltd
Peterborough City Council,Support Services,Support Services,Supplies and Services,23/11/2011,416086,"12,000.00",REVENUE,Learning Pool Limited
Peterborough City Council,Children's & Education Services - Children's Social Care,Support Services & Management Costs,Employees,23/11/2011,416094,"1,529.14",REVENUE,Randstad Care Ltd
Peterborough City Council,Support Services,Support Services,Supplies and Services,23/11/2011,416199,624,REVENUE,Speedy Couriers
Peterborough City Council,Capital,Capital,Capital Pending Update to BS,23/11/2011,417087,"1,021.20",CAPITAL,UK Power Networks (operations) Ltd
Peterborough City Council,Support Services,Support Services,Employees,23/11/2011,417096,"4,250.00",REVENUE,Creative Communications Solutions
Peterborough City Council,Children's & Education Services - Education,Non-School Funding,Transport,23/11/2011,417179,"1,584.00",REVENUE,A2B Euro Cars
Peterborough City Council,More than one Service Area Category,More than one Service Division,Transport,23/11/2011,417180,833.4,REVENUE,Woodgrange Travel Ltd t/a DiamondCars
Peterborough City Council,Children's & Education Services - Education,Non-School Funding,Transport,23/11/2011,417181,"2,304.00",REVENUE,Woodgrange Travel Ltd t/a DiamondCars
Peterborough City Council,Children's & Education Services - Education,Non-School Funding,Transport,23/11/2011,417182,"1,563.60",REVENUE,Woodgrange Travel Ltd t/a DiamondCars
Peterborough City Council,Children's & Education Services - Education,Non-School Funding,Transport,23/11/2011,417183,"1,252.80",REVENUE,Woodgrange Travel Ltd t/a DiamondCars
Peterborough City Council,Children's & Education Services - Education,Non-School Funding,Transport,23/11/2011,417184,"2,726.40",REVENUE,Woodgrange Travel Ltd t/a DiamondCars
Peterborough City Council,More than one Service Area Category,More than one Service Division,Transport,23/11/2011,417185,"1,104.00",REVENUE,Woodgrange Travel Ltd t/a DiamondCars
Peterborough City Council,Children's & Education Services - Education,Non-School Funding,Transport,23/11/2011,417186,"1,132.80",REVENUE,R T Enterprises Ltd T/A Royal Taxis
Peterborough City Council,Children's & Education Services - Education,Non-School Funding,Transport,23/11/2011,417187,"1,056.00",REVENUE,R T Enterprises Ltd T/A Royal Taxis
Peterborough City Council,Children's & Education Services - Education,Non-School Funding,Transport,23/11/2011,417190,"1,267.20",REVENUE,R T Enterprises Ltd T/A Royal Taxis
Peterborough City Council,Children's & Education Services - Education,Non-School Funding,Transport,23/11/2011,417201,"1,905.00",REVENUE,Hampton Private Hire
Peterborough City Council,Children's & Education Services - Education,Non-School Funding,Transport,23/11/2011,417202,"1,728.00",REVENUE,Woodgrange Travel Ltd t/a DiamondCars
Peterborough City Council,Children's & Education Services - Education,Non-School Funding,Transport,23/11/2011,417203,"2,074.83",REVENUE,Translinc Ltd
Peterborough City Council,Housing Services,Homelessness,Supplies and Services,23/11/2011,417223,571.2,REVENUE,DA Rosalia Hotel
Peterborough City Council,Children's & Education Services - Children's Social Care,Other Children's & Families Services,Employees,23/11/2011,417250,"1,839.00",REVENUE,Sanctuary Personnel Ltd
Peterborough City Council,Children's & Education Services - Children's Social Care,Other Children's & Families Services,Employees,23/11/2011,417258,"1,764.00",REVENUE,Sellick Partnership Group Limited
Peterborough City Council,Children's & Education Services - Children's Social Care,Other Children's & Families Services,Employees,23/11/2011,417267,"1,764.00",REVENUE,Sellick Partnership Group Limited
Peterborough City Council,Children's & Education Services - Children's Social Care,Other Children's & Families Services,Employees,23/11/2011,417275,"1,587.00",REVENUE,Sanctuary Personnel Ltd
Peterborough City Council,Deficit/(Surplus) on Trading Undertakings,Trading Account Surpluses & Deficits,Supplies and Services,23/11/2011,417309,600,REVENUE,Simmal Ltd
Peterborough City Council,Housing Services,Homelessness,Supplies and Services,23/11/2011,417418,928.55,REVENUE,DA Rosalia Hotel
Peterborough City Council,Housing Services,Homelessness,Supplies and Services,23/11/2011,417428,928.55,REVENUE,DA Rosalia Hotel
Peterborough City Council,Support Services,Support Services,Employees,23/11/2011,417438,"3,600.00",REVENUE,Anthony Collins Solicitors LLP
Peterborough City Council,Planning Services,Economic Development,Third Party Payments,23/11/2011,417501,700,REVENUE,Helpston & Etton Comm Assoc.
Peterborough City Council,Children's & Education Services - Education,Non-School Funding,Transport,23/11/2011,417718,888.96,REVENUE,A2B Euro Cars
Peterborough City Council,More than one Service Area Category,More than one Service Division,Transport,23/11/2011,417719,864,REVENUE,A2B Euro Cars
Peterborough City Council,Children's & Education Services - Education,Non-School Funding,Transport,23/11/2011,417720,"1,196.40",REVENUE,A2B Euro Cars
Peterborough City Council,Children's & Education Services - Education,Non-School Funding,Transport,23/11/2011,417721,"1,022.40",REVENUE,A2B Euro Cars
Peterborough City Council,Children's & Education Services - Education,Non-School Funding,Transport,23/11/2011,417722,558,REVENUE,A2B Euro Cars
Peterborough City Council,Children's & Education Services - Education,Non-School Funding,Supplies and Services,23/11/2011,417723,"1,044.00",REVENUE,A2B Euro Cars
